Workbook

Sheet Instructions for Tabs 3 to 7
A1: Instructions for Tabs 3 to 7
A3: Tab | B3: Tab Details | C3: Step | D3: Details
A4: 3 - Continuity Schedule | B4: This tab is the continuity schedule that shows all the accounts and the accumulation of the balances a utility has. | C4: 1 | D4: Complete the DVA continuity schedule.
D5: For all Group 1 Accounts, except for Account 1595, start inputting data from the year in which the GL balance was last disposed. For example, if in the 2018 rate application, DVA balances as at December 31, 2016 were approved for disposition, start the continuity schedule from 2016 by entering the closing 2015 balances in the Adjustments column under 2015.
D6: For all Account 1595 sub-accounts, complete the DVA continuity schedule for each Account 1595 vintage year that has a GL balance as at December 31, 2017 regardless of whether the account is being requested for disposition in the current application. For each Account 1595 sub-account, start inputting data from the year the sub-account started to accumulate a balance (i.e. the vintage year). For example, Account 1595 (2015) would have information starting in 2015, when the relevant balances approved for disposition were first transferred into Account 1595 (2015). The DVA continuity schedule currently starts from 2012, if a utility has an Account 1595 with a vintage year prior to 2012, then a separate schedule should be provided starting from the vintage year.
C8: 2a | D8: If you had any Class A customers at any point during the period that the Account 1589 GA balance accumulated (e.g. last disposition was for 2015 balances in the 2017 rate application, current balance requested for disposition accumulated from 2016 to 2017), check off the checkbox in cell BR13.
D9: If the checkbox is not checked off, then proceed to tab 4 and complete the tab as needed. Tab 5 will be calculated accordingly. Then proceed to tabs 6.1 and 7, complete the tabs as needed and the appropriate rate riders will be calculated.
D10: If the checkbox is checked off, tab 6 relating to Class A customer consumption will be generated, see step 5 to 8 below for further details.
C12: 2b | D12: If the checkbox in step 2a is checked off, another checkbox will pop up to the right of the checkbox. If you had any Class A customers at any point during the period that the Account 1580, sub-account CBR Class B balance accumulated (i.e. Never Disposed, 2015, 2016), check off the checkbox.
D13: If the checkbox is not checked off, then the balance in the Account 1580, sub-account CBR Class B will be allocated and disposed with Account 1580 WMS, as part of the general DVA rate rider.
D14: If the checkbox is checked off, then tab 6.2 will be generated. This tab will allocate and dispose the balance in Account 1580 sub-account CBR Class B through a separate rate rider using information inputted in tab 6. See step 11 below for further details.
A16: 4 - Billing Determinant | B16: This tab shows the billing determinants that will be used to allocate account balances and calculate rate riders. | C16: 3 | D16: Confirm the accuracy of the RRR data used to populate the tab.
C18: 4 | D18: Review the disposition threshold calculation. If the threshold disposition is not met, select whether disposition is still being requested or not in the drop down box.
A20: 6 - Class A Data Consumption | B20: This is a new tab that is to be completed if there were any Class A customers at any point during the period the GA balance accumulated. The tab also considers Class A/B transition customers. The data on this tab is used for the purposes of determining the GA rate rider, CBR Class B rate rider (if applcable), as well as customer specific GA and CBR charges for transition customers (if applicable). | C20: 5 | D20: This tab is generated when the utility checks in tab 3 that they have Class A customers during the period that GA balance accumulated.
D21: Under #1, enter the year the Account 1589 GA balance was last disposed.
C23: 6 | D23: Under #2a, indicate whether you had any customers that transitioned between Class A and B during the period the Account 1589 GA balance accumulated.
D24: If no, proceed to #3b in step 8.
D25: If yes, #2b and tab 6.1a will be generated. Proceed to #2b.
D26: Under #2b, indicate whether you had any customers that transitioned between Class A and B during the period the Account 1580, sub-account CBR Class B balance accumulated.
D27: If no, proceed to #3a in step 7.
D28: If yes, tab 6.2a will be generated. Proceed to #3a in step 7.
C30: 7 | D30: Under #3a, enter the number of transition customers during the period the Account 1589 GA balance accumulated. A table will be generated based on the number of customers. Complete the table accordingly for each transition customer identified (i.e. kWh/kW for half year periods, and the customer class during the half year). This data will automatically be used in the GA balance and CBR Class B balance allocation to transition customers in tabs 6.1a and 6.2a respectively. Each transition customer identified in tab 6, table 3a will assigned a customer number and the number will correspond to the same transition customer populated in tabs 6.1a and 6.2a. The data in tab 6 will also be used in the calculation of billing determinants in the allocation of GA and CBR Class B balances to the rate classes, as applicable.
C32: 8 | D32: Under #3b, enter the number of customers who were Class A customers during the entire period the Account 1589 GA balance accumulated (i.e. did not transition between Class A and B during the period). A table will be generated based on the number of customers. Complete the table accordingly for each Class A customer identified. This data will be used in the calculation of billing determinants in the allocation of GA and CBR Class B balances to the rate classes, as applicable.
A34: 6.1a - GA Allocation | B34: This tab has been revised. It allocates the GA balance to each transition customer for the period in which these customers were Class B customers and contributed to the GA balance (i.e. former Class B customers who contributed to the GA balance but are now Class A customers and former Class A customers who are now Class B customers contributing to the GA balance). | C34: 9 | D34: This tab is generated when the utility indicates that they have transition customers in tab 6, #2a during the period where the Account 1589 GA balance accumulated.
D35: In row 20, enter the total Class B consumption which equals to Non-RPP consumption less WMP consumption and consumption for Class A customers (who were Class A for partial and full year).
D36: The rest of the information in this tab will be auto-populated and will calculate the customer specific allocation of the GA balance to transition customers in the bottom table. All transition customers who are allocated a specific GA amount are not to be charged the general Non-RPP Class B GA rate rider as calculated in tab 6.1.
A38: 6.1 - GA | B38: This tab calculates the GA rate rider to be applied to all non-RPP Class B customers (except for the transition customers allocated a customer specific balance in tab 6.1a). | C38: 10 | D38: Enter the proposed rate rider recovery period if different than the default 12 month period. The rest of the information in the tab is auto-populated and the GA rate riders are calculated accordingly based on whether there were any transition customers during the period that the GA balance accumulated.
A40: 6.2 - CBR | B40: This is a new tab that calculates the CBR Class B rate rider if there were Class A customers at any point during the period that the CBR Class B balance accumulated. | C40: 11 | D40: This tab is generated when the utility checks in tab 3 that they have Class A customers during the period that Account 1580, sub-account CBR Class B balance accumulated.
D41: Select one of two options pertaining to the the years in which the CBR Class B balance accumulated, either 2015, 2016 and 2017, or 2016 and 2015, or 2015 only in cell B13.
D42: The rest of the information in the tab is auto-populated and the CBR Class B rate riders are calculated accordingly based on whether there were any transition customers during the period that the CBR Class B balance accumulated.
A44: 6.2a - CBR_B Allocation | B44: This is a new tab that allocates the CBR Class B balance to each transition customer for the period in which these customers were Class B customers and contributed to the CBR Class B balance (i.e. former Class B customers who contributed to the balance but are now Class A customers and former Class A customers who are now Class B contributing to the balance). | C44: 12 | D44: This tab is generated when the utility indicates that they have transition customers in tab 6, #2b during the period where the CBR Class B balance accumulated.
D45: In row 20, enter the total Class B consumption which equals to total consumption less WMP consumption and consumption for Class A customers (who were Class A for partial and full year).
D46: The rest of the information in this tab will be auto-populated and will calculate the customer specific allocation of the CBR Class B balance to transition customers in the bottom table. Note that the transition customers identified for the GA may be different than the transition customers for CBR Class B as this would depend on the period in which the GA and CBR Class B balances accumulated. All transition customers who are allocated a specific CBR Class B amount are not to be charged the general CBR Class B rate rider.
A48: 5 - Allocating Def-Var Balances | B48: This tab allocates the Group 1 balances (except GA and CBR Class B if Class A customers exist). | C48: 13 | D48: Review the allocated balances to ensure the allocation is appropriate. Note that the final allocation for Account 1580, sub-account CBR Class B is calculated after the completion of tabs 6 to 6.2a.
A50: 7 - Calculation of Def-Var RR | B50: This tab calculates the Group 1 rate riders, except for GA and CBR Class B (if Class A customers exist) | C50: 14 | D50: Enter the proposed rate rider recovery period if different than the default 12 month period. The rest of the information in the tab is auto-populated and the rate riders are calculated accordingly .

Sheet 1. Information Sheet
U1: a
M12: Version | N12: 2
E14: Utility Name | F14: E.L.K. Energy Inc.
E16: Service Territory
E18: Assigned EB Number | F18: EB-2018-0027
E20: Name of Contact and Title | F20: EB-2018-0027
E22: Phone Number | F22: 519-776-5291 ext 204
E24: Email Address | F24: mdanelon@elkenergy.com
E26: We are applying for rates effective | F26: 2019-05-01
E28: Rate-Setting Method | F28: Annual IR Index
A30: Please indicate in which Rate Year the Group 1 accounts were last cleared1 | F30: 2018
A32: Please indicate the last Cost of Service Re-Basing Year | F32: 2012
B35: Legend
C37: Pale green cells represent input cells.
C39: Pale blue cells represent drop-down lists. The applicant should select the appropriate item from the drop-down list.
C41: Pale grey cell represent auto-populated RRR data
C43: White cells contain fixed values, automatically generated values or formulae.
A46: Note: 1. Rate year of application

Sheet Sheet1 (hidden)
A1: 1. Information Sheet
A2: Sheet1 | B2: X
A3: 2. Current Tariff Schedule | B3: X | C3: X
A4: 2016 List | B4: X
A5: Instructions for Tabs 3 to 7
A6: 3. Continuity Schedule | B6: X | C6: X
A7: 4. Billing Det. for Def-Var | B7: X | C7: X
A8: 5. Allocating Def-Var Balances | B8: X | C8: X
A9: 6. Class A Consumption Data | B9: X
A10: 6.1 GA | B10: X | C10: X
A11: 6.1a GA Allocation | B11: X
A12: 6.2 CBR B | B12: X
A13: 6.2a CBR B_Allocation | B13: X
A14: 7. Calculation of Def-Var RR | B14: X | C14: X
A15: 8. STS - Tax Change | B15: X | C15: X
A16: 9. Shared Tax - Rate Rider | B16: X | C16: X
A17: 10. RTSR Current Rates | B17: X | C17: X
A18: 11. RTSR - UTRs & Sub-Tx | B18: X | C18: X
A19: 12. RTSR - Historical Wholesale | B19: X | C19: X
A20: 13. RTSR - Current Wholesale | B20: X | C20: X
A21: 14. RTSR - Forecast Wholesale | B21: X | C21: X
A22: 15. RTSR Rates to Forecast | B22: X | C22: X
A23: 16. Rev2Cost_GDPIPI | B23: X | C23: X
A24: 17. Regulatory Charges | B24: X | C24: X
A25: 18. Additional Rates | B25: X | C25: X
A26: 19. Final Tariff Schedule | B26: X | C26: X
A27: 20. Bill Impacts | B27: X | C27: X
A28: 20. HIDDEN | B28: X
A29: 20. Bill Impacts hidden | B29: X
A30: 2.1.7 Filing | B30: X
A31: 2 1 5 TotalConsumptionData_Dist | B31: X
A32: 212_Total_Connection_RollUp | B32: X
A33: 2016 Database | B33: X
A34: lists | B34: X
A35: Sheet2 | B35: X

Sheet 2. Current Tariff Schedule
AZ1: TRUE
B3: Macro has been activated
B12: E.L.K. Energy Inc. | F12: X | G12: E.L.K. Energy Inc._Start | H12: E.L.K. Energy Inc. | J12: 8 | AA12: E.L.K. Energy Inc.
B13: TARIFF OF RATES AND CHARGES | AA13: TARIFF OF RATES AND CHARGES
B14: Effective and Implementation Date May 1, 2018 | P14: 2018-05-01 | AA14: Effective and Implementation Date May 1, 2018
B15: This schedule supersedes and replaces all previously | AA15: This schedule supersedes and replaces all previously
B16: approved schedules of Rates, Charges and Loss Factors | AA16: approved schedules of Rates, Charges and Loss Factors
B17: EB-2017-0036 | H17: EB-2017-0036 | AA17: EB-2017-0036 | AS17: X
B18: RESIDENTIAL SERVICE CLASSIFICATION | H18: 1_RESIDENTIAL SERVICE CLASSIFICATION | AA18: RESIDENTIAL SERVICE CLASSIFICATION
B19: This classification refers to a service which is less than 50 kW supplied to a single family dwelling unit that is for domestic or household purposes, including seasonal occupancy. At E.L.K.’s discretion, residential rates may be applied to apartment buildings with 6 or less units by simple application of the residential rate or by blocking the residential rate by the number of units. Further servicing details are available in the distributor’s Conditions of Service. | H19: 1_RESIDENTIAL SERVICE CLASSIFICATION | AA19: This classification refers to a service which is less than 50 kW supplied to a single family dwelling unit that is for domestic or household purposes, including seasonal occupancy. At E.L.K.’s discretion, residential rates may be applied to apartment buildings with 6 or less units by simple application of the residential rate or by blocking the residential rate by the number of units. Further servicing details are available in the distributor’s Conditions of Service.
B21: APPLICATION | H21: 1_APPLICATION | AA21: APPLICATION
B23: The application of these rates and charges shall be in accordance with the Licence of the Distributor and any Code or Order of the Ontario Energy Board, and amendments thereto as approved by the Ontario Energy Board, which may be applicable to the administration of this schedule. | H23: 1_RESIDENTIAL SERVICE CLASSIFICATION | AA23: The application of these rates and charges shall be in accordance with the Licence of the Distributor and any Code or Order of the Ontario Energy Board, and amendments thereto as approved by the Ontario Energy Board, which may be applicable to the administration of this schedule.
B25: No rates and charges for the distribution of electricity and charges to meet the costs of any work or service done or furnished for the purpose of the distribution of electricity shall be made except as permitted by this schedule, unless required by the Distributor’s Licence or a Code or Order of the Ontario Energy Board, and amendments thereto as approved by the Ontario Energy Board, or as specified herein. | H25: 1_RESIDENTIAL SERVICE CLASSIFICATION | AA25: No rates and charges for the distribution of electricity and charges to meet the costs of any work or service done or furnished for the purpose of the distribution of electricity shall be made except as permitted by this schedule, unless required by the Distributor’s Licence or a Code or Order of the Ontario Energy Board, and amendments thereto as approved by the Ontario Energy Board, or as specified herein.
B27: Unless specifically noted, this schedule does not contain any charges for the electricity commodity, be it under the Regulated Price Plan, a contract with a retailer or the wholesale market price, as applicable. In addition, the charges in the MONTHLY RATES AND CHARGES - Regulatory Component of this schedule do not apply to a customer that is an embedded wholesale market participant. | H27: 1_RESIDENTIAL SERVICE CLASSIFICATION | AA27: Unless specifically noted, this schedule does not contain any charges for the electricity commodity, be it under the Regulated Price Plan, a contract with a retailer or the wholesale market price, as applicable. In addition, the charges in the MONTHLY RATES AND CHARGES - Regulatory Component of this schedule do not apply to a customer that is an embedded wholesale market participant.
B29: It should be noted that this schedule does not list any charges, assessments, or credits that are required by law to be invoiced by a distributor and that are not subject to Ontario Energy Board approval, such as the Debt Retirement Charge, the Global Adjustment and the HST. | H29: 1_RESIDENTIAL SERVICE CLASSIFICATION | AA29: It should be noted that this schedule does not list any charges, assessments, or credits that are required by law to be invoiced by a distributor and that are not subject to Ontario Energy Board approval, such as the Debt Retirement Charge, the Global Adjustment and the HST.
B31: MONTHLY RATES AND CHARGES - Delivery Component | H31: 1_MRC_Del | AA31: MONTHLY RATES AND CHARGES - Delivery Component
B33: Service Charge | D33: $ | E33: 16.95 | H33: 1_RESIDENTIAL SERVICE CLASSIFICATION | I33: A | M33: 1_RESIDENTIAL SERVICE CLASSIFICATION_MSC | Z33: Service Charge
B34: Smart Metering Entity Charge - effective until December 31, 2022 | D34: $ | E34: 0.57 | H34: 1_RESIDENTIAL SERVICE CLASSIFICATION | I34: B | M34: 1_RESIDENTIAL SERVICE CLASSIFICATION_SME | Q34: 2022-12-31 | Z34: Smart Metering Entity Charge - effective until December 31, 2022
B35: Rate Rider for Application of Tax Change (2018) - effective until April 30, 2019 | D35: $ | E35: 0.08 | H35: 1_RESIDENTIAL SERVICE CLASSIFICATION | I35: A | M35: 1_RESIDENTIAL SERVICE CLASSIFICATION_STS | Q35: 2019-04-30 | R35: X | Z35: Rate Rider for Application of Tax Change (2018) - effective until April 30, 2019
B36: Distribution Volumetric Rate | D36: $/kWh | E36: 0.0021 | H36: 1_RESIDENTIAL SERVICE CLASSIFICATION | I36: A | M36: 1_RESIDENTIAL SERVICE CLASSIFICATION_DVC | Z36: Distribution Volumetric Rate
B37: Low Voltage Service Rate | D37: $/kWh | E37: 0.0012 | H37: 1_RESIDENTIAL SERVICE CLASSIFICATION | I37: B | M37: 1_RESIDENTIAL SERVICE CLASSIFICATION_LV | Z37: Low Voltage Service Rate
B38: Rate Rider for Disposition of Deferral/Variance Accounts (2018) - effective until April 30, 2019 | D38: $/kWh | E38: 0.0034 | H38: 1_RESIDENTIAL SERVICE CLASSIFICATION | I38: B | M38: 1_RESIDENTIAL SERVICE CLASSIFICATION_DEFVAR_ALL | Q38: 2019-04-30 | R38: X | Z38: Rate Rider for Disposition of Deferral/Variance Accounts (2018) - effective until April 30, 2019
B39: Rate Rider for Disposition of Account 1595 (2017) Applicable only for Non-RPP Customers - effective until April 30, 2022 | D39: $/kWh | E39: 0.0045 | H39: 1_RESIDENTIAL SERVICE CLASSIFICATION | I39: B | M39: 1_RESIDENTIAL SERVICE CLASSIFICATION_VR_RR_299 | Z39: Rate Rider for Disposition of Account 1595 (2017) Applicable only for Non-RPP Customers - effective until April 30, 2022
B40: Retail Transmission Rate - Network Service Rate | D40: $/kWh | E40: 0.0073 | H40: 1_RESIDENTIAL SERVICE CLASSIFICATION | I40: C | M40: 1_RESIDENTIAL SERVICE CLASSIFICATION_Retail Transmission Rate - Network Service Rate | Z40: Retail Transmission Rate - Network Service Rate
B41: Retail Transmission Rate - Line and Transformation Connection Service Rate | D41: $/kWh | E41: 0.0053 | H41: 1_RESIDENTIAL SERVICE CLASSIFICATION | I41: C | M41: 1_RESIDENTIAL SERVICE CLASSIFICATION_Retail Transmission Rate - Line and Transformation Connection Service Rate | Z41: Retail Transmission Rate - Line and Transformation Connection Service Rate
B43: MONTHLY RATES AND CHARGES - Regulatory Component | H43: 1_MRC_Reg | Z43: MONTHLY RATES AND CHARGES - Regulatory Component
B45: Wholesale Market Service Rate (WMS) - not including CBR | D45: $/kWh | E45: 0.0032 | H45: 1_RESIDENTIAL SERVICE CLASSIFICATION | I45: T | M45: 1_RESIDENTIAL SERVICE CLASSIFICATION_WMSR | Z45: Wholesale Market Service Rate (WMS) - not including CBR
B46: Capacity Based Recovery (CBR) - Applicable for Class B Customers | D46: $/kWh | E46: 0.0004 | H46: 1_RESIDENTIAL SERVICE CLASSIFICATION | I46: T | M46: 1_RESIDENTIAL SERVICE CLASSIFICATION_WMSR | Z46: Capacity Based Recovery (CBR) - Applicable for Class B Customers
B47: Rural or Remote Electricity Rate Protection Charge (RRRP) | D47: $/kWh | E47: 0.0003 | H47: 1_RESIDENTIAL SERVICE CLASSIFICATION | I47: T | M47: 1_RESIDENTIAL SERVICE CLASSIFICATION_RRRP | Z47: Rural or Remote Electricity Rate Protection Charge (RRRP)
B48: Standard Supply Service - Administrative Charge (if applicable) | D48: $ | E48: 0.25 | H48: 1_RESIDENTIAL SERVICE CLASSIFICATION | I48: T | M48: 1_RESIDENTIAL SERVICE CLASSIFICATION_SSS | Z48: Standard Supply Service - Administrative Charge (if applicable) | AS48: X
B49: GENERAL SERVICE LESS THAN 50 KW SERVICE CLASSIFICATION | H49: 2_GENERAL SERVICE LESS THAN 50 KW SERVICE CLASSIFICATION | AA49: GENERAL SERVICE LESS THAN 50 KW SERVICE CLASSIFICATION
B50: This classification refers to premises other than those designated as residential and do not exceed 50 kW in any month of the year. This includes multi-unit residential establishments such as apartment buildings supplied through one service (bulk-metered). Further servicing details are available in the distributor’s Conditions of Service. | H50: 2_GENERAL SERVICE LESS THAN 50 KW SERVICE CLASSIFICATION | AA50: This classification refers to premises other than those designated as residential and do not exceed 50 kW in any month of the year. This includes multi-unit residential establishments such as apartment buildings supplied through one service (bulk-metered). Further servicing details are available in the distributor’s Conditions of Service.
B52: APPLICATION | H52: 2_APPLICATION | AA52: APPLICATION
B54: The application of these rates and charges shall be in accordance with the Licence of the Distributor and any Code or Order of the Ontario Energy Board, and amendments thereto as approved by the Ontario Energy Board, which may be applicable to the administration of this schedule. | H54: 2_GENERAL SERVICE LESS THAN 50 KW SERVICE CLASSIFICATION | AA54: The application of these rates and charges shall be in accordance with the Licence of the Distributor and any Code or Order of the Ontario Energy Board, and amendments thereto as approved by the Ontario Energy Board, which may be applicable to the administration of this schedule.
B56: No rates and charges for the distribution of electricity and charges to meet the costs of any work or service done or furnished for the purpose of the distribution of electricity shall be made except as permitted by this schedule, unless required by the Distributor’s Licence or a Code or Order of the Ontario Energy Board, and amendments thereto as approved by the Ontario Energy Board, or as specified herein. | H56: 2_GENERAL SERVICE LESS THAN 50 KW SERVICE CLASSIFICATION | AA56: No rates and charges for the distribution of electricity and charges to meet the costs of any work or service done or furnished for the purpose of the distribution of electricity shall be made except as permitted by this schedule, unless required by the Distributor’s Licence or a Code or Order of the Ontario Energy Board, and amendments thereto as approved by the Ontario Energy Board, or as specified herein.
B58: Unless specifically noted, this schedule does not contain any charges for the electricity commodity, be it under the Regulated Price Plan, a contract with a retailer or the wholesale market price, as applicable. In addition, the charges in the MONTHLY RATES AND CHARGES - Regulatory Component of this schedule do not apply to a customer that is an embedded wholesale market participant. | H58: 2_GENERAL SERVICE LESS THAN 50 KW SERVICE CLASSIFICATION | AA58: Unless specifically noted, this schedule does not contain any charges for the electricity commodity, be it under the Regulated Price Plan, a contract with a retailer or the wholesale market price, as applicable. In addition, the charges in the MONTHLY RATES AND CHARGES - Regulatory Component of this schedule do not apply to a customer that is an embedded wholesale market participant.
B60: It should be noted that this schedule does not list any charges, assessments, or credits that are required by law to be invoiced by a distributor and that are not subject to Ontario Energy Board approval, such as the Debt Retirement Charge, the Global Adjustment and the HST. | H60: 2_GENERAL SERVICE LESS THAN 50 KW SERVICE CLASSIFICATION | AA60: It should be noted that this schedule does not list any charges, assessments, or credits that are required by law to be invoiced by a distributor and that are not subject to Ontario Energy Board approval, such as the Debt Retirement Charge, the Global Adjustment and the HST.
B62: MONTHLY RATES AND CHARGES - Delivery Component | H62: 2_MRC_Del | AA62: MONTHLY RATES AND CHARGES - Delivery Component
B64: Service Charge | D64: $ | E64: 16.08 | H64: 2_GENERAL SERVICE LESS THAN 50 KW SERVICE CLASSIFICATION | I64: A | M64: 2_GENERAL SERVICE LESS THAN 50 KW SERVICE CLASSIFICATION_MSC | Z64: Service Charge
B65: Smart Metering Entity Charge - effective until December 31, 2022 | D65: $ | E65: 0.57 | H65: 2_GENERAL SERVICE LESS THAN 50 KW SERVICE CLASSIFICATION | I65: B | M65: 2_GENERAL SERVICE LESS THAN 50 KW SERVICE CLASSIFICATION_SME | Q65: 2022-12-31 | Z65: Smart Metering Entity Charge - effective until December 31, 2022
B66: Distribution Volumetric Rate | D66: $/kWh | E66: 0.0051 | H66: 2_GENERAL SERVICE LESS THAN 50 KW SERVICE CLASSIFICATION | I66: A | M66: 2_GENERAL SERVICE LESS THAN 50 KW SERVICE CLASSIFICATION_DVC | Z66: Distribution Volumetric Rate
B67: Low Voltage Service Rate | D67: $/kWh | E67: 0.0011 | H67: 2_GENERAL SERVICE LESS THAN 50 KW SERVICE CLASSIFICATION | I67: B | M67: 2_GENERAL SERVICE LESS THAN 50 KW SERVICE CLASSIFICATION_LV | Z67: Low Voltage Service Rate
B68: Rate Rider for Disposition of Deferral/Variance Accounts (2018) - effective until April 30, 2019 | D68: $/kWh | E68: 0.0037 | H68: 2_GENERAL SERVICE LESS THAN 50 KW SERVICE CLASSIFICATION | I68: B | M68: 2_GENERAL SERVICE LESS THAN 50 KW SERVICE CLASSIFICATION_DEFVAR_ALL | Q68: 2019-04-30 | R68: X | Z68: Rate Rider for Disposition of Deferral/Variance Accounts (2018) - effective until April 30, 2019
B69: Rate Rider for Disposition of Account 1595 (2017) Applicable only for Non-RPP Customers - effective until April 30, 2022 | D69: $/kWh | E69: 0.0045 | H69: 2_GENERAL SERVICE LESS THAN 50 KW SERVICE CLASSIFICATION | I69: B | M69: 2_GENERAL SERVICE LESS THAN 50 KW SERVICE CLASSIFICATION_VR_RR_301 | Z69: Rate Rider for Disposition of Account 1595 (2017) Applicable only for Non-RPP Customers - effective until April 30, 2022
B70: Rate Rider for Application of Tax Change (2018) - effective until April 30, 2019 | D70: $/kWh | E70: 0.0001 | H70: 2_GENERAL SERVICE LESS THAN 50 KW SERVICE CLASSIFICATION | I70: A | M70: 2_GENERAL SERVICE LESS THAN 50 KW SERVICE CLASSIFICATION_STS | Q70: 2019-04-30 | R70: X | Z70: Rate Rider for Application of Tax Change (2018) - effective until April 30, 2019
B71: Retail Transmission Rate - Network Service Rate | D71: $/kWh | E71: 0.0064 | H71: 2_GENERAL SERVICE LESS THAN 50 KW SERVICE CLASSIFICATION | I71: C | M71: 2_GENERAL SERVICE LESS THAN 50 KW SERVICE CLASSIFICATION_Retail Transmission Rate - Network Service Rate | Z71: Retail Transmission Rate - Network Service Rate
B72: Retail Transmission Rate - Line and Transformation Connection Service Rate | D72: $/kWh | E72: 0.0046 | H72: 2_GENERAL SERVICE LESS THAN 50 KW SERVICE CLASSIFICATION | I72: C | M72: 2_GENERAL SERVICE LESS THAN 50 KW SERVICE CLASSIFICATION_Retail Transmission Rate - Line and Transformation Connection Service Rate | Z72: Retail Transmission Rate - Line and Transformation Connection Service Rate
B74: MONTHLY RATES AND CHARGES - Regulatory Component | H74: 2_MRC_Reg | Z74: MONTHLY RATES AND CHARGES - Regulatory Component
B76: Wholesale Market Service Rate (WMS) - not including CBR | D76: $/kWh | E76: 0.0032 | H76: 2_GENERAL SERVICE LESS THAN 50 KW SERVICE CLASSIFICATION | I76: T | M76: 2_GENERAL SERVICE LESS THAN 50 KW SERVICE CLASSIFICATION_WMSR | Z76: Wholesale Market Service Rate (WMS) - not including CBR
B77: Capacity Based Recovery (CBR) - Applicable for Class B Customers | D77: $/kWh | E77: 0.0004 | H77: 2_GENERAL SERVICE LESS THAN 50 KW SERVICE CLASSIFICATION | I77: T | M77: 2_GENERAL SERVICE LESS THAN 50 KW SERVICE CLASSIFICATION_WMSR | Z77: Capacity Based Recovery (CBR) - Applicable for Class B Customers
B78: Rural or Remote Electricity Rate Protection Charge (RRRP) | D78: $/kWh | E78: 0.0003 | H78: 2_GENERAL SERVICE LESS THAN 50 KW SERVICE CLASSIFICATION | I78: T | M78: 2_GENERAL SERVICE LESS THAN 50 KW SERVICE CLASSIFICATION_RRRP | Z78: Rural or Remote Electricity Rate Protection Charge (RRRP)
B79: Standard Supply Service - Administrative Charge (if applicable) | D79: $ | E79: 0.25 | H79: 2_GENERAL SERVICE LESS THAN 50 KW SERVICE CLASSIFICATION | I79: T | M79: 2_GENERAL SERVICE LESS THAN 50 KW SERVICE CLASSIFICATION_SSS | Z79: Standard Supply Service - Administrative Charge (if applicable) | AS79: X
B80: GENERAL SERVICE 50 TO 4,999 KW SERVICE CLASSIFICATION | H80: 3_GENERAL SERVICE 50 to 4,999 kW SERVICE CLASSIFICATION | AA80: GENERAL SERVICE 50 TO 4,999 KW SERVICE CLASSIFICATION
B81: This classification applies to a non residential account whose average monthly maximum demand used for billing purposes is equal to or greater than, or is forecast to be equal to or greater than, 50 kW but less than 5,000 kW. Further servicing details are available in the distributor’s Conditions of Service. | H81: 3_GENERAL SERVICE 50 to 4,999 kW SERVICE CLASSIFICATION | AA81: This classification applies to a non residential account whose average monthly maximum demand used for billing purposes is equal to or greater than, or is forecast to be equal to or greater than, 50 kW but less than 5,000 kW. Further servicing details are available in the distributor’s Conditions of Service.
B83: APPLICATION | H83: 3_APPLICATION | AA83: APPLICATION
B85: No rates and charges for the distribution of electricity and charges to meet the costs of any work or service done or furnished for the purpose of the distribution of electricity shall be made except as permitted by this schedule, unless required by the Distributor’s Licence or a Code or Order of the Ontario Energy Board, and amendments thereto as approved by the Ontario Energy Board, or as specified herein. | H85: 3_GENERAL SERVICE 50 to 4,999 kW SERVICE CLASSIFICATION | AA85: No rates and charges for the distribution of electricity and charges to meet the costs of any work or service done or furnished for the purpose of the distribution of electricity shall be made except as permitted by this schedule, unless required by the Distributor’s Licence or a Code or Order of the Ontario Energy Board, and amendments thereto as approved by the Ontario Energy Board, or as specified herein.
B87: Unless specifically noted, this schedule does not contain any charges for the electricity commodity, be it under the Regulated Price Plan, a contract with a retailer or the wholesale market price, as applicable. In addition, the charges in the MONTHLY RATES AND CHARGES - Regulatory Component of this schedule do not apply to a customer that is an embedded wholesale market participant. | H87: 3_GENERAL SERVICE 50 to 4,999 kW SERVICE CLASSIFICATION | AA87: Unless specifically noted, this schedule does not contain any charges for the electricity commodity, be it under the Regulated Price Plan, a contract with a retailer or the wholesale market price, as applicable. In addition, the charges in the MONTHLY RATES AND CHARGES - Regulatory Component of this schedule do not apply to a customer that is an embedded wholesale market participant.
B89: It should be noted that this schedule does not list any charges, assessments, or credits that are required by law to be invoiced by a distributor and that are not subject to Ontario Energy Board approval, such as the Debt Retirement Charge, the Global Adjustment and the HST. | H89: 3_GENERAL SERVICE 50 to 4,999 kW SERVICE CLASSIFICATION | AA89: It should be noted that this schedule does not list any charges, assessments, or credits that are required by law to be invoiced by a distributor and that are not subject to Ontario Energy Board approval, such as the Debt Retirement Charge, the Global Adjustment and the HST.
B91: MONTHLY RATES AND CHARGES - Delivery Component | H91: 3_MRC_Del | AA91: MONTHLY RATES AND CHARGES - Delivery Component
B93: Service Charge | D93: $ | E93: 190.64 | H93: 3_GENERAL SERVICE 50 to 4,999 kW SERVICE CLASSIFICATION | I93: A | M93: 3_GENERAL SERVICE 50 to 4,999 kW SERVICE CLASSIFICATION_MSC | Z93: Service Charge
B94: Distribution Volumetric Rate | D94: $/kW | E94: 1.6129 | H94: 3_GENERAL SERVICE 50 to 4,999 kW SERVICE CLASSIFICATION | I94: A | M94: 3_GENERAL SERVICE 50 to 4,999 kW SERVICE CLASSIFICATION_DVC | Z94: Distribution Volumetric Rate
B95: Low Voltage Service Rate | D95: $/kW | E95: 0.4332 | H95: 3_GENERAL SERVICE 50 to 4,999 kW SERVICE CLASSIFICATION | I95: B | M95: 3_GENERAL SERVICE 50 to 4,999 kW SERVICE CLASSIFICATION_LV | Z95: Low Voltage Service Rate
B96: Rate Rider for Disposition of Deferral/Variance Accounts (2018) - effective until April 30, 2019 Applicable only for Non-Wholesale Market Participants | D96: $/kW | E96: -0.3101 | H96: 3_GENERAL SERVICE 50 to 4,999 kW SERVICE CLASSIFICATION | I96: B | M96: 3_GENERAL SERVICE 50 to 4,999 kW SERVICE CLASSIFICATION_DEFVAR_ALL | Q96: 2019-04-30 | R96: X | Z96: Rate Rider for Disposition of Deferral/Variance Accounts (2018) - effective until April 30, 2019 Applicable only for Non-Wholesale Market Participants
B97: Rate Rider for Disposition of Deferral/Variance Accounts (2018) - effective until April 30, 2019 | D97: $/kW | E97: 1.408 | H97: 3_GENERAL SERVICE 50 to 4,999 kW SERVICE CLASSIFICATION | I97: B | M97: 3_GENERAL SERVICE 50 to 4,999 kW SERVICE CLASSIFICATION_DEFVAR_ALL | Q97: 2019-04-30 | R97: X | Z97: Rate Rider for Disposition of Deferral/Variance Accounts (2018) - effective until April 30, 2019
B98: Rate Rider for Disposition of Account 1595 (2017) Applicable only for Non-RPP Customers - effective until April 30, 2022 | D98: $/kWh | E98: 0.0045 | H98: 3_GENERAL SERVICE 50 to 4,999 kW SERVICE CLASSIFICATION | I98: B | M98: 3_GENERAL SERVICE 50 to 4,999 kW SERVICE CLASSIFICATION_VR_RR_305 | Z98: Rate Rider for Disposition of Account 1595 (2017) Applicable only for Non-RPP Customers - effective until April 30, 2022
B99: Rate Rider for Disposition of Account 1595 (2017) Applicable only for Non-RPP Customers excluding Wholesale Market Participant customers, and those customers who paid a Rate Rider for the Disposition of Global Adjustment for a minimum of 12 months - effective until April 30, 2022 | D99: $/kWh | E99: 0.0056 | H99: 3_GENERAL SERVICE 50 to 4,999 kW SERVICE CLASSIFICATION | I99: B | M99: 3_GENERAL SERVICE 50 to 4,999 kW SERVICE CLASSIFICATION_VR_RR_306 | Q99: 2022-04-30 | Z99: Rate Rider for Disposition of Account 1595 (2017) Applicable only for Non-RPP Customers excluding Wholesale Market Participant customers, and those customers who paid a Rate Rider for the Disposition of Global Adjustment for a minimum of 12 months - effective until April 30, 2022
B100: Rate Rider for Application of Tax Change (2018) - effective until April 30, 2019 | D100: $/kW | E100: 0.0133 | H100: 3_GENERAL SERVICE 50 to 4,999 kW SERVICE CLASSIFICATION | I100: A | M100: 3_GENERAL SERVICE 50 to 4,999 kW SERVICE CLASSIFICATION_STS | Q100: 2019-04-30 | R100: X | Z100: Rate Rider for Application of Tax Change (2018) - effective until April 30, 2019
B101: Retail Transmission Rate - Network Service Rate | D101: $/kW | E101: 2.6785 | H101: 3_GENERAL SERVICE 50 to 4,999 kW SERVICE CLASSIFICATION | I101: C | M101: 3_GENERAL SERVICE 50 to 4,999 kW SERVICE CLASSIFICATION_Retail Transmission Rate - Network Service Rate | Z101: Retail Transmission Rate - Network Service Rate
B102: Retail Transmission Rate - Line and Transformation Connection Service Rate | D102: $/kW | E102: 1.8973 | H102: 3_GENERAL SERVICE 50 to 4,999 kW SERVICE CLASSIFICATION | I102: C | M102: 3_GENERAL SERVICE 50 to 4,999 kW SERVICE CLASSIFICATION_Retail Transmission Rate - Line and Transformation Connection Service Rate | Z102: Retail Transmission Rate - Line and Transformation Connection Service Rate
B104: MONTHLY RATES AND CHARGES - Regulatory Component | H104: 3_MRC_Reg | Z104: MONTHLY RATES AND CHARGES - Regulatory Component
B106: Wholesale Market Service Rate (WMS) - not including CBR | D106: $/kWh | E106: 0.0032 | H106: 3_GENERAL SERVICE 50 to 4,999 kW SERVICE CLASSIFICATION | I106: T | M106: 3_GENERAL SERVICE 50 to 4,999 kW SERVICE CLASSIFICATION_WMSR | Z106: Wholesale Market Service Rate (WMS) - not including CBR
B107: Capacity Based Recovery (CBR) - Applicable for Class B Customers | D107: $/kWh | E107: 0.0004 | H107: 3_GENERAL SERVICE 50 to 4,999 kW SERVICE CLASSIFICATION | I107: T | M107: 3_GENERAL SERVICE 50 to 4,999 kW SERVICE CLASSIFICATION_WMSR | Z107: Capacity Based Recovery (CBR) - Applicable for Class B Customers
B108: Rural or Remote Electricity Rate Protection Charge (RRRP) | D108: $/kWh | E108: 0.0003 | H108: 3_GENERAL SERVICE 50 to 4,999 kW SERVICE CLASSIFICATION | I108: T | M108: 3_GENERAL SERVICE 50 to 4,999 kW SERVICE CLASSIFICATION_RRRP | Z108: Rural or Remote Electricity Rate Protection Charge (RRRP)
B109: Standard Supply Service - Administrative Charge (if applicable) | D109: $ | E109: 0.25 | H109: 3_GENERAL SERVICE 50 to 4,999 kW SERVICE CLASSIFICATION | I109: T | M109: 3_GENERAL SERVICE 50 to 4,999 kW SERVICE CLASSIFICATION_SSS | Z109: Standard Supply Service - Administrative Charge (if applicable) | AS109: X
B110: UNMETERED SCATTERED LOAD SERVICE CLASSIFICATION | H110: 4_UNMETERED SCATTERED LOAD SERVICE CLASSIFICATION | AA110: UNMETERED SCATTERED LOAD SERVICE CLASSIFICATION
B111: This classification applies to an account whose average monthly maximum demand is less than, or is forecast to be less than, 50kW and the consumption is unmetered. Such connections include cable TV power packs, bus shelters, telephone booths, traffic lights, railway crossings, etc. The level of the consumption will be agreed to by the distributor and the customer, based on detailed manufacturer information/documentation with regard to electrical consumption of the unmetered load or periodic monitoring of actual consumption. E.L.K. is not in the practice of connecting new unmetered scattered load services. Further servicing details are available in the distributor’s Conditions of Service. | H111: 4_UNMETERED SCATTERED LOAD SERVICE CLASSIFICATION | AA111: This classification applies to an account whose average monthly maximum demand is less than, or is forecast to be less than, 50kW and the consumption is unmetered. Such connections include cable TV power packs, bus shelters, telephone booths, traffic lights, railway crossings, etc. The level of the consumption will be agreed to by the distributor and the customer, based on detailed manufacturer information/documentation with regard to electrical consumption of the unmetered load or periodic monitoring of actual consumption. E.L.K. is not in the practice of connecting new unmetered scattered load services. Further servicing details are available in the distributor’s Conditions of Service.
B113: APPLICATION | H113: 4_APPLICATION | AA113: APPLICATION
B115: The application of these rates and charges shall be in accordance with the Licence of the Distributor and any Code or Order of the Ontario Energy Board, and amendments thereto as approved by the Ontario Energy Board, which may be applicable to the administration of this schedule. | H115: 4_UNMETERED SCATTERED LOAD SERVICE CLASSIFICATION | AA115: The application of these rates and charges shall be in accordance with the Licence of the Distributor and any Code or Order of the Ontario Energy Board, and amendments thereto as approved by the Ontario Energy Board, which may be applicable to the administration of this schedule.
B117: No rates and charges for the distribution of electricity and charges to meet the costs of any work or service done or furnished for the purpose of the distribution of electricity shall be made except as permitted by this schedule, unless required by the Distributor’s Licence or a Code or Order of the Ontario Energy Board, and amendments thereto as approved by the Ontario Energy Board, or as specified herein. | H117: 4_UNMETERED SCATTERED LOAD SERVICE CLASSIFICATION | AA117: No rates and charges for the distribution of electricity and charges to meet the costs of any work or service done or furnished for the purpose of the distribution of electricity shall be made except as permitted by this schedule, unless required by the Distributor’s Licence or a Code or Order of the Ontario Energy Board, and amendments thereto as approved by the Ontario Energy Board, or as specified herein.
B119: Unless specifically noted, this schedule does not contain any charges for the electricity commodity, be it under the Regulated Price Plan, a contract with a retailer or the wholesale market price, as applicable. In addition, the charges in the MONTHLY RATES AND CHARGES - Regulatory Component of this schedule do not apply to a customer that is an embedded wholesale market participant. | H119: 4_UNMETERED SCATTERED LOAD SERVICE CLASSIFICATION | AA119: Unless specifically noted, this schedule does not contain any charges for the electricity commodity, be it under the Regulated Price Plan, a contract with a retailer or the wholesale market price, as applicable. In addition, the charges in the MONTHLY RATES AND CHARGES - Regulatory Component of this schedule do not apply to a customer that is an embedded wholesale market participant.
B121: It should be noted that this schedule does not list any charges, assessments, or credits that are required by law to be invoiced by a distributor and that are not subject to Ontario Energy Board approval, such as the Debt Retirement Charge, the Global Adjustment and the HST. | H121: 4_UNMETERED SCATTERED LOAD SERVICE CLASSIFICATION | AA121: It should be noted that this schedule does not list any charges, assessments, or credits that are required by law to be invoiced by a distributor and that are not subject to Ontario Energy Board approval, such as the Debt Retirement Charge, the Global Adjustment and the HST.
B123: MONTHLY RATES AND CHARGES - Delivery Component | H123: 4_MRC_Del | AA123: MONTHLY RATES AND CHARGES - Delivery Component
B125: Service Charge (per connection) | D125: $ | E125: 6.53 | H125: 4_UNMETERED SCATTERED LOAD SERVICE CLASSIFICATION | I125: A | M125: 4_UNMETERED SCATTERED LOAD SERVICE CLASSIFICATION_MSC | Z125: Service Charge (per connection)
B126: Distribution Volumetric Rate | D126: $/kWh | E126: 0.0019 | H126: 4_UNMETERED SCATTERED LOAD SERVICE CLASSIFICATION | I126: A | M126: 4_UNMETERED SCATTERED LOAD SERVICE CLASSIFICATION_DVC | Z126: Distribution Volumetric Rate
B127: Low Voltage Service Rate | D127: $/kWh | E127: 0.0011 | H127: 4_UNMETERED SCATTERED LOAD SERVICE CLASSIFICATION | I127: B | M127: 4_UNMETERED SCATTERED LOAD SERVICE CLASSIFICATION_LV | Z127: Low Voltage Service Rate
B128: Rate Rider for Disposition of Deferral/Variance Accounts (2018) - effective until April 30, 2019 | D128: $/kWh | E128: 0.0036 | H128: 4_UNMETERED SCATTERED LOAD SERVICE CLASSIFICATION | I128: B | M128: 4_UNMETERED SCATTERED LOAD SERVICE CLASSIFICATION_DEFVAR_ALL | Q128: 2019-04-30 | R128: X | Z128: Rate Rider for Disposition of Deferral/Variance Accounts (2018) - effective until April 30, 2019
B129: Rate Rider for Disposition of Account 1595 (2017) Applicable only for Non-RPP Customers - effective until April 30, 2022 | D129: $/kWh | E129: 0.0045 | H129: 4_UNMETERED SCATTERED LOAD SERVICE CLASSIFICATION | I129: B | M129: 4_UNMETERED SCATTERED LOAD SERVICE CLASSIFICATION_VR_RR_309 | Z129: Rate Rider for Disposition of Account 1595 (2017) Applicable only for Non-RPP Customers - effective until April 30, 2022
B130: Rate Rider for Application of Tax Change (2018) - effective until April 30, 2019 | D130: $/kWh | E130: 0.0001 | H130: 4_UNMETERED SCATTERED LOAD SERVICE CLASSIFICATION | I130: A | M130: 4_UNMETERED SCATTERED LOAD SERVICE CLASSIFICATION_STS | Q130: 2019-04-30 | R130: X | Z130: Rate Rider for Application of Tax Change (2018) - effective until April 30, 2019
B131: Retail Transmission Rate - Network Service Rate | D131: $/kWh | E131: 0.0064 | H131: 4_UNMETERED SCATTERED LOAD SERVICE CLASSIFICATION | I131: C | M131: 4_UNMETERED SCATTERED LOAD SERVICE CLASSIFICATION_Retail Transmission Rate - Network Service Rate | Z131: Retail Transmission Rate - Network Service Rate
B132: Retail Transmission Rate - Line and Transformation Connection Service Rate | D132: $/kWh | E132: 0.0046 | H132: 4_UNMETERED SCATTERED LOAD SERVICE CLASSIFICATION | I132: C | M132: 4_UNMETERED SCATTERED LOAD SERVICE CLASSIFICATION_Retail Transmission Rate - Line and Transformation Connection Service Rate | Z132: Retail Transmission Rate - Line and Transformation Connection Service Rate
B134: MONTHLY RATES AND CHARGES - Regulatory Component | H134: 4_MRC_Reg | Z134: MONTHLY RATES AND CHARGES - Regulatory Component
B136: Wholesale Market Service Rate (WMS) - not including CBR | D136: $/kWh | E136: 0.0032 | H136: 4_UNMETERED SCATTERED LOAD SERVICE CLASSIFICATION | I136: T | M136: 4_UNMETERED SCATTERED LOAD SERVICE CLASSIFICATION_WMSR | Z136: Wholesale Market Service Rate (WMS) - not including CBR
B137: Capacity Based Recovery (CBR) - Applicable for Class B Customers | D137: $/kWh | E137: 0.0004 | H137: 4_UNMETERED SCATTERED LOAD SERVICE CLASSIFICATION | I137: T | M137: 4_UNMETERED SCATTERED LOAD SERVICE CLASSIFICATION_WMSR | Z137: Capacity Based Recovery (CBR) - Applicable for Class B Customers
B138: Rural or Remote Electricity Rate Protection Charge (RRRP) | D138: $/kWh | E138: 0.0003 | H138: 4_UNMETERED SCATTERED LOAD SERVICE CLASSIFICATION | I138: T | M138: 4_UNMETERED SCATTERED LOAD SERVICE CLASSIFICATION_RRRP | Z138: Rural or Remote Electricity Rate Protection Charge (RRRP)
B139: Standard Supply Service - Administrative Charge (if applicable) | D139: $ | E139: 0.25 | H139: 4_UNMETERED SCATTERED LOAD SERVICE CLASSIFICATION | I139: T | M139: 4_UNMETERED SCATTERED LOAD SERVICE CLASSIFICATION_SSS | Z139: Standard Supply Service - Administrative Charge (if applicable) | AS139: X
B140: SENTINEL LIGHTING SERVICE CLASSIFICATION | H140: 5_SENTINEL LIGHTING SERVICE CLASSIFICATION | AA140: SENTINEL LIGHTING SERVICE CLASSIFICATION
B141: This classification refers to accounts that are an unmetered lighting load supplied to a sentinel light. E.L.K. is not in the practice of connecting new unmetered scattered load services. Further servicing details are available in the distributor’s Conditions of Service. | H141: 5_SENTINEL LIGHTING SERVICE CLASSIFICATION | AA141: This classification refers to accounts that are an unmetered lighting load supplied to a sentinel light. E.L.K. is not in the practice of connecting new unmetered scattered load services. Further servicing details are available in the distributor’s Conditions of Service.
B143: APPLICATION | H143: 5_APPLICATION | AA143: APPLICATION
B145: The application of these rates and charges shall be in accordance with the Licence of the Distributor and any Code or Order of the Ontario Energy Board, and amendments thereto as approved by the Ontario Energy Board, which may be applicable to the administration of this schedule. | H145: 5_SENTINEL LIGHTING SERVICE CLASSIFICATION | AA145: The application of these rates and charges shall be in accordance with the Licence of the Distributor and any Code or Order of the Ontario Energy Board, and amendments thereto as approved by the Ontario Energy Board, which may be applicable to the administration of this schedule.
B147: No rates and charges for the distribution of electricity and charges to meet the costs of any work or service done or furnished for the purpose of the distribution of electricity shall be made except as permitted by this schedule, unless required by the Distributor’s Licence or a Code or Order of the Ontario Energy Board, and amendments thereto as approved by the Ontario Energy Board, or as specified herein. | H147: 5_SENTINEL LIGHTING SERVICE CLASSIFICATION | AA147: No rates and charges for the distribution of electricity and charges to meet the costs of any work or service done or furnished for the purpose of the distribution of electricity shall be made except as permitted by this schedule, unless required by the Distributor’s Licence or a Code or Order of the Ontario Energy Board, and amendments thereto as approved by the Ontario Energy Board, or as specified herein.
B149: Unless specifically noted, this schedule does not contain any charges for the electricity commodity, be it under the Regulated Price Plan, a contract with a retailer or the wholesale market price, as applicable. In addition, the charges in the MONTHLY RATES AND CHARGES - Regulatory Component of this schedule do not apply to a customer that is an embedded wholesale market participant. | H149: 5_SENTINEL LIGHTING SERVICE CLASSIFICATION | AA149: Unless specifically noted, this schedule does not contain any charges for the electricity commodity, be it under the Regulated Price Plan, a contract with a retailer or the wholesale market price, as applicable. In addition, the charges in the MONTHLY RATES AND CHARGES - Regulatory Component of this schedule do not apply to a customer that is an embedded wholesale market participant.
B151: It should be noted that this schedule does not list any charges, assessments, or credits that are required by law to be invoiced by a distributor and that are not subject to Ontario Energy Board approval, such as the Debt Retirement Charge, the Global Adjustment and the HST. | H151: 5_SENTINEL LIGHTING SERVICE CLASSIFICATION | AA151: It should be noted that this schedule does not list any charges, assessments, or credits that are required by law to be invoiced by a distributor and that are not subject to Ontario Energy Board approval, such as the Debt Retirement Charge, the Global Adjustment and the HST.
B153: MONTHLY RATES AND CHARGES - Delivery Component | H153: 5_MRC_Del | AA153: MONTHLY RATES AND CHARGES - Delivery Component
B155: Service Charge (per connection) | D155: $ | E155: 3.19 | H155: 5_SENTINEL LIGHTING SERVICE CLASSIFICATION | I155: A | M155: 5_SENTINEL LIGHTING SERVICE CLASSIFICATION_MSC | Z155: Service Charge (per connection)
B156: Distribution Volumetric Rate | D156: $/kW | E156: 6.0022 | H156: 5_SENTINEL LIGHTING SERVICE CLASSIFICATION | I156: A | M156: 5_SENTINEL LIGHTING SERVICE CLASSIFICATION_DVC | Z156: Distribution Volumetric Rate
B157: Low Voltage Service Rate | D157: $/kW | E157: 0.3421 | H157: 5_SENTINEL LIGHTING SERVICE CLASSIFICATION | I157: B | M157: 5_SENTINEL LIGHTING SERVICE CLASSIFICATION_LV | Z157: Low Voltage Service Rate
B158: Rate Rider for Disposition of Deferral/Variance Accounts (2018) - effective until April 30, 2019 | D158: $/kW | E158: 1.4444 | H158: 5_SENTINEL LIGHTING SERVICE CLASSIFICATION | I158: B | M158: 5_SENTINEL LIGHTING SERVICE CLASSIFICATION_DEFVAR_ALL | Q158: 2019-04-30 | R158: X | Z158: Rate Rider for Disposition of Deferral/Variance Accounts (2018) - effective until April 30, 2019
B159: Rate Rider for Disposition of Account 1595 (2017) Applicable only for Non-RPP Customers - effective until April 30, 2022 | D159: $/kWh | E159: 0.0045 | H159: 5_SENTINEL LIGHTING SERVICE CLASSIFICATION | I159: B | M159: 5_SENTINEL LIGHTING SERVICE CLASSIFICATION_VR_RR_312 | Z159: Rate Rider for Disposition of Account 1595 (2017) Applicable only for Non-RPP Customers - effective until April 30, 2022
B160: Rate Rider for Application of Tax Change (2018) - effective until April 30, 2019 | D160: $/kW | E160: 0.0042 | H160: 5_SENTINEL LIGHTING SERVICE CLASSIFICATION | I160: A | M160: 5_SENTINEL LIGHTING SERVICE CLASSIFICATION_STS | Q160: 2019-04-30 | R160: X | Z160: Rate Rider for Application of Tax Change (2018) - effective until April 30, 2019
B161: Retail Transmission Rate - Network Service Rate | D161: $/kW | E161: 2.03 | H161: 5_SENTINEL LIGHTING SERVICE CLASSIFICATION | I161: C | M161: 5_SENTINEL LIGHTING SERVICE CLASSIFICATION_Retail Transmission Rate - Network Service Rate | Z161: Retail Transmission Rate - Network Service Rate
B162: Retail Transmission Rate - Line and Transformation Connection Service Rate | D162: $/kW | E162: 1.4986 | H162: 5_SENTINEL LIGHTING SERVICE CLASSIFICATION | I162: C | M162: 5_SENTINEL LIGHTING SERVICE CLASSIFICATION_Retail Transmission Rate - Line and Transformation Connection Service Rate | Z162: Retail Transmission Rate - Line and Transformation Connection Service Rate
B164: MONTHLY RATES AND CHARGES - Regulatory Component | H164: 5_MRC_Reg | Z164: MONTHLY RATES AND CHARGES - Regulatory Component
B166: Wholesale Market Service Rate (WMS) - not including CBR | D166: $/kWh | E166: 0.0032 | H166: 5_SENTINEL LIGHTING SERVICE CLASSIFICATION | I166: T | M166: 5_SENTINEL LIGHTING SERVICE CLASSIFICATION_WMSR | Z166: Wholesale Market Service Rate (WMS) - not including CBR
B167: Capacity Based Recovery (CBR) - Applicable for Class B Customers | D167: $/kWh | E167: 0.0004 | H167: 5_SENTINEL LIGHTING SERVICE CLASSIFICATION | I167: T | M167: 5_SENTINEL LIGHTING SERVICE CLASSIFICATION_WMSR | Z167: Capacity Based Recovery (CBR) - Applicable for Class B Customers
B168: Rural or Remote Electricity Rate Protection Charge (RRRP) | D168: $/kWh | E168: 0.0003 | H168: 5_SENTINEL LIGHTING SERVICE CLASSIFICATION | I168: T | M168: 5_SENTINEL LIGHTING SERVICE CLASSIFICATION_RRRP | Z168: Rural or Remote Electricity Rate Protection Charge (RRRP)
B169: Standard Supply Service - Administrative Charge (if applicable) | D169: $ | E169: 0.25 | H169: 5_SENTINEL LIGHTING SERVICE CLASSIFICATION | I169: T | M169: 5_SENTINEL LIGHTING SERVICE CLASSIFICATION_SSS | Z169: Standard Supply Service - Administrative Charge (if applicable) | AS169: X
B170: STREET LIGHTING SERVICE CLASSIFICATION | H170: 6_STREET LIGHTING SERVICE CLASSIFICATION | AA170: STREET LIGHTING SERVICE CLASSIFICATION
B172: APPLICATION | H172: 6_APPLICATION | AA172: APPLICATION
B174: The application of these rates and charges shall be in accordance with the Licence of the Distributor and any Code or Order of the Ontario Energy Board, and amendments thereto as approved by the Ontario Energy Board, which may be applicable to the administration of this schedule. | H174: 6_STREET LIGHTING SERVICE CLASSIFICATION | AA174: The application of these rates and charges shall be in accordance with the Licence of the Distributor and any Code or Order of the Ontario Energy Board, and amendments thereto as approved by the Ontario Energy Board, which may be applicable to the administration of this schedule.
B176: No rates and charges for the distribution of electricity and charges to meet the costs of any work or service done or furnished for the purpose of the distribution of electricity shall be made except as permitted by this schedule, unless required by the Distributor’s Licence or a Code or Order of the Ontario Energy Board, and amendments thereto as approved by the Ontario Energy Board, or as specified herein. | H176: 6_STREET LIGHTING SERVICE CLASSIFICATION | AA176: No rates and charges for the distribution of electricity and charges to meet the costs of any work or service done or furnished for the purpose of the distribution of electricity shall be made except as permitted by this schedule, unless required by the Distributor’s Licence or a Code or Order of the Ontario Energy Board, and amendments thereto as approved by the Ontario Energy Board, or as specified herein.
B178: Unless specifically noted, this schedule does not contain any charges for the electricity commodity, be it under the Regulated Price Plan, a contract with a retailer or the wholesale market price, as applicable. In addition, the charges in the MONTHLY RATES AND CHARGES - Regulatory Component of this schedule do not apply to a customer that is an embedded wholesale market participant. | H178: 6_STREET LIGHTING SERVICE CLASSIFICATION | AA178: Unless specifically noted, this schedule does not contain any charges for the electricity commodity, be it under the Regulated Price Plan, a contract with a retailer or the wholesale market price, as applicable. In addition, the charges in the MONTHLY RATES AND CHARGES - Regulatory Component of this schedule do not apply to a customer that is an embedded wholesale market participant.
B180: It should be noted that this schedule does not list any charges, assessments, or credits that are required by law to be invoiced by a distributor and that are not subject to Ontario Energy Board approval, such as the Debt Retirement Charge, the Global Adjustment and the HST. | H180: 6_STREET LIGHTING SERVICE CLASSIFICATION | AA180: It should be noted that this schedule does not list any charges, assessments, or credits that are required by law to be invoiced by a distributor and that are not subject to Ontario Energy Board approval, such as the Debt Retirement Charge, the Global Adjustment and the HST.
B182: MONTHLY RATES AND CHARGES - Delivery Component | H182: 6_MRC_Del | AA182: MONTHLY RATES AND CHARGES - Delivery Component
B184: Service Charge (per connection) | D184: $ | E184: 1.2 | H184: 6_STREET LIGHTING SERVICE CLASSIFICATION | I184: A | M184: 6_STREET LIGHTING SERVICE CLASSIFICATION_MSC | Z184: Service Charge (per connection)
B185: Distribution Volumetric Rate | D185: $/kW | E185: 11.6563 | H185: 6_STREET LIGHTING SERVICE CLASSIFICATION | I185: A | M185: 6_STREET LIGHTING SERVICE CLASSIFICATION_DVC | Z185: Distribution Volumetric Rate
B186: Low Voltage Service Rate | D186: $/kW | E186: 0.3351 | H186: 6_STREET LIGHTING SERVICE CLASSIFICATION | I186: B | M186: 6_STREET LIGHTING SERVICE CLASSIFICATION_LV | Z186: Low Voltage Service Rate
B187: Rate Rider for Disposition of Deferral/Variance Accounts (2018) - effective until April 30, 2019 | D187: $/kW | E187: 0.9438 | H187: 6_STREET LIGHTING SERVICE CLASSIFICATION | I187: B | M187: 6_STREET LIGHTING SERVICE CLASSIFICATION_DEFVAR_ALL | Q187: 2019-04-30 | R187: X | Z187: Rate Rider for Disposition of Deferral/Variance Accounts (2018) - effective until April 30, 2019
B188: Rate Rider for Disposition of Account 1595 (2017) Applicable only for Non-RPP Customers - effective until April 30, 2022 | D188: $/kWh | E188: 0.0045 | H188: 6_STREET LIGHTING SERVICE CLASSIFICATION | I188: B | M188: 6_STREET LIGHTING SERVICE CLASSIFICATION_VR_RR_315 | Z188: Rate Rider for Disposition of Account 1595 (2017) Applicable only for Non-RPP Customers - effective until April 30, 2022
B189: Rate Rider for Application of Tax Change (2018) - effective until April 30, 2019 | D189: $/kW | E189: 0.0878 | H189: 6_STREET LIGHTING SERVICE CLASSIFICATION | I189: A | M189: 6_STREET LIGHTING SERVICE CLASSIFICATION_STS | Q189: 2019-04-30 | R189: X | Z189: Rate Rider for Application of Tax Change (2018) - effective until April 30, 2019
B190: Retail Transmission Rate - Network Service Rate | D190: $/kW | E190: 2.0202 | H190: 6_STREET LIGHTING SERVICE CLASSIFICATION | I190: C | M190: 6_STREET LIGHTING SERVICE CLASSIFICATION_Retail Transmission Rate - Network Service Rate | Z190: Retail Transmission Rate - Network Service Rate
B191: Retail Transmission Rate - Line and Transformation Connection Service Rate | D191: $/kW | E191: 1.4677 | H191: 6_STREET LIGHTING SERVICE CLASSIFICATION | I191: C | M191: 6_STREET LIGHTING SERVICE CLASSIFICATION_Retail Transmission Rate - Line and Transformation Connection Service Rate | Z191: Retail Transmission Rate - Line and Transformation Connection Service Rate
B193: MONTHLY RATES AND CHARGES - Regulatory Component | H193: 6_MRC_Reg | Z193: MONTHLY RATES AND CHARGES - Regulatory Component
B195: Wholesale Market Service Rate (WMS) - not including CBR | D195: $/kWh | E195: 0.0032 | H195: 6_STREET LIGHTING SERVICE CLASSIFICATION | I195: T | M195: 6_STREET LIGHTING SERVICE CLASSIFICATION_WMSR | Z195: Wholesale Market Service Rate (WMS) - not including CBR
B196: Capacity Based Recovery (CBR) - Applicable for Class B Customers | D196: $/kWh | E196: 0.0004 | H196: 6_STREET LIGHTING SERVICE CLASSIFICATION | I196: T | M196: 6_STREET LIGHTING SERVICE CLASSIFICATION_WMSR | Z196: Capacity Based Recovery (CBR) - Applicable for Class B Customers
B197: Rural or Remote Electricity Rate Protection Charge (RRRP) | D197: $/kWh | E197: 0.0003 | H197: 6_STREET LIGHTING SERVICE CLASSIFICATION | I197: T | M197: 6_STREET LIGHTING SERVICE CLASSIFICATION_RRRP | Z197: Rural or Remote Electricity Rate Protection Charge (RRRP)
B198: Standard Supply Service - Administrative Charge (if applicable) | D198: $ | E198: 0.25 | H198: 6_STREET LIGHTING SERVICE CLASSIFICATION | I198: T | M198: 6_STREET LIGHTING SERVICE CLASSIFICATION_SSS | Z198: Standard Supply Service - Administrative Charge (if applicable) | AS198: X
B199: EMBEDDED DISTRIBUTOR SERVICE CLASSIFICATION | H199: 7_EMBEDDED DISTRIBUTOR SERVICE CLASSIFICATION | AA199: EMBEDDED DISTRIBUTOR SERVICE CLASSIFICATION
B200: This classification applies to an electricity distributor licensed by the Ontario Energy Board, and provided electricity by means of E.L.K. Energy Inc.’s distribution facilities. Further servicing details are available in the distributor’s Conditions of Service. | H200: 7_EMBEDDED DISTRIBUTOR SERVICE CLASSIFICATION | AA200: This classification applies to an electricity distributor licensed by the Ontario Energy Board, and provided electricity by means of E.L.K. Energy Inc.’s distribution facilities. Further servicing details are available in the distributor’s Conditions of Service.
B202: APPLICATION | H202: 7_APPLICATION | AA202: APPLICATION
B204: The application of these rates and charges shall be in accordance with the Licence of the Distributor and any Code or Order of the Ontario Energy Board, and amendments thereto as approved by the Ontario Energy Board, which may be applicable to the administration of this schedule. | H204: 7_EMBEDDED DISTRIBUTOR SERVICE CLASSIFICATION | AA204: The application of these rates and charges shall be in accordance with the Licence of the Distributor and any Code or Order of the Ontario Energy Board, and amendments thereto as approved by the Ontario Energy Board, which may be applicable to the administration of this schedule.
B206: No rates and charges for the distribution of electricity and charges to meet the costs of any work or service done or furnished for the purpose of the distribution of electricity shall be made except as permitted by this schedule, unless required by the Distributor’s Licence or a Code or Order of the Ontario Energy Board, and amendments thereto as approved by the Ontario Energy Board, or as specified herein. | H206: 7_EMBEDDED DISTRIBUTOR SERVICE CLASSIFICATION | AA206: No rates and charges for the distribution of electricity and charges to meet the costs of any work or service done or furnished for the purpose of the distribution of electricity shall be made except as permitted by this schedule, unless required by the Distributor’s Licence or a Code or Order of the Ontario Energy Board, and amendments thereto as approved by the Ontario Energy Board, or as specified herein.
B208: Unless specifically noted, this schedule does not contain any charges for the electricity commodity, be it under the Regulated Price Plan, a contract with a retailer or the wholesale market price, as applicable. In addition, the charges in the MONTHLY RATES AND CHARGES - Regulatory Component of this schedule do not apply to a customer that is an embedded wholesale market participant. | H208: 7_EMBEDDED DISTRIBUTOR SERVICE CLASSIFICATION | AA208: Unless specifically noted, this schedule does not contain any charges for the electricity commodity, be it under the Regulated Price Plan, a contract with a retailer or the wholesale market price, as applicable. In addition, the charges in the MONTHLY RATES AND CHARGES - Regulatory Component of this schedule do not apply to a customer that is an embedded wholesale market participant.
B210: It should be noted that this schedule does not list any charges, assessments, or credits that are required by law to be invoiced by a distributor and that are not subject to Ontario Energy Board approval, such as the Debt Retirement Charge, the Global Adjustment and the HST. | H210: 7_EMBEDDED DISTRIBUTOR SERVICE CLASSIFICATION | AA210: It should be noted that this schedule does not list any charges, assessments, or credits that are required by law to be invoiced by a distributor and that are not subject to Ontario Energy Board approval, such as the Debt Retirement Charge, the Global Adjustment and the HST.
B212: MONTHLY RATES AND CHARGES - Delivery Component | H212: 7_MRC_Del | AA212: MONTHLY RATES AND CHARGES - Delivery Component
B214: Service Charge | D214: $ | E214: 1884.96 | H214: 7_EMBEDDED DISTRIBUTOR SERVICE CLASSIFICATION | I214: A | M214: 7_EMBEDDED DISTRIBUTOR SERVICE CLASSIFICATION_MSC | Z214: Service Charge
B215: Distribution Volumetric Rate | D215: $/kW | E215: 0.2804 | H215: 7_EMBEDDED DISTRIBUTOR SERVICE CLASSIFICATION | I215: A | M215: 7_EMBEDDED DISTRIBUTOR SERVICE CLASSIFICATION_DVC | Z215: Distribution Volumetric Rate
B216: Low Voltage Service Rate | D216: $/kW | E216: 0.4332 | H216: 7_EMBEDDED DISTRIBUTOR SERVICE CLASSIFICATION | I216: B | M216: 7_EMBEDDED DISTRIBUTOR SERVICE CLASSIFICATION_LV | Z216: Low Voltage Service Rate
B217: Rate Rider for Disposition of Deferral/Variance Accounts (2018) - effective until April 30, 2019 | D217: $/kW | E217: 2.2979 | H217: 7_EMBEDDED DISTRIBUTOR SERVICE CLASSIFICATION | I217: B | M217: 7_EMBEDDED DISTRIBUTOR SERVICE CLASSIFICATION_DEFVAR_ALL | Q217: 2019-04-30 | R217: X | Z217: Rate Rider for Disposition of Deferral/Variance Accounts (2018) - effective until April 30, 2019
B218: Rate Rider for Application of Tax Change (2018) - effective until April 30, 2019 | D218: $/kW | E218: 0.0065 | H218: 7_EMBEDDED DISTRIBUTOR SERVICE CLASSIFICATION | I218: A | M218: 7_EMBEDDED DISTRIBUTOR SERVICE CLASSIFICATION_STS | Q218: 2019-04-30 | R218: X | Z218: Rate Rider for Application of Tax Change (2018) - effective until April 30, 2019
B219: Retail Transmission Rate - Network Service Rate | D219: $/kW | E219: 2.6785 | H219: 7_EMBEDDED DISTRIBUTOR SERVICE CLASSIFICATION | I219: C | M219: 7_EMBEDDED DISTRIBUTOR SERVICE CLASSIFICATION_Retail Transmission Rate - Network Service Rate | Z219: Retail Transmission Rate - Network Service Rate
B220: Retail Transmission Rate - Line and Transformation Connection Service Rate | D220: $/kW | E220: 1.8973 | H220: 7_EMBEDDED DISTRIBUTOR SERVICE CLASSIFICATION | I220: C | M220: 7_EMBEDDED DISTRIBUTOR SERVICE CLASSIFICATION_Retail Transmission Rate - Line and Transformation Connection Service Rate | Z220: Retail Transmission Rate - Line and Transformation Connection Service Rate
B222: MONTHLY RATES AND CHARGES - Regulatory Component | H222: 7_MRC_Reg | Z222: MONTHLY RATES AND CHARGES - Regulatory Component
B224: Wholesale Market Service Rate (WMS) - not including CBR | D224: $/kWh | E224: 0.0032 | H224: 7_EMBEDDED DISTRIBUTOR SERVICE CLASSIFICATION | I224: T | M224: 7_EMBEDDED DISTRIBUTOR SERVICE CLASSIFICATION_WMSR | Z224: Wholesale Market Service Rate (WMS) - not including CBR
B225: Capacity Based Recovery (CBR) - Applicable for Class B Customers | D225: $/kWh | E225: 0.0004 | H225: 7_EMBEDDED DISTRIBUTOR SERVICE CLASSIFICATION | I225: T | M225: 7_EMBEDDED DISTRIBUTOR SERVICE CLASSIFICATION_WMSR | Z225: Capacity Based Recovery (CBR) - Applicable for Class B Customers
B226: Rural or Remote Electricity Rate Protection Charge (RRRP) | D226: $/kWh | E226: 0.0003 | H226: 7_EMBEDDED DISTRIBUTOR SERVICE CLASSIFICATION | I226: T | M226: 7_EMBEDDED DISTRIBUTOR SERVICE CLASSIFICATION_RRRP | Z226: Rural or Remote Electricity Rate Protection Charge (RRRP)
B227: Standard Supply Service - Administrative Charge (if applicable) | D227: $ | E227: 0.25 | H227: 7_EMBEDDED DISTRIBUTOR SERVICE CLASSIFICATION | I227: T | M227: 7_EMBEDDED DISTRIBUTOR SERVICE CLASSIFICATION_SSS | Z227: Standard Supply Service - Administrative Charge (if applicable) | AS227: X
B228: microFIT SERVICE CLASSIFICATION | H228: 8_microFIT SERVICE CLASSIFICATION | AA228: microFIT SERVICE CLASSIFICATION
B229: This classification applies to an electricity generation facility contracted under the Independent Electricity System Operator’s microFIT program and connected to the distributor’s distribution system. Further servicing details are available in the distributor’s Conditions of Service. | H229: 8_microFIT SERVICE CLASSIFICATION | AA229: This classification applies to an electricity generation facility contracted under the Independent Electricity System Operator’s microFIT program and connected to the distributor’s distribution system. Further servicing details are available in the distributor’s Conditions of Service.
B231: APPLICATION | H231: 8_APPLICATION | AA231: APPLICATION
B233: The application of these rates and charges shall be in accordance with the Licence of the Distributor and any Code or Order of the Ontario Energy Board, and amendments thereto as approved by the Ontario Energy Board, which may be applicable to the administration of this schedule. | H233: 8_microFIT SERVICE CLASSIFICATION | AA233: The application of these rates and charges shall be in accordance with the Licence of the Distributor and any Code or Order of the Ontario Energy Board, and amendments thereto as approved by the Ontario Energy Board, which may be applicable to the administration of this schedule.
B235: No rates and charges for the distribution of electricity and charges to meet the costs of any work or service done or furnished for the purpose of the distribution of electricity shall be made except as permitted by this schedule, unless required by the Distributor’s Licence or a Code or Order of the Ontario Energy Board, and amendments thereto as approved by the Ontario Energy Board, or as specified herein. | H235: 8_microFIT SERVICE CLASSIFICATION | AA235: No rates and charges for the distribution of electricity and charges to meet the costs of any work or service done or furnished for the purpose of the distribution of electricity shall be made except as permitted by this schedule, unless required by the Distributor’s Licence or a Code or Order of the Ontario Energy Board, and amendments thereto as approved by the Ontario Energy Board, or as specified herein.
B237: Unless specifically noted, this schedule does not contain any charges for the electricity commodity, be it under the Regulated Price Plan, a contract with a retailer or the wholesale market price, as applicable. | H237: 8_microFIT SERVICE CLASSIFICATION | AA237: Unless specifically noted, this schedule does not contain any charges for the electricity commodity, be it under the Regulated Price Plan, a contract with a retailer or the wholesale market price, as applicable.
B239: It should be noted that this schedule does not list any charges, assessments, or credits that are required by law to be invoiced by a distributor and that are not subject to Ontario Energy Board approval, such as the Debt Retirement Charge, the Global Adjustment and the HST. | H239: 8_microFIT SERVICE CLASSIFICATION | AA239: It should be noted that this schedule does not list any charges, assessments, or credits that are required by law to be invoiced by a distributor and that are not subject to Ontario Energy Board approval, such as the Debt Retirement Charge, the Global Adjustment and the HST.
B241: MONTHLY RATES AND CHARGES - Delivery Component | H241: 8_MRC_Del | AA241: MONTHLY RATES AND CHARGES - Delivery Component
B243: Service Charge | D243: $ | E243: 5.4 | H243: 8_microFIT SERVICE CLASSIFICATION | I243: A | M243: 8_microFIT SERVICE CLASSIFICATION_MSC | Z243: Service Charge
B245: ALLOWANCES | H245: E.L.K. Energy Inc._ALLOWANCES
B246: Transformer Allowance for Ownership - per kW of billing demand/month | D246: kW | E246: -0.6 | Z246: Transformer Allowance for Ownership - per kW of billing demand/month
B247: Primary Metering Allowance for transformer losses - applied to measured demand and energy | D247: % | E247: -1 | Z247: Primary Metering Allowance for transformer losses - applied to measured demand and energy
B248: SPECIFIC SERVICE CHARGES | H248: E.L.K. Energy Inc._SSC
B249: The application of these rates and charges shall be in accordance with the Licence of the Distributor and any Code or Order of the Ontario Energy Board, and amendments thereto as approved by the Ontario Energy Board, which may be applicable to the administration of this schedule. | AA249: The application of these rates and charges shall be in accordance with the Licence of the Distributor and any Code or Order of the Ontario Energy Board, and amendments thereto as approved by the Ontario Energy Board, which may be applicable to the administration of this schedule.
B251: No charges to meet the costs of any work or service done or furnished for the purpose of the distribution of electricity shall be made except as permitted by this schedule, unless required by the Distributor’s Licence or a Code or Order of the Ontario Energy Board, and amendments thereto as approved by the Ontario Energy Board, or as specified herein. | AA251: No charges to meet the costs of any work or service done or furnished for the purpose of the distribution of electricity shall be made except as permitted by this schedule, unless required by the Distributor’s Licence or a Code or Order of the Ontario Energy Board, and amendments thereto as approved by the Ontario Energy Board, or as specified herein.
B253: It should be noted that this schedule does not list any charges, assessments, or credits that are required by law to be invoiced by a distributor and that are not subject to Ontario Energy Board approval, such as the Debt Retirement Charge, the Global Adjustment and the HST. | AA253: It should be noted that this schedule does not list any charges, assessments, or credits that are required by law to be invoiced by a distributor and that are not subject to Ontario Energy Board approval, such as the Debt Retirement Charge, the Global Adjustment and the HST.
B255: Customer Administration | H255: E.L.K. Energy Inc._CA
B256: Arrears certificate | D256: $ | E256: 15 | Z256: Arrears certificate
B257: Statement of account | D257: $ | E257: 15 | Z257: Statement of account
B258: Pulling post dated cheques | D258: $ | E258: 15 | Z258: Pulling post dated cheques
B259: Duplicate invoices for previous billing | D259: $ | E259: 15 | Z259: Duplicate invoices for previous billing
B260: Request for other billing information | D260: $ | E260: 15 | Z260: Request for other billing information
B261: Easement letter | D261: $ | E261: 15 | Z261: Easement letter
B262: Income tax letter | D262: $ | E262: 15 | Z262: Income tax letter
B263: Notification charge | D263: $ | E263: 15 | Z263: Notification charge
B264: Account history | D264: $ | E264: 15 | Z264: Account history
B265: Credit reference/credit check (plus credit agency costs) | D265: $ | E265: 15 | Z265: Credit reference/credit check (plus credit agency costs)
B266: Returned cheque (plus bank charges) | D266: $ | E266: 15 | Z266: Returned cheque (plus bank charges)
B267: Charge to certify cheque | D267: $ | E267: 15 | Z267: Charge to certify cheque
B268: Legal letter charge | D268: $ | E268: 15 | Z268: Legal letter charge
B269: Account set up charge/change of occupancy charge (plus credit agency costs if applicable) | D269: $ | E269: 30 | Z269: Account set up charge/change of occupancy charge (plus credit agency costs if applicable)
B270: Meter dispute charge plus Measurement Canada fees (if meter found correct) | D270: $ | E270: 30 | Z270: Meter dispute charge plus Measurement Canada fees (if meter found correct)
B272: Non-Payment of Account | H272: E.L.K. Energy Inc._NPoA
B273: Late payment - per month | D273: % | E273: 1.5 | Z273: Late payment - per month
B274: Late payment - per annum | D274: % | E274: 19.56 | Z274: Late payment - per annum
B275: Collection of account charge - no disconnection | D275: $ | E275: 30 | Z275: Collection of account charge - no disconnection
B276: Collection of account charge - no disconnection - after regular hours | D276: $ | E276: 165 | Z276: Collection of account charge - no disconnection - after regular hours
B277: Disconnect/reconnect at meter - during regular hours | D277: $ | E277: 65 | Z277: Disconnect/reconnect at meter - during regular hours
B278: Disconnect/reconnect at meter - after regular hours | D278: $ | E278: 185 | Z278: Disconnect/reconnect at meter - after regular hours
B279: Disconnect/reconnect at pole - during regular hours | D279: $ | E279: 185 | Z279: Disconnect/reconnect at pole - during regular hours
B280: Disconnect/reconnect at pole - after regular hours | D280: $ | E280: 415 | Z280: Disconnect/reconnect at pole - after regular hours
B281: Install/remove load control device - during regular hours | D281: $ | E281: 65 | Z281: Install/remove load control device - during regular hours
B282: Install/remove load control device - after regular hours | D282: $ | E282: 185 | Z282: Install/remove load control device - after regular hours
B284: Other
... 31 more rows

Sheet 3. Continuity Schedule
CA1: FALSE
C2: TRUE | CA2: FALSE
C3: TRUE | CA3: TRUE
CA4: FALSE
CA5: FALSE
CA6: TRUE
CA7: FALSE
CA8: FALSE
CA9: FALSE
CA10: TRUE
CA11: TRUE
C12: Please complete the following continuity schedule for the following Deferral/Variance Accounts. Enter information into green cells only. Column BU has been prepopulated from the latest 2.1.7 RRR filing. For all Group 1 Accounts, except for Account 1595, start inputting data from the year in which the GL balance was last disposed. For example, if in the 2018 rate application, DVA balances as at December 31, 2016 were approved for disposition, start the continuity schedule from 2016 by entering the 2015 closing balance in the Adjustment column under 2015. For all Account 1595 sub-accounts, complete the DVA continuity schedule for each Account 1595 vintage year that has a GL balance as at December 31, 2017 regardless of whether the account is being requested for disposition in the current application. For each Account 1595 sub-account, start inputting data from the year the sub-account started to accumulate a balance (i.e. the vintage year). For example, for Account 1595 (2015),data should be inputted starting in 2015 when the relevant balances approved for disposition was first transferred into Account 1595 (2015). Please refer to the footnotes for further instructions.
E16: 2012 | O16: 2013 | Y16: 2014 | AI16: 2015 | AS16: 2016 | BC16: 2017 | BM16: 2018 | BQ16: Projected Interest on Dec-31-17 Balances | BU16: 2.1.7 RRR
C17: Account Descriptions | D17: Account Number | E17: Opening Principal Amounts as of Jan 1, 2012 | F17: Transactions Debit / (Credit) during 2012 | G17: OEB-Approved Disposition during 2012 | H17: Principal Adjustments1 during 2012 | I17: Closing Principal Balance as of Dec 31, 2012 | J17: Opening Interest Amounts as of Jan 1, 2012 | K17: Interest Jan 1 to Dec 31, 2012 | L17: OEB-Approved Disposition during 2012 | M17: Interest Adjustments1 during 2012 | N17: Closing Interest Amounts as of Dec 31, 2012 | O17: Opening Principal Amounts as of Jan 1, 2013 | P17: Transactions Debit / (Credit) during 2013 | Q17: OEB-Approved Disposition during 2013 | R17: Principal Adjustments1 during 2013 | S17: Closing Principal Balance as of Dec 31, 2013 | T17: Opening Interest Amounts as of Jan 1, 2013 | U17: Interest Jan 1 to Dec 31, 2013 | V17: OEB-Approved Disposition during 2013 | W17: Interest Adjustments1 during 2013 | X17: Closing Interest Amounts as of Dec 31, 2013 | Y17: Opening Principal Amounts as of Jan 1, 2014 | Z17: Transactions Debit / (Credit) during 2014 | AA17: OEB-Approved Disposition during 2014 | AB17: Principal Adjustments1 during 2014 | AC17: Closing Principal Balance as of Dec 31, 2014 | AD17: Opening Interest Amounts as of Jan 1, 2014 | AE17: Interest Jan 1 to Dec 31, 2014 | AF17: OEB-Approved Disposition during 2014 | AG17: Interest Adjustments1 during 2014 | AH17: Closing Interest Amounts as of Dec 31, 2014 | AI17: Opening Principal Amounts as of Jan 1, 2015 | AJ17: Transactions Debit / (Credit) during 2015 | AK17: OEB-Approved Disposition during 2015 | AL17: Principal Adjustments1 during 2015 | AM17: Closing Principal Balance as of Dec 31, 2015 | AN17: Opening Interest Amounts as of Jan 1, 2015 | AO17: Interest Jan 1 to Dec 31, 2015 | AP17: OEB-Approved Disposition during 2015 | AQ17: Interest Adjustments1 during 2015 | AR17: Closing Interest Amounts as of Dec 31, 2015 | AS17: Opening Principal Amounts as of Jan 1, 2016 | AT17: Transactions Debit / (Credit) during 2016 | AU17: OEB-Approved Disposition during 2016 | AV17: Principal Adjustments1 during 2016 | AW17: Closing Principal Balance as of Dec 31, 2016 | AX17: Opening Interest Amounts as of Jan 1, 2016 | AY17: Interest Jan 1 to Dec 31, 2016 | AZ17: OEB-Approved Disposition during 2016 | BA17: Interest Adjustments1 during 2016 | BB17: Closing Interest Amounts as of Dec 31, 2016 | BC17: Opening Principal Amounts as of Jan 1, 2017 | BD17: Transactions Debit / (Credit) during 2017 | BE17: OEB-Approved Disposition during 2017 | BF17: Principal Adjustments1 during 2017 | BG17: Closing Principal Balance as of Dec 31, 2017 | BH17: Opening Interest Amounts as of Jan 1, 2017 | BI17: Interest Jan 1 to Dec 31, 2017 | BJ17: OEB-Approved Disposition during 2017 | BK17: Interest Adjustments1 during 2017 | BL17: Closing Interest Amounts as of Dec 31, 2017 | BM17: Principal Disposition during 2018 - instructed by OEB | BN17: Interest Disposition during 2018 - instructed by OEB | BO17: Closing Principal Balances as of Dec 31, 2017 Adjusted for Disposition during 2018 | BP17: Closing Interest Balances as of Dec 31, 2017 Adjusted for Disposition during 2018 | BQ17: Projected Interest from Jan 1, 2018 to Dec 31, 2018 on Dec 31, 2017 balance adjusted for disposition during 2018 2 | BR17: Projected Interest from Jan 1, 2019 to Apr 30, 2019 on Dec 31, 2017 balance adjusted for disposition during 2018 2 | BS17: Total Interest | BT17: Total Claim | BU17: As of Dec 31, 2017 | BV17: Variance RRR vs. 2017 Balance (Principal + Interest)
BT19: Claim before Forecasted Transactions
C20: Group 1 Accounts
C21: LV Variance Account | D21: 1550 | E21: -37912 | F21: -53821 | I21: =E21+F21-G21+H21 -> -91733 | N21: =J21+K21-L21+M21 -> 0 | O21: =I21 -> -91733 | P21: 50699 | Q21: 18956 | S21: =O21+P21-Q21+SUM(R21:R21) -> -59990 | T21: =N21 -> 0 | X21: =T21+U21-V21+W21 -> 0 | Y21: =S21 -> -59990 | Z21: 43207 | AA21: -18956 | AC21: =Y21+Z21-AA21+SUM(AB21:AB21) -> 2173 | AD21: =X21 -> 0 | AH21: =AD21+AE21-AF21+AG21 -> 0 | AI21: =AC21 -> 2173 | AJ21: 184529 | AM21: =AI21+AJ21-AK21+SUM(AL21:AL21) -> 186702 | AN21: =AH21 -> 0 | AR21: =AN21+AO21-AP21+AQ21 -> 0 | AS21: =AM21 -> 186702 | AT21: 352568 | AW21: =AS21+AT21-AU21+SUM(AV21:AV21) -> 539270 | AX21: =AR21 -> 0 | BB21: =AX21+AY21-AZ21+BA21 -> 0 | BC21: =AW21 -> 539270 | BD21: 355459.95 | BE21: =187235 -> 187235 | BG21: =BC21+BD21-BE21+SUM(BF21:BF21) -> 707494.95 | BH21: =BB21 -> 0 | BL21: =BH21+BI21-BJ21+BK21 -> 0 | BM21: 359001 | BO21: =BG21-BM21 -> 348493.95 | BP21: =BL21-BN21 -> 0 | BQ21: =(BG21-BM21)*0.015 -> 5227.40925 | BR21: =BQ21*4/12 -> 1742.46975 | BS21: =BP21+BQ21+BR21 -> 6969.879 | BT21: =SUM(BO21:BR21) -> 355463.829 | BU21: 707495.06 | BV21: =BU21-SUM(BG21,BL21) -> 0.1100000001
C22: Smart Metering Entity Charge Variance Account | D22: 1551 | I22: =E22+F22-G22+H22 -> 0 | N22: =J22+K22-L22+M22 -> 0 | O22: =I22 -> 0 | P22: 26162 | S22: 26162 | T22: 0 | X22: =T22+U22-V22+W22 -> 0 | Y22: 26162 | Z22: 2308 | AC22: =Y22+Z22-AA22+SUM(AB22:AB22) -> 28470 | AD22: =X22 -> 0 | AH22: =AD22+AE22-AF22+AG22 -> 0 | AI22: 28470 | AJ22: 2606 | AM22: 31076 | AN22: 0 | AR22: =AN22+AO22-AP22+AQ22 -> 0 | AS22: 31076 | AT22: -19390 | AW22: 11686 | AX22: 0 | BB22: =AX22+AY22-AZ22+BA22 -> 0 | BC22: 11686 | BD22: 3271.57 | BE22: 2645 | BG22: 12312.57 | BH22: 0 | BL22: =BH22+BI22-BJ22+BK22 -> 0 | BM22: 9217 | BO22: =BG22-BM22 -> 3095.57 | BP22: =BL22-BN22 -> 0 | BQ22: 46.43355 | BR22: =BQ22*4/12 -> 15.47785 | BS22: =BP22+BQ22+BR22 -> 61.9114 | BT22: =SUM(BO22:BR22) -> 3157.4814 | BU22: 12312.28 | BV22: =BU22-SUM(BG22,BL22) -> -0.29
C23: RSVA - Wholesale Market Service Charge5 | D23: 1580 | E23: -534305 | F23: -329753 | I23: =E23+F23-G23+H23 -> -864058 | N23: =J23+K23-L23+M23 -> 0 | O23: =I23 -> -864058 | P23: -182389 | Q23: -263052 | S23: -783395 | T23: 0 | X23: =T23+U23-V23+W23 -> 0 | Y23: -783395 | Z23: -7861 | AA23: -271253 | AC23: =Y23+Z23-AA23+SUM(AB23:AB23) -> -520003 | AD23: 0 | AH23: =AD23+AE23-AF23+AG23 -> 0 | AI23: -520003 | AJ23: -552806 | AM23: -1072809 | AN23: 0 | AR23: =AN23+AO23-AP23+AQ23 -> 0 | AS23: -1072809 | AT23: 277911 | AW23: -794898 | AX23: 0 | BB23: =AX23+AY23-AZ23+BA23 -> 0 | BC23: -794898 | BD23: -334861.9 | BE23: -560914 | BG23: -568845.9 | BH23: 0 | BL23: =BH23+BI23-BJ23+BK23 -> 0 | BM23: -238460 | BO23: -330385.9 | BP23: 0 | BQ23: -4955.7885 | BR23: -1651.9295 | BS23: -6607.718 | BT23: =SUM(BO23:BR23) -> -336993.618 | BU23: -568845.41 | BV23: =BU23-SUM(BG23,BL23) -> 0.4899999999
C24: Variance WMS – Sub-account CBR Class A5 | D24: 1580 | I24: 0 | N24: 0 | O24: 0 | S24: 0 | T24: 0 | X24: 0 | Y24: 0 | AC24: 0 | AD24: 0 | AH24: 0 | AI24: 0 | AM24: 0 | AN24: 0 | AR24: 0 | AS24: 0 | AW24: 0 | AX24: 0 | BB24: 0 | BC24: 0 | BG24: =BC24+BD24-BE24+SUM(BF24:BF24) -> 0 | BH24: 0 | BL24: 0 | BO24: 0 | BP24: 0 | BQ24: 0 | BR24: 0 | BS24: 0 | BT24: =IF(CA5=TRUE, 0, 0) -> 0 | BU24: 0 | BV24: =BU24-SUM(BG24,BL24) -> 0
C25: Variance WMS – Sub-account CBR Class B5 | D25: 1580 | I25: 0 | N25: 0 | O25: 0 | S25: 0 | T25: 0 | X25: 0 | Y25: 0 | AC25: 0 | AD25: 0 | AH25: 0 | AI25: 0 | AM25: 0 | AN25: 0 | AR25: 0 | AS25: 0 | AW25: 0 | AX25: 0 | BB25: 0 | BC25: 0 | BG25: 0 | BH25: 0 | BL25: 0 | BO25: 0 | BP25: 0 | BQ25: 0 | BR25: 0 | BS25: 0 | BT25: =SUM(BO25:BR25) -> 0 | BU25: 0 | BV25: =BU25-SUM(BG25,BL25) -> 0
C26: RSVA - Retail Transmission Network Charge | D26: 1584 | E26: -85959 | F26: -5787 | I26: -91746 | N26: 0 | O26: -91746 | P26: 156295 | Q26: 36170 | S26: 28379 | T26: 0 | X26: 0 | Y26: 28379 | Z26: 71083 | AA26: -49789 | AC26: 149251 | AD26: 0 | AH26: 0 | AI26: 149251 | AJ26: 416701 | AM26: 565952 | AN26: 0 | AR26: 0 | AS26: 565952 | AT26: 211883 | AW26: 777835 | AX26: 0 | BB26: 0 | BC26: 777835 | BD26: 222433.8 | BE26: 422813 | BG26: 577455.8 | BH26: 0 | BL26: 0 | BM26: 361960 | BO26: 215495.8 | BP26: 0 | BQ26: 3232.437 | BR26: 1077.479 | BS26: 4309.916 | BT26: =SUM(BO26:BR26) -> 219805.716 | BU26: 577455.39 | BV26: =BU26-SUM(BG26,BL26) -> -0.41
C27: RSVA - Retail Transmission Connection Charge | D27: 1586 | E27: -150985 | F27: -81035 | I27: -232020 | N27: 0 | O27: -232020 | P27: -87976 | Q27: -77141 | S27: -242855 | T27: 0 | X27: 0 | Y27: -242855 | Z27: -73508 | AA27: -73845 | AC27: -242518 | AD27: 0 | AH27: 0 | AI27: -242518 | AJ27: 443876 | AM27: 201358 | AN27: 0 | AR27: 0 | AS27: 201358 | AT27: 684425 | AW27: 885783 | AX27: 0 | BB27: 0 | BC27: 885783 | BD27: 351294.96 | BE27: 450387 | BG27: 786690.96 | BH27: 0 | BL27: 0 | BM27: 443991 | BO27: 342699.96 | BP27: 0 | BQ27: 5140.4994 | BR27: 1713.4998 | BS27: 6853.9992 | BT27: =SUM(BO27:BR27) -> 349553.9592 | BU27: 786691.43 | BV27: 0.4700000001
C28: RSVA - Power4 | D28: 1588 | I28: 0 | N28: 0 | O28: 0 | S28: 0 | T28: 0 | X28: 0 | Y28: 0 | AC28: 0 | AD28: 0 | AH28: 0 | AI28: 0 | AM28: 0 | AN28: 0 | AR28: 0 | AS28: 0 | AW28: 0 | AX28: 0 | BB28: 0 | BC28: 0 | BG28: 0 | BH28: 0 | BL28: 0 | BO28: 0 | BP28: 0 | BS28: 0 | BT28: =SUM(BO28:BR28) -> 0 | BU28: -1298073.78 | BV28: -1298073.78
C29: RSVA - Global Adjustment4 | D29: 1589 | I29: 0 | N29: 0 | O29: 0 | S29: 0 | T29: 0 | X29: 0 | Y29: 0 | AC29: 0 | AD29: 0 | AH29: 0 | AI29: 0 | AM29: 0 | AN29: 0 | AR29: 0 | AS29: 0 | AW29: 0 | AX29: 0 | BB29: 0 | BC29: 0 | BG29: 0 | BH29: 0 | BL29: 0 | BO29: 0 | BP29: 0 | BS29: 0 | BT29: =SUM(BO29:BR29) -> 0 | BU29: -1137505.45 | BV29: -1137505.45
C30: Disposition and Recovery/Refund of Regulatory Balances (2009)3 | D30: 1595 | I30: 0 | N30: 0 | O30: 0 | S30: 0 | T30: 0 | X30: 0 | Y30: 0 | AC30: 0 | AD30: 0 | AH30: 0 | AI30: 0 | AM30: 0 | AN30: 0 | AR30: 0 | AS30: 0 | AW30: 0 | AX30: 0 | BB30: 0 | BC30: 0 | BG30: 0 | BH30: 0 | BL30: 0 | BO30: 0 | BP30: 0 | BS30: 0 | BT30: =IF(CA7=TRUE, SUM(BO30:BR30), 0) -> 0
C31: Disposition and Recovery/Refund of Regulatory Balances (2012)3 | D31: 1595 | I31: 0 | N31: 0 | O31: 0 | S31: =O31+P31-Q31+SUM(R31:R31) -> 0 | T31: 0 | X31: 0 | Y31: 0 | AC31: 0 | AD31: 0 | AH31: 0 | AI31: 0 | AM31: 0 | AN31: 0 | AR31: 0 | AS31: 0 | AW31: 0 | AX31: 0 | BB31: 0 | BC31: 0 | BG31: 0 | BH31: 0 | BL31: 0 | BO31: 0 | BP31: 0 | BS31: 0 | BT31: =IF(CA8=TRUE, SUM(BO31:BR31), 0) -> 0 | BU31: 0 | BV31: 0
C32: Disposition and Recovery/Refund of Regulatory Balances (2013)3 | D32: 1595 | I32: 0 | N32: 0 | O32: 0 | S32: =O32+P32-Q32+SUM(R32:R32) -> 0 | T32: 0 | X32: 0 | Y32: 0 | AC32: =Y32+Z32-AA32+SUM(AB32:AB32) -> 0 | AD32: =X32 -> 0 | AH32: 0 | AI32: 0 | AM32: 0 | AN32: 0 | AR32: 0 | AS32: 0 | AW32: 0 | AX32: 0 | BB32: 0 | BC32: 0 | BG32: 0 | BH32: 0 | BL32: 0 | BO32: 0 | BP32: 0 | BQ32: =(BG32-BM32)*0.015 -> 0 | BR32: =BQ32*4/12 -> 0 | BS32: 0 | BT32: =IF(CA9=TRUE, SUM(BO32:BR32), 0) -> 0 | BU32: 0 | BV32: 0
C33: Disposition and Recovery/Refund of Regulatory Balances (2014)3 | D33: 1595 | I33: 0 | N33: 0 | O33: 0 | Q33: 375969 | S33: =O33+P33-Q33+SUM(R33:R33) -> -375969 | T33: 0 | X33: 0 | Y33: -375969 | AA33: 387674 | AC33: -763643 | AD33: 0 | AH33: 0 | AI33: -763643 | AJ33: 550040 | AM33: -213603 | AN33: 0 | AR33: 0 | AS33: -213603 | AT33: 129355 | AW33: -84248 | AX33: 0 | BB33: 0 | BC33: -84248 | BG33: -84248 | BH33: 0 | BL33: 0 | BM33: -85699 | BO33: 1451 | BP33: 0 | BQ33: 0 | BR33: 0 | BS33: 0 | BT33: =IF(CA1=TRUE, SUM(BO33:BR33), 0) -> 0 | BU33: 0 | BV33: 84248
C34: Disposition and Recovery/Refund of Regulatory Balances (2015)3 | D34: 1595 | I34: 0 | N34: 0 | O34: 0 | S34: 0 | T34: 0 | X34: 0 | Y34: 0 | AC34: 0 | AD34: 0 | AH34: 0 | AI34: 0 | AM34: 0 | AN34: 0 | AR34: 0 | AS34: 0 | AW34: 0 | AX34: 0 | BB34: 0 | BC34: 0 | BG34: 0 | BH34: 0 | BL34: 0 | BO34: 0 | BP34: 0 | BS34: 0 | BT34: =IF(CA2=TRUE, SUM(BO34:BR34), 0) -> 0 | BU34: 0 | BV34: 0
C35: Disposition and Recovery/Refund of Regulatory Balances (2016)3 | D35: 1595 | I35: 0 | N35: 0 | O35: 0 | S35: 0 | T35: 0 | X35: 0 | Y35: 0 | AC35: 0 | AD35: 0 | AH35: 0 | AI35: 0 | AM35: 0 | AN35: 0 | AR35: 0 | AS35: 0 | AT35: =733067.97+596135.21-250108.89-238831.74 -> 840262.55 | AU35: =1290633-966479 -> 324154 | AW35: 516108.55 | AX35: 0 | BB35: 0 | BC35: 516108.55 | BG35: 516108.55 | BH35: 0 | BL35: 0 | BO35: 516108.55 | BP35: 0 | BS35: 0 | BT35: =IF(CA3=TRUE, SUM(BO35:BR35), 0) -> 516108.55 | BU35: 0 | BV35: -516108.55
C36: Disposition and Recovery/Refund of Regulatory Balances (2017)3 | D36: 1595 | I36: 0 | N36: 0 | O36: 0 | S36: 0 | T36: =N36 -> 0 | X36: 0 | Y36: 0 | AC36: 0 | AD36: 0 | AH36: 0 | AI36: 0 | AM36: 0 | AN36: 0 | AR36: 0 | AS36: 0 | AW36: 0 | AX36: 0 | BB36: 0 | BC36: 0 | BE36: =-470193.05-2680437.19 -> -3150630.24 | BG36: 3150630.24 | BH36: 0 | BJ36: 0 | BL36: 0 | BO36: 3150630.24 | BP36: 0 | BQ36: 0 | BR36: 0 | BS36: 0 | BT36: =IF(CA4=TRUE, SUM(BO36:BR36), 0) -> 0 | BU36: 3585371.73 | BV36: 434741.49
C37: Disposition and Recovery/Refund of Regulatory Balances (2018)3 Not to be disposed of until a year after rate rider has expired and that balance has been audited | D37: 1595 | I37: 0 | N37: 0 | O37: 0 | S37: 0 | T37: 0 | X37: 0 | Y37: 0 | AC37: 0 | AD37: 0 | AH37: 0 | AI37: 0 | AM37: 0 | AN37: 0 | AR37: 0 | AS37: 0 | AW37: 0 | AX37: 0 | BB37: 0 | BC37: 0 | BG37: 0 | BH37: 0 | BL37: 0 | BM37: -850010 | BO37: 850010 | BP37: 0 | BS37: 0 | BT37: =IF(CA5=TRUE, SUM(BO37:BR37), 0) -> 0 | BV37: 0
C39: RSVA - Global Adjustment | D39: 1589 | E39: =E29 -> 0 | F39: 0 | G39: 0 | H39: 0 | I39: 0 | J39: 0 | K39: 0 | L39: 0 | M39: 0 | N39: 0 | O39: 0 | P39: 0 | Q39: 0 | R39: 0 | S39: 0 | T39: 0 | U39: 0 | V39: 0 | W39: 0 | X39: 0 | Y39: 0 | Z39: 0 | AA39: 0 | AB39: 0 | AC39: 0 | AD39: 0 | AE39: 0 | AF39: 0 | AG39: 0 | AH39: 0 | AI39: 0 | AJ39: 0 | AK39: =AK29 -> 0 | AL39: 0 | AM39: 0 | AN39: 0 | AO39: 0 | AP39: 0 | AQ39: 0 | AR39: 0 | AS39: 0 | AT39: 0 | AU39: 0 | AV39: 0 | AW39: 0 | AX39: 0 | AY39: 0 | AZ39: 0 | BA39: 0 | BB39: 0 | BC39: 0 | BD39: 0 | BE39: 0 | BF39: 0 | BG39: 0 | BH39: 0 | BI39: 0 | BJ39: 0 | BK39: 0 | BL39: 0 | BM39: 0 | BN39: 0 | BO39: 0 | BP39: 0 | BQ39: 0 | BR39: 0 | BS39: 0 | BT39: 0 | BU39: =BU29 -> -1137505.45 | BV39: =BU39-SUM(BG39,BL39) -> -1137505.45
C40: Total Group 1 Balance excluding Account 1589 - Global Adjustment | E40: =SUM(E21:E37)-E29 -> -809161 | F40: -470396 | G40: 0 | H40: 0 | I40: -1279557 | J40: 0 | K40: 0 | L40: 0 | M40: 0 | N40: 0 | O40: -1279557 | P40: -37209 | Q40: 90902 | R40: 0 | S40: -1407668 | T40: 0 | U40: 0 | V40: 0 | W40: 0 | X40: 0 | Y40: -1407668 | Z40: 35229 | AA40: -26169 | AB40: 0 | AC40: -1346270 | AD40: 0 | AE40: 0 | AF40: 0 | AG40: 0 | AH40: 0 | AI40: -1346270 | AJ40: 1044946 | AK40: =SUM(AK21:AK37)-AK29 -> 0 | AL40: 0 | AM40: -301324 | AN40: 0 | AO40: 0 | AP40: 0 | AQ40: 0 | AR40: 0 | AS40: -301324 | AT40: 2477014.55 | AU40: 324154 | AV40: 0 | AW40: 1851536.55 | AX40: 0 | AY40: 0 | AZ40: 0 | BA40: 0 | BB40: 0 | BC40: 1851536.55 | BD40: 597598.38 | BE40: -2648464.24 | BF40: 0 | BG40: 5097599.17 | BH40: 0 | BI40: 0 | BJ40: 0 | BK40: 0 | BL40: 0 | BM40: 0 | BN40: 0 | BO40: 5097599.17 | BP40: 0 | BQ40: 8690.9907 | BR40: 2896.9969 | BS40: 11587.9876 | BT40: 1107095.918 | BU40: =SUM(BU21:BU37)-BU29-BU24-BU25 -> 3802406.7 | BV40: =BU40-SUM(BG40,BL40) -> -1295192.47
C41: Total Group 1 Balance | E41: =SUM(E39,E40) -> -809161 | F41: =SUM(F39,F40) -> -470396 | G41: 0 | H41: 0 | I41: -1279557 | J41: 0 | K41: 0 | L41: 0 | M41: 0 | N41: 0 | O41: -1279557 | P41: =SUM(P39,P40) -> -37209 | Q41: =SUM(Q39,Q40) -> 90902 | R41: 0 | S41: -1407668 | T41: 0 | U41: 0 | V41: 0 | W41: 0 | X41: 0 | Y41: -1407668 | Z41: 35229 | AA41: -26169 | AB41: 0 | AC41: -1346270 | AD41: 0 | AE41: 0 | AF41: 0 | AG41: 0 | AH41: 0 | AI41: -1346270 | AJ41: 1044946 | AK41: 0 | AL41: 0 | AM41: -301324 | AN41: 0 | AO41: 0 | AP41: 0 | AQ41: 0 | AR41: 0 | AS41: -301324 | AT41: 2477014.55 | AU41: 324154 | AV41: 0 | AW41: 1851536.55 | AX41: 0 | AY41: 0 | AZ41: 0 | BA41: 0 | BB41: 0 | BC41: 1851536.55 | BD41: 597598.38 | BE41: -2648464.24 | BF41: 0 | BG41: 5097599.17 | BH41: 0 | BI41: 0 | BJ41: 0 | BK41: 0 | BL41: 0 | BM41: 0 | BN41: 0 | BO41: 5097599.17 | BP41: 0 | BQ41: 8690.9907 | BR41: 2896.9969 | BS41: 11587.9876 | BT41: =SUM(BT39,BT40) -> 1107095.918 | BU41: =SUM(BU39,BU40) -> 2664901.25 | BV41: =SUM(BV39,BV40) -> -2432697.92
A43: 29 | C43: LRAM Variance Account (only input amounts if applying for disposition of this account) | D43: 1568 | S43: =O43+P43-Q43+SUM(R43:R43) -> 0 | X43: =T43+U43-V43+W43 -> 0 | Y43: =S43 -> 0 | AC43: =Y43+Z43-AA43+SUM(AB43:AB43) -> 0 | AD43: =X43 -> 0 | AH43: =AD43+AE43-AF43+AG43 -> 0 | AI43: =AC43 -> 0 | AM43: =AI43+AJ43-AK43+SUM(AL43:AL43) -> 0 | AN43: =AH43 -> 0 | AR43: =AN43+AO43-AP43+AQ43 -> 0 | AS43: =AM43 -> 0 | AW43: =AS43+AT43-AU43+SUM(AV43:AV43) -> 0 | AX43: =AR43 -> 0 | BB43: =AX43+AY43-AZ43+BA43 -> 0 | BC43: =AW43 -> 0 | BE43: 0 | BG43: =BC43+BD43-BE43+SUM(BF43:BF43) -> 0 | BH43: =BB43 -> 0 | BL43: =BH43+BI43-BJ43+BK43 -> 0 | BO43: =BG43-BM43 -> 0 | BP43: =BL43-BN43 -> 0 | BS43: =BP43+BQ43+BR43 -> 0 | BT43: =SUM(BO43:BR43) -> 0 | BU43: 0 | BV43: =BU43-SUM(BG43,BL43) -> 0
C45: Total including Account 1568 | E45: =SUM(E41,E43) -> -809161 | F45: =SUM(F41,F43) -> -470396 | G45: 0 | H45: 0 | I45: -1279557 | J45: 0 | K45: 0 | L45: 0 | M45: 0 | N45: 0 | O45: -1279557 | P45: -37209 | Q45: 90902 | R45: 0 | S45: -1407668 | T45: 0 | U45: 0 | V45: 0 | W45: 0 | X45: 0 | Y45: -1407668 | Z45: 35229 | AA45: -26169 | AB45: 0 | AC45: -1346270 | AD45: 0 | AE45: 0 | AF45: 0 | AG45: 0 | AH45: 0 | AI45: -1346270 | AJ45: 1044946 | AK45: 0 | AL45: 0 | AM45: -301324 | AN45: 0 | AO45: 0 | AP45: 0 | AQ45: 0 | AR45: 0 | AS45: -301324 | AT45: 2477014.55 | AU45: 324154 | AV45: 0 | AW45: 1851536.55 | AX45: 0 | AY45: 0 | AZ45: 0 | BA45: 0 | BB45: 0 | BC45: 1851536.55 | BD45: 597598.38 | BE45: -2648464.24 | BF45: 0 | BG45: 5097599.17 | BH45: 0 | BI45: 0 | BJ45: 0 | BK45: 0 | BL45: 0 | BM45: 0 | BN45: 0 | BO45: 5097599.17 | BP45: 0 | BQ45: 8690.9907 | BR45: =SUM(BR41,BR43) -> 2896.9969 | BS45: =SUM(BS41,BS43) -> 11587.9876 | BT45: =SUM(BT41,BT43) -> 1107095.918 | BU45: =SUM(BU41,BU43) -> 2664901.25 | BV45: =SUM(BV41,BV43) -> -2432697.92
C48: For all OEB-Approved dispositions, please ensure that the disposition amount has the same sign (e.g: debit balances are to have a positive figure and credit balance are to have a negative figure) as per the related OEB decision.
B51: 1 | C51: Please provide explanations for the nature of the adjustments. If the adjustment relates to previously OEB-Approved disposed balances, please provide amounts for adjustments and include supporting documentations.
B52: 2 | C52: If the LDC’s rate year begins on January 1, 2019, the projected interest is recorded from January 1, 2018 to December 31, 2018 on the December 31, 2017 balances adjusted for the disposed balances approved by the OEB in the 2018 rate decision. If the LDC’s rate year begins on May 1, 2019, the projected interest is recorded from January 1, 2018 to April 30, 2019 on the December 31, 2017 balances adjusted for the disposed interest balances approved by the OEB in the 2018 rate decision.
B53: 3 | C53: The individual sub-accounts as well as the total for all Account 1595 sub-accounts is to agree to the RRR data. Differences need to be explained. For each Account 1595 sub-account, the transfer of the balance approved for disposition into Account 1595 is to be recorded in "OEB Approved Disposition" column. The recovery/refund is to be recorded in the "Transaction" column. The audited balance in the account is only to be disposed a year after the recovery/refund period has been completed. Generally, no further transactions would be expected to flow through the account after that. Any vintage year of Account 1595 is only to be disposed once on a final basis. No further dispositions of these accounts are generally expected thereafter, unless justified by the distributor. Select the "Check to dispose of account" checkbox in column BT if the sub-account is requested for disposition.
B54: 4 | C54: Effective May 23, 2017, per the OEB’s letter titled Guidance on Disposition of Accounts 1588 and 1589, applicants must reflect RPP Settlement true-up claims pertaining to the period that is being requested for disposition in Accounts 1588 and 1589. This is to include true ups that impact the GA as well. The amount requested for disposition starts with the audited account balance. If the audited account balance does not reflect the true-up claims for that year, the impacts of the true-up claims are to be shown in the Adjustment column in that year. Note that this true-up claim will need to be reversed in the amount requested for disposition in the following year. However, if the RPP Settlement true-up claim was not reflected at the end of the last year of the account balance that was previously disposed, then no adjustment would have to be made in the first year at the beginning of the current period being requested for disposition. This way the adjustment is appropriately captured in the last year of the previously disposed period and the first year of the current period requested for disposition. Note that if a distributor has any balance in Account 1589 that pertains to Class A, this must be excluded from the balance requested for disposition.
B55: 5 | C55: Account 1580 RSVA WMS balance inputted into this schedule is to exclude any amounts relating to CBR. CBR amounts are to be inputted into Account 1580, sub-accounts CBR Class A and Class B separately. There is no disposition of Account 1580, sub-account CBR Class A, accounting guidance for this sub-account is to be followed. If a balance exists for Account 1580, sub-account CBR Class A as at Dec. 31, 2017, the balance must be explained.

Sheet 2016 List (hidden)
A1: Alectra Utilities Corporation | B1: HHPNS717 | I1: RESIDENTIAL SERVICE CLASSIFICATION | Q1: RESIDENTIAL SERVICE CLASSIFICATION | X1: 8 | Y1: 0
A2: Algoma Power Inc. | B2: WKBSV849 | C2: Brampton Rate Zone | D2: X | I2: GENERAL SERVICE LESS THAN 50 KW SERVICE CLASSIFICATION | Q2: GENERAL SERVICE LESS THAN 50 KW SERVICE CLASSIFICATION | AA2: Retail Transmission Rate - Line and Transformation Connection Service Rate
A3: Atikokan Hydro Inc. | B3: NJYBW716 | C3: Enersource Rate Zone | D3: X | I3: GENERAL SERVICE 50 to 4,999 kW SERVICE CLASSIFICATION | Q3: GENERAL SERVICE 50 to 4,999 kW SERVICE CLASSIFICATION | AA3: Retail Transmission Rate - Line and Transformation Connection Service Rate - < 1,000 kW
A4: Bluewater Power Distribution Corporation | B4: GQQHM388 | C4: Horizon Rate Zone | D4: X | I4: UNMETERED SCATTERED LOAD SERVICE CLASSIFICATION | Q4: UNMETERED SCATTERED LOAD SERVICE CLASSIFICATION | AA4: Retail Transmission Rate - Line and Transformation Connection Service Rate - Interval Metered
A5: Brantford Power Inc. | B5: SFXZP935 | C5: PowerStream Rate Zone | D5: X | I5: SENTINEL LIGHTING SERVICE CLASSIFICATION | Q5: SENTINEL LIGHTING SERVICE CLASSIFICATION | AA5: Retail Transmission Rate - Line and Transformation Connection Service Rate - Interval Metered (1,000 to 4,999 kW)
A6: Burlington Hydro Inc. | B6: OARZC118 | D6: X | I6: STREET LIGHTING SERVICE CLASSIFICATION | Q6: STREET LIGHTING SERVICE CLASSIFICATION | AA6: Retail Transmission Rate - Line and Transformation Connection Service Rate - Interval Metered < 1,000 kW
A7: Canadian Niagara Power Inc. | B7: HJHBH994 | I7: EMBEDDED DISTRIBUTOR SERVICE CLASSIFICATION | Q7: EMBEDDED DISTRIBUTOR SERVICE CLASSIFICATION | AA7: Retail Transmission Rate - Line and Transformation Connection Service Rate - Interval Metered > 1,000 kW
A8: Centre Wellington Hydro Ltd. | B8: KQEEH473 | D8: X | I8: microFIT SERVICE CLASSIFICATION | AA8: Retail Transmission Rate - Line Connection Service Rate
A9: Chapleau Public Utilities Corporation | B9: CPEFQ593 | AA9: Retail Transmission Rate - Transformation Connection Service Rate
A10: Collus PowerStream Corp. | B10: QXHJU641 | D10: X
A11: Cooperative Hydro Embrun Inc. | B11: QAJJU642
A12: E.L.K. Energy Inc. | B12: AVXSO594 | D12: X
A13: Energy+ Inc. | B13: JMNNR431
A14: Entegrus Powerlines Inc. | B14: JKBZG525 | C14: For Former Parry Sound Power Service Area | D14: X
A15: EnWin Utilities Ltd. | B15: YEOQG654 | C15: Except for the Former Parry Sound Power Service Area | D15: X
A16: Erie Thames Powerlines Corporation | B16: PTLUC812 | D16: X
A17: Espanola Regional Hydro Distribution Corporation | B17: ADICB565 | C17: For Former Brant County Power Service Area
A18: Essex Powerlines Corporation | B18: LRECV427 | C18: For Former Cambridge and North Dumfries Hydro Service Area | D18: X
A19: Festival Hydro Inc. | B19: KTCNY552
A20: Fort Frances Power Corporation | B20: YEPCI143 | D20: X
A21: Greater Sudbury Hydro Inc. | B21: GRHTW113 | C21: Former Haldimand County Hydro Inc. Service Area | AA21: Retail Transmission Rate - Network Service Rate
A22: Grimsby Power Incorporated | B22: GMGHU415 | C22: Former Norfolk Power Distribution Inc. Service Area | AA22: Retail Transmission Rate - Network Service Rate - < 1,000 kW
A23: Guelph Hydro Electric Systems Inc. | B23: YTPWF351 | C23: Former Woodstock Hydro Services Inc. Service Area | AA23: Retail Transmission Rate - Network Service Rate - Interval Metered
A24: Halton Hills Hydro Inc. | B24: YCYKQ642 | AA24: Retail Transmission Rate - Network Service Rate - Interval Metered (1,000 to 4,999 kW)
A25: Hearst Power Distribution Company Ltd. | B25: ADZFM459 | D25: X | AA25: Retail Transmission Rate - Network Service Rate - Interval Metered < 1,000 kW
A26: Hydro 2000 Inc. | B26: RVWKN794
A27: Hydro Hawkesbury Inc. | B27: KESKM585 | AA27: Retail Transmission Rate - Network Service Rate - Interval Metered > 1,000 kW
A28: Hydro One Networks Inc. | B28: MQFNL784
A29: Hydro One Remote Communities Inc. | B29: ABFNL784
A30: Hydro Ottawa Limited | B30: FNDHH648 | D30: X
A31: InnPower Corporation | B31: PTREM828
A32: Kenora Hydro Electric Corporation Ltd. | B32: UBBYF452
A33: Kingston Hydro Corporation | B33: NSBED625 | D33: X
A34: Kitchener-Wilmot Hydro Inc. | B34: TXKTT167
A35: Lakefront Utilities Inc. | B35: ZHKLA874 | D35: X
A36: Lakeland Power Distribution Ltd. | B36: YLJHT264 | D36: X
A37: London Hydro Inc. | B37: YLCEC559
A38: Midland Power Utility Corporation | B38: NHKJF259
A39: Milton Hydro Distribution Inc. | B39: SLRXO177 | D39: X
A40: Newmarket - Tay Power Distribution Ltd. | B40: UIFEM157 | D40: X
A41: Niagara Peninsula Energy Inc. | B41: RUZIU984
A42: Niagara-on-the-Lake Hydro Inc. | B42: KSUYD122
A43: North Bay Hydro Distribution Limited | B43: QHCKN852
A44: Northern Ontario Wires Inc. | B44: FUIJX538
A45: Oakville Hydro Electricity Distribution Inc. | B45: PWKJP953
A46: Orangeville Hydro Limited | B46: JEGGW178 | D46: X
A47: Orillia Power Distribution Corporation | B47: TVKSH414
A48: Oshawa PUC Networks Inc. | B48: DUISI693 | D48: X
A49: Ottawa River Power Corporation | B49: PQZCY963 | D49: X
A50: Peterborough Distribution Incorporated | B50: GTLBW445 | D50: X
A51: PUC Distribution Inc. | B51: XCFPH269
A52: Renfrew Hydro Inc. | B52: MLWYG784
A53: Rideau St. Lawrence Distribution Inc. | B53: QDKIF127 | D53: X
A54: Sioux Lookout Hydro Inc. | B54: AMZEN437 | D54: X
A55: St. Thomas Energy Inc. | B55: ACEVX242
A56: Thunder Bay Hydro Electricity Distribution Inc. | B56: DSPWZ318
A57: Tillsonburg Hydro Inc. | B57: OLIUU862
A58: Toronto Hydro-Electric System Limited | B58: NIOJF461 | D58: X
A59: Veridian Connections Inc. | B59: ZYZFO848 | D59: X
A60: Wasaga Distribution Inc. | B60: ASEGZ471 | D60: X
A61: Waterloo North Hydro Inc. | B61: IOKHC383
A62: Welland Hydro-Electric System Corp. | B62: SKVKJ649 | D62: X
A63: Wellington North Power Inc. | B63: TPFNQ593
A64: West Coast Huron Energy Inc. | B64: AJHXR397 | D64: X
A65: Westario Power Inc. | B65: UNGPP815 | D65: X
A66: Whitby Hydro Electric Corporation | B66: MSLBK499
D69: X
D71: X
D74: X
D75: X

Sheet 4. Billing Det. for Def-Var
R1: YES
B2: TRUE
C15: Total Metered kWh | D15: Total Metered kW | E15: Metered kWh for Non-RPP Customers (excluding WMP) | F15: Metered kW for Non-RPP Customers (excluding WMP) | G15: Metered kWh for Wholesale Market Participants (WMP) | H15: Metered kW for Wholesale Market Participants (WMP) | I15: Total Metered kWh less WMP consumption (if applicable) | J15: Total Metered kW less WMP consumption (if applicable) | K15: 1595 Recovery Proportion (2009) 1 | L15: 1595 Recovery Proportion (2012) 1 | M15: 1595 Recovery Proportion (2013) 1 | N15: 1595 Recovery Proportion (2014) 1 | O15: 1595 Recovery Proportion (2015) 1 | P15: 1595 Recovery Proportion (2016) 1 | Q15: 1595 Recovery Proportion (2017) 1 | R15: 1595 Recovery Proportion (2018) 1 | S15: 1568 LRAM Variance Account Class Allocation ($ amounts) | T15: Number of Customers for Residential and GS<50 classes3
A16: Rate Class | B16: Unit
A17: RESIDENTIAL SERVICE CLASSIFICATION | B17: kWh | C17: 86529652 | D17: 1 | E17: 5191780 | F17: 1 | G17: 0 | H17: 0 | I17: =C17-G17 -> 86529652 | J17: 1 | P17: 0.1028817516 | S17: 0 | T17: 10800
A18: GENERAL SERVICE LESS THAN 50 KW SERVICE CLASSIFICATION | B18: kWh | C18: 27228067 | D18: 0 | E18: 2995087 | F18: 0 | G18: 0 | H18: 0 | I18: 27228067 | J18: 0 | P18: 0.05485852623 | S18: 0 | T18: 1418
A19: GENERAL SERVICE 50 to 4,999 kW SERVICE CLASSIFICATION | B19: kW | C19: 47449870 | D19: 188530 | E19: 45551875 | F19: 180990 | G19: 0 | H19: 0 | I19: 47449870 | J19: 188530 | P19: 0.7887662433 | S19: 0
A20: UNMETERED SCATTERED LOAD SERVICE CLASSIFICATION | B20: kWh | C20: 255469 | D20: 0 | E20: 255469 | F20: 0 | G20: 0 | H20: 0 | I20: 255469 | J20: 0 | P20: 0.003690146265 | S20: 0
A21: SENTINEL LIGHTING SERVICE CLASSIFICATION | B21: kW | C21: 152795 | D21: 406 | E21: 152795 | F21: 406 | G21: 0 | H21: 0 | I21: 152795 | J21: 406 | P21: 0.002567647444 | S21: 0
A22: STREET LIGHTING SERVICE CLASSIFICATION | B22: kW | C22: 1361607 | D22: 6470 | E22: 1361607 | F22: 6470 | G22: 0 | H22: 0 | I22: 1361607 | J22: 6470 | P22: 0.0327137534 | S22: 0
A23: EMBEDDED DISTRIBUTOR SERVICE CLASSIFICATION | B23: kWh | C23: 56843411 | D23: 96786 | E23: 56843411 | F23: 96786 | G23: 0 | H23: 0 | I23: 56843411 | J23: 96786 | P23: 0.01452193174 | S23: 0
B24: Total | C24: =SUM($C$17:$C$23) -> 219820871 | D24: =SUM($D$17:$D$23) -> 292193 | E24: =SUM($E$17:$E$23) -> 112352024 | F24: =SUM($F$17:$F$23) -> 284653 | G24: =SUM($G$17:$G$23) -> 0 | H24: =SUM($H$17:$H$23) -> 0 | I24: =SUM($I$17:$I$23) -> 219820871 | J24: =SUM($J$17:$J$23) -> 292193 | K24: =SUM($K$17:$K$23) -> 0 | L24: =SUM($L$17:$L$23) -> 0 | M24: =SUM($M$17:$M$23) -> 0 | N24: =SUM($N$17:$N$23) -> 0 | O24: =SUM($O$17:$O$23) -> 0 | P24: =SUM($P$17:$P$23) -> 1 | Q24: =SUM($Q$17:$Q$23) -> 0 | R24: =SUM($R$17:$R$23) -> 0 | S24: =ROUND(SUM($S$17:$S$23),0) -> 0 | T24: =SUM($T$17:$T$23) -> 12218
A26: Threshold Test | S26: 1568 Account Balance from Continuity Schedule | U26: 0
A27: Total Claim (including Account 1568) | C27: 1107095.918 | S27: =IF(U26=S24,"Total Balance of Account 1568 in Column S matches the amount entered on the Continuity Schedule","Total Balance of Account 1568 in Column S DOES NOT MATCH the amount entered on the Continuity Schedule") -> Total Balance of Account 1568 in Column S matches the amount entered on the Continuity Schedule
A28: Total Claim for Threshold Test (All Group 1 Accounts) | C28: 1107095.918
A29: Threshold Test (Total claim per kWh) 2 | C29: 0.005036354886
A33: 1 Residual Account balance to be allocated to rate classes in proportion to the recovery share as established when rate riders were implemented.
A34: 2 The Threshold Test does not include the amount in 1568.
A35: 3 The proportion of customers for the Residential and GS<50 Classes will be used to allocate Account 1551.

Sheet 5. Allocating Def-Var Balances
A11: No input required. This workshseet allocates the deferral/variance account balances (Group 1 and 1568) to the appropriate classes as per EDDVAR dated July 31, 2009
A13: Allocation of Group 1 Accounts (including Account 1568)
C14: % of Total kWh | D14: % of Total non-RPP kWh | E14: % of Customer Numbers ** | F14: % of Total kWh adjusted for WMP | I14: allocated based on Total less WMP | N14: allocated based on Total less WMP | O14: 1595_(2009) | P14: 1595_(2012) | Q14: 1595_(2013) | R14: 1595_(2014) | S14: 1595_(2015) | T14: 1595_(2016) | U14: 1595_(2017) | V14: 1595_(2018) | W14: 1568
A15: Rate Class | G15: 1550 | H15: 1551 | I15: 1580 | J15: 1580 (Class A) | K15: 1580 (Class B) | L15: 1584 | M15: 1586 | N15: 1588
A17: RESIDENTIAL SERVICE CLASSIFICATION | C17: 0.3936371083 | D17: 0.04620993744 | E17: 0.8839417253 | F17: 0.3936371083 | G17: 139923.7537 | H17: 2791.029556 | I17: -132653.1933 | J17: 0 | L17: 86523.68643 | M17: 137597.4097 | N17: 0 | O17: 0 | P17: 0 | Q17: 0 | R17: 0 | S17: 0 | T17: 53098.15165 | U17: 0 | V17: 0 | W17: 0
A18: GENERAL SERVICE LESS THAN 50 KW SERVICE CLASSIFICATION | C18: 0.1238647944 | D18: 0.02665806003 | E18: 0.1160582747 | F18: 0.1238647944 | G18: 44029.45411 | H18: 366.4518436 | I18: -41741.64522 | J18: 0 | L18: 27226.18983 | M18: 43297.4293 | N18: 0 | O18: 0 | P18: 0 | Q18: 0 | R18: 0 | S18: 0 | T18: 28312.95443 | U18: 0 | V18: 0 | W18: 0
A19: GENERAL SERVICE 50 to 4,999 kW SERVICE CLASSIFICATION | C19: 0.2158569829 | D19: 0.4054388464 | E19: 0 | F19: 0.2158569829 | G19: 76729.34967 | H19: 0 | I19: -72742.42565 | J19: 0 | L19: 47446.59869 | M19: 75453.66301 | N19: 0 | O19: 0 | P19: 0 | Q19: 0 | R19: 0 | S19: 0 | T19: 407089.0021 | U19: 0 | V19: 0 | W19: 0
A20: UNMETERED SCATTERED LOAD SERVICE CLASSIFICATION | C20: 0.001162168992 | D20: 0.002273826415 | E20: 0 | F20: 0.001162168992 | G20: 413.1090397 | H20: 0 | I20: -391.6435332 | J20: 0 | L20: 255.4513873 | M20: 406.2407723 | N20: 0 | O20: 0 | P20: 0 | Q20: 0 | R20: 0 | S20: 0 | T20: 1904.516038 | U20: 0 | V20: 0 | W20: 0
A21: SENTINEL LIGHTING SERVICE CLASSIFICATION | C21: 0.0006950886843 | D21: 0.001359966599 | E21: 0 | F21: 0.0006950886843 | G21: 247.0788852 | H21: 0 | I21: -234.2404505 | J21: 0 | L21: 152.7844659 | M21: 242.9710016 | N21: 0 | O21: 0 | P21: 0 | Q21: 0 | R21: 0 | S21: 0 | T21: 1325.184799 | U21: 0 | V21: 0 | W21: 0
A22: STREET LIGHTING SERVICE CLASSIFICATION | C22: 0.006194166158 | D22: 0.01211911412 | E22: 0 | F22: 0.006194166158 | G22: 2201.80202 | H22: 0 | I22: -2087.394464 | J22: 0 | L22: 1361.513127 | M22: 2165.195305 | N22: 0 | O22: 0 | P22: 0 | Q22: 0 | R22: 0 | S22: 0 | T22: 16883.84783 | U22: 0 | V22: 0 | W22: 0
A23: EMBEDDED DISTRIBUTOR SERVICE CLASSIFICATION | C23: 0.2585896905 | D23: 0.505940249 | E23: 0 | F23: 0.2585896905 | G23: 91919.28153 | H23: 0 | I23: -87143.07538 | J23: 0 | L23: 56839.49207 | M23: 90391.05013 | N23: 0 | O23: 0 | P23: 0 | Q23: 0 | R23: 0 | S23: 0 | T23: 7494.893131 | U23: 0 | V23: 0 | W23: 0
A25: Total | C25: =SUM($C$17:$C$23) -> 1 | D25: =SUM($D$17:$D$23) -> 1 | E25: =SUM($E$17:$E$23) -> 1 | F25: =SUM($F$17:$F$23) -> 1 | G25: =SUM($G$17:$G$23) -> 355463.829 | H25: =SUM($H$17:$H$23) -> 3157.4814 | I25: =SUM($I$17:$I$23) -> -336993.618 | J25: =SUM($J$17:$J$23) -> 0 | K25: =SUM($K$17:$K$23) -> 0 | L25: =SUM($L$17:$L$23) -> 219805.716 | M25: =SUM($M$17:$M$23) -> 349553.9592 | N25: =SUM($N$17:$N$23) -> 0 | O25: =SUM($O$17:$O$23) -> 0 | P25: =SUM($P$17:$P$23) -> 0 | Q25: =SUM($Q$17:$Q$23) -> 0 | R25: =SUM($R$17:$R$23) -> 0 | S25: =SUM($S$17:$S$23) -> 0 | T25: =SUM($T$17:$T$23) -> 516108.55 | U25: =SUM($U$17:$U$23) -> 0 | V25: =SUM($V$17:$V$23) -> 0 | W25: =SUM($W$17:$W$23) -> 0
A28: ** Used to allocate Account 1551 as this account records the variances arising from the Smart Metering Entity Charges to Residential and GS<50 customers.

Sheet 6. Class A Consumption Data
A14: 1 | B14: Please select the Year the Account 1580 CBR Class B was Last Disposed. | C14: 2014 | D14: (e.g. If in the 2018 EDR process, you received approval to dispose the GA variance account balance as at December 31, 2016, enter 2016.)
C16: Years since Account 1589 GA balance was last disposed (up to 2016) | F16: 2016 | H16: 2015 | J16: 2014 | L16: 2013 | N16: 2012
A19: 2a | B19: Did you have any customers who transitioned between Class A and Class B (transition customers) during the period the Account 1589 GA balance accumulated (i.e. from the year after the balance was last disposed to 2017)? | C19: Yes | D19: (e.g. If you received approval to dispose of the GA variance account balance as at December 31, 2015, the period the GA variance accumulated would be 2016 and 2017.)
A21: 2b | B21: Did you have any customers who transitioned between Class A and Class B (transition customers) during the period the Account 1580, sub-account CBR Class B balance accumulated (i.e. from the year after the balance was last disposed to 2017)? | C21: Yes | D21: (e.g. If you received approval to dispose of the CBR Class B balance as at December 31, 2016, the period the CBR Class B variance accumulated would be 2017.)
A25: 3a | B25: Enter the number of transition customers you had during the period the Account 1589 GA balance accumulated. | C25: 1
C27: Transition Customers - Non-loss Adjusted Billing Determinants by Customer
C28: Customer | D28: Rate Class | F28: 2017 | H28: 2016 | J28: 2015 | L28: 2014 | N28: 2013
F29: January to June | G29: July to December | H29: January to June | I29: July to December | J29: January to June | K29: July to December | L29: January to June | M29: July to December | N29: January to June | O29: July to December
A30: =IF(AND(F32=G32,H32=I32,J32=K32,F32="A"),"2015 - kwh",IF(AND(F32=G32,H32=I32,J32<>K32,F32="A"),"2016 - kwh",IF(AND(F32=G32,H32<>I32,F32="A"),"2017 - kwh","N/A"))) -> N/A | B30: =IF(F32<>G32,"2017 - kwh",IF(H32<>I32,"2016 - kwh",IF(J32<>K32,"2015 - kwh","N/A"))) -> 2017 - kwh | C30: Customer 1 | D30: GENERAL SERVICE 50 to 4,999 kW SERVICE CLASSIFICATION | E30: kWh | F30: =1443205+1330365+1488551+1166464+1430636+1301675 -> 8160896 | G30: =1378999+1687985+1509462+1608872+1602160+1278317 -> 9065795 | H30: 0 | I30: 0 | J30: 0 | K30: 0 | AA30: =IF(AND(F32=G32,H32=I32,F32="A"),"2015 - kwh","") ->  | AB30: =IF(OR(B30="2016 - kwh",B30="2017 - kwh"),"2015 - kwh","") -> 2015 - kwh
A31: =IF(AND(F32=G32,H32=I32,J32=K32,F32="A"),"2015 - kw",IF(AND(F32=G32,H32=I32,J32<>K32,F32="A"),"2016 - kw",IF(AND(F32=G32,H32<>I32,F32="A"),"2017 - kw","N/A"))) -> N/A | B31: =IF(F32<>G32,"2017 - kw",IF(H32<>I32,"2016 - kw",IF(J32<>K32,"2015 - kw","N/A"))) -> 2017 - kw | D31: =D30 & "kW" -> GENERAL SERVICE 50 to 4,999 kW SERVICE CLASSIFICATIONkW | E31: kW | F31: =4610.76+4418.4+4714.92+4349.52+4495.68+4744.32 -> 27333.6 | G31: =4452.84+5071.92+4714.92+4878.72+4569.6+4402.44 -> 28090.44 | H31: 0 | I31: 0 | J31: 0 | K31: 0 | AA31: =IF(AND(F32=G32,H32=I32,F32="A"),"2015 - kw","") ->  | AB31: =IF(OR(B31="2016 - kw",B31="2017 - kw"),"2015 - kw","") -> 2015 - kw
E32: Class A/B | F32: B | G32: A
A33: =IF(AND(F35=G35,H35=I35,J35=K35,F35="A"),"2015 - kwh",IF(AND(F35=G35,H35=I35,J35<>K35,F35="A"),"2016 - kwh",IF(AND(F35=G35,H35<>I35,F35="A"),"2017 - kwh","N/A"))) -> N/A | B33: =IF(F35<>G35,"2017 - kwh",IF(H35<>I35,"2016 - kwh",IF(J35<>K35,"2015 - kwh","N/A"))) -> N/A | C33: Customer 2 | E33: kWh | AA33: =IF(AND(F35=G35,H35=I35,F35="A"),"2015 - kwh","") ->  | AB33: =IF(OR(B33="2016 - kwh",B33="2017 - kwh"),"2015 - kwh","") -> 
A34: =IF(AND(F35=G35,H35=I35,J35=K35,F35="A"),"2015 - kw",IF(AND(F35=G35,H35=I35,J35<>K35,F35="A"),"2016 - kw",IF(AND(F35=G35,H35<>I35,F35="A"),"2017 - kw","N/A"))) -> N/A | B34: =IF(F35<>G35,"2017 - kw",IF(H35<>I35,"2016 - kw",IF(J35<>K35,"2015 - kw","N/A"))) -> N/A | D34: =D33 & "kW" -> kW | E34: kW | AA34: =IF(AND(F35=G35,H35=I35,F35="A"),"2015 - kw","") ->  | AB34: =IF(OR(B34="2016 - kw",B34="2017 - kw"),"2015 - kw","") -> 
E35: Class A/B
A36: =IF(AND(F38=G38,H38=I38,J38=K38,F38="A"),"2015 - kwh",IF(AND(F38=G38,H38=I38,J38<>K38,F38="A"),"2016 - kwh",IF(AND(F38=G38,H38<>I38,F38="A"),"2017 - kwh","N/A"))) -> N/A | B36: =IF(F38<>G38,"2017 - kwh",IF(H38<>I38,"2016 - kwh",IF(J38<>K38,"2015 - kwh","N/A"))) -> N/A | C36: Customer 3 | E36: kWh | AA36: =IF(AND(F38=G38,H38=I38,F38="A"),"2015 - kwh","") ->  | AB36: =IF(OR(B36="2016 - kwh",B36="2017 - kwh"),"2015 - kwh","") -> 
A37: =IF(AND(F38=G38,H38=I38,J38=K38,F38="A"),"2015 - kw",IF(AND(F38=G38,H38=I38,J38<>K38,F38="A"),"2016 - kw",IF(AND(F38=G38,H38<>I38,F38="A"),"2017 - kw","N/A"))) -> N/A | B37: =IF(F38<>G38,"2017 - kw",IF(H38<>I38,"2016 - kw",IF(J38<>K38,"2015 - kw","N/A"))) -> N/A | D37: =D36 & "kW" -> kW | E37: kW | AA37: =IF(AND(F38=G38,H38=I38,F38="A"),"2015 - kw","") ->  | AB37: =IF(OR(B37="2016 - kw",B37="2017 - kw"),"2015 - kw","") -> 
E38: Class A/B
A39: =IF(AND(F41=G41,H41=I41,J41=K41,F41="A"),"2015 - kwh",IF(AND(F41=G41,H41=I41,J41<>K41,F41="A"),"2016 - kwh",IF(AND(F41=G41,H41<>I41,F41="A"),"2017 - kwh","N/A"))) -> N/A | B39: =IF(F41<>G41,"2017 - kwh",IF(H41<>I41,"2016 - kwh",IF(J41<>K41,"2015 - kwh","N/A"))) -> N/A | C39: Customer 4 | E39: kWh | AA39: =IF(AND(F41=G41,H41=I41,F41="A"),"2015 - kwh","") ->  | AB39: =IF(OR(B39="2016 - kwh",B39="2017 - kwh"),"2015 - kwh","") -> 
A40: =IF(AND(F41=G41,H41=I41,J41=K41,F41="A"),"2015 - kw",IF(AND(F41=G41,H41=I41,J41<>K41,F41="A"),"2016 - kw",IF(AND(F41=G41,H41<>I41,F41="A"),"2017 - kw","N/A"))) -> N/A | B40: =IF(F41<>G41,"2017 - kw",IF(H41<>I41,"2016 - kw",IF(J41<>K41,"2015 - kw","N/A"))) -> N/A | D40: =D39 & "kW" -> kW | E40: kW | AA40: =IF(AND(F41=G41,H41=I41,F41="A"),"2015 - kw","") ->  | AB40: =IF(OR(B40="2016 - kw",B40="2017 - kw"),"2015 - kw","") -> 
E41: Class A/B
A42: =IF(AND(F44=G44,H44=I44,J44=K44,F44="A"),"2015 - kwh",IF(AND(F44=G44,H44=I44,J44<>K44,F44="A"),"2016 - kwh",IF(AND(F44=G44,H44<>I44,F44="A"),"2017 - kwh","N/A"))) -> N/A | B42: =IF(F44<>G44,"2017 - kwh",IF(H44<>I44,"2016 - kwh",IF(J44<>K44,"2015 - kwh","N/A"))) -> N/A | C42: Customer 5 | E42: kWh | AA42: =IF(AND(F44=G44,H44=I44,F44="A"),"2015 - kwh","") ->  | AB42: =IF(OR(B42="2016 - kwh",B42="2017 - kwh"),"2015 - kwh","") -> 
A43: =IF(AND(F44=G44,H44=I44,J44=K44,F44="A"),"2015 - kw",IF(AND(F44=G44,H44=I44,J44<>K44,F44="A"),"2016 - kw",IF(AND(F44=G44,H44<>I44,F44="A"),"2017 - kw","N/A"))) -> N/A | B43: =IF(F44<>G44,"2017 - kw",IF(H44<>I44,"2016 - kw",IF(J44<>K44,"2015 - kw","N/A"))) -> N/A | D43: =D42 & "kW" -> kW | E43: kW | AA43: =IF(AND(F44=G44,H44=I44,F44="A"),"2015 - kw","") ->  | AB43: =IF(OR(B43="2016 - kw",B43="2017 - kw"),"2015 - kw","") -> 
E44: Class A/B
A45: =IF(AND(F47=G47,H47=I47,J47=K47,F47="A"),"2015 - kwh",IF(AND(F47=G47,H47=I47,J47<>K47,F47="A"),"2016 - kwh",IF(AND(F47=G47,H47<>I47,F47="A"),"2017 - kwh","N/A"))) -> N/A | B45: =IF(F47<>G47,"2017 - kwh",IF(H47<>I47,"2016 - kwh",IF(J47<>K47,"2015 - kwh","N/A"))) -> N/A | C45: Customer 6 | E45: kWh | AA45: =IF(AND(F47=G47,H47=I47,F47="A"),"2015 - kwh","") ->  | AB45: =IF(OR(B45="2016 - kwh",B45="2017 - kwh"),"2015 - kwh","") -> 
A46: =IF(AND(F47=G47,H47=I47,J47=K47,F47="A"),"2015 - kw",IF(AND(F47=G47,H47=I47,J47<>K47,F47="A"),"2016 - kw",IF(AND(F47=G47,H47<>I47,F47="A"),"2017 - kw","N/A"))) -> N/A | B46: =IF(F47<>G47,"2017 - kw",IF(H47<>I47,"2016 - kw",IF(J47<>K47,"2015 - kw","N/A"))) -> N/A | D46: =D45 & "kW" -> kW | E46: kW | AA46: =IF(AND(F47=G47,H47=I47,F47="A"),"2015 - kw","") ->  | AB46: =IF(OR(B46="2016 - kw",B46="2017 - kw"),"2015 - kw","") -> 
E47: Class A/B
A48: =IF(AND(F50=G50,H50=I50,J50=K50,F50="A"),"2015 - kwh",IF(AND(F50=G50,H50=I50,J50<>K50,F50="A"),"2016 - kwh",IF(AND(F50=G50,H50<>I50,F50="A"),"2017 - kwh","N/A"))) -> N/A | B48: =IF(F50<>G50,"2017 - kwh",IF(H50<>I50,"2016 - kwh",IF(J50<>K50,"2015 - kwh","N/A"))) -> N/A | C48: Customer 7 | E48: kWh | AA48: =IF(AND(F50=G50,H50=I50,F50="A"),"2015 - kwh","") ->  | AB48: =IF(OR(B48="2016 - kwh",B48="2017 - kwh"),"2015 - kwh","") -> 
A49: =IF(AND(F50=G50,H50=I50,J50=K50,F50="A"),"2015 - kw",IF(AND(F50=G50,H50=I50,J50<>K50,F50="A"),"2016 - kw",IF(AND(F50=G50,H50<>I50,F50="A"),"2017 - kw","N/A"))) -> N/A | B49: =IF(F50<>G50,"2017 - kw",IF(H50<>I50,"2016 - kw",IF(J50<>K50,"2015 - kw","N/A"))) -> N/A | D49: =D48 & "kW" -> kW | E49: kW | AA49: =IF(AND(F50=G50,H50=I50,F50="A"),"2015 - kw","") ->  | AB49: =IF(OR(B49="2016 - kw",B49="2017 - kw"),"2015 - kw","") -> 
E50: Class A/B
A51: =IF(AND(F53=G53,H53=I53,J53=K53,F53="A"),"2015 - kwh",IF(AND(F53=G53,H53=I53,J53<>K53,F53="A"),"2016 - kwh",IF(AND(F53=G53,H53<>I53,F53="A"),"2017 - kwh","N/A"))) -> N/A | B51: =IF(F53<>G53,"2017 - kwh",IF(H53<>I53,"2016 - kwh",IF(J53<>K53,"2015 - kwh","N/A"))) -> N/A | C51: Customer 8 | E51: kWh | AA51: =IF(AND(F53=G53,H53=I53,F53="A"),"2015 - kwh","") ->  | AB51: =IF(OR(B51="2016 - kwh",B51="2017 - kwh"),"2015 - kwh","") -> 
A52: =IF(AND(F53=G53,H53=I53,J53=K53,F53="A"),"2015 - kw",IF(AND(F53=G53,H53=I53,J53<>K53,F53="A"),"2016 - kw",IF(AND(F53=G53,H53<>I53,F53="A"),"2017 - kw","N/A"))) -> N/A | B52: =IF(F53<>G53,"2017 - kw",IF(H53<>I53,"2016 - kw",IF(J53<>K53,"2015 - kw","N/A"))) -> N/A | D52: =D51 & "kW" -> kW | E52: kW | AA52: =IF(AND(F53=G53,H53=I53,F53="A"),"2015 - kw","") ->  | AB52: =IF(OR(B52="2016 - kw",B52="2017 - kw"),"2015 - kw","") -> 
E53: Class A/B
A54: =IF(AND(F56=G56,H56=I56,J56=K56,F56="A"),"2015 - kwh",IF(AND(F56=G56,H56=I56,J56<>K56,F56="A"),"2016 - kwh",IF(AND(F56=G56,H56<>I56,F56="A"),"2017 - kwh","N/A"))) -> N/A | B54: =IF(F56<>G56,"2017 - kwh",IF(H56<>I56,"2016 - kwh",IF(J56<>K56,"2015 - kwh","N/A"))) -> N/A | C54: Customer 9 | E54: kWh | AA54: =IF(AND(F56=G56,H56=I56,F56="A"),"2015 - kwh","") ->  | AB54: =IF(OR(B54="2016 - kwh",B54="2017 - kwh"),"2015 - kwh","") -> 
A55: =IF(AND(F56=G56,H56=I56,J56=K56,F56="A"),"2015 - kw",IF(AND(F56=G56,H56=I56,J56<>K56,F56="A"),"2016 - kw",IF(AND(F56=G56,H56<>I56,F56="A"),"2017 - kw","N/A"))) -> N/A | B55: =IF(F56<>G56,"2017 - kw",IF(H56<>I56,"2016 - kw",IF(J56<>K56,"2015 - kw","N/A"))) -> N/A | D55: =D54 & "kW" -> kW | E55: kW | AA55: =IF(AND(F56=G56,H56=I56,F56="A"),"2015 - kw","") ->  | AB55: =IF(OR(B55="2016 - kw",B55="2017 - kw"),"2015 - kw","") -> 
E56: Class A/B
A57: =IF(AND(F59=G59,H59=I59,J59=K59,F59="A"),"2015 - kwh",IF(AND(F59=G59,H59=I59,J59<>K59,F59="A"),"2016 - kwh",IF(AND(F59=G59,H59<>I59,F59="A"),"2017 - kwh","N/A"))) -> N/A | B57: =IF(F59<>G59,"2017 - kwh",IF(H59<>I59,"2016 - kwh",IF(J59<>K59,"2015 - kwh","N/A"))) -> N/A | C57: Customer 10 | E57: kWh | AA57: =IF(AND(F59=G59,H59=I59,F59="A"),"2015 - kwh","") ->  | AB57: =IF(OR(B57="2016 - kwh",B57="2017 - kwh"),"2015 - kwh","") -> 
A58: =IF(AND(F59=G59,H59=I59,J59=K59,F59="A"),"2015 - kw",IF(AND(F59=G59,H59=I59,J59<>K59,F59="A"),"2016 - kw",IF(AND(F59=G59,H59<>I59,F59="A"),"2017 - kw","N/A"))) -> N/A | B58: =IF(F59<>G59,"2017 - kw",IF(H59<>I59,"2016 - kw",IF(J59<>K59,"2015 - kw","N/A"))) -> N/A | D58: =D57 & "kW" -> kW | E58: kW | AA58: =IF(AND(F59=G59,H59=I59,F59="A"),"2015 - kw","") ->  | AB58: =IF(OR(B58="2016 - kw",B58="2017 - kw"),"2015 - kw","") -> 
E59: Class A/B
A60: =IF(AND(F62=G62,H62=I62,J62=K62,F62="A"),"2015 - kwh",IF(AND(F62=G62,H62=I62,J62<>K62,F62="A"),"2016 - kwh",IF(AND(F62=G62,H62<>I62,F62="A"),"2017 - kwh","N/A"))) -> N/A | B60: =IF(F62<>G62,"2017 - kwh",IF(H62<>I62,"2016 - kwh",IF(J62<>K62,"2015 - kwh","N/A"))) -> N/A | C60: Customer 11 | E60: kWh | AA60: =IF(AND(F62=G62,H62=I62,F62="A"),"2015 - kwh","") ->  | AB60: =IF(OR(B60="2016 - kwh",B60="2017 - kwh"),"2015 - kwh","") -> 
A61: =IF(AND(F62=G62,H62=I62,J62=K62,F62="A"),"2015 - kw",IF(AND(F62=G62,H62=I62,J62<>K62,F62="A"),"2016 - kw",IF(AND(F62=G62,H62<>I62,F62="A"),"2017 - kw","N/A"))) -> N/A | B61: =IF(F62<>G62,"2017 - kw",IF(H62<>I62,"2016 - kw",IF(J62<>K62,"2015 - kw","N/A"))) -> N/A | D61: =D60 & "kW" -> kW | E61: kW | AA61: =IF(AND(F62=G62,H62=I62,F62="A"),"2015 - kw","") ->  | AB61: =IF(OR(B61="2016 - kw",B61="2017 - kw"),"2015 - kw","") -> 
E62: Class A/B
A63: =IF(AND(F65=G65,H65=I65,J65=K65,F65="A"),"2015 - kwh",IF(AND(F65=G65,H65=I65,J65<>K65,F65="A"),"2016 - kwh",IF(AND(F65=G65,H65<>I65,F65="A"),"2017 - kwh","N/A"))) -> N/A | B63: =IF(F65<>G65,"2017 - kwh",IF(H65<>I65,"2016 - kwh",IF(J65<>K65,"2015 - kwh","N/A"))) -> N/A | C63: Customer 12 | E63: kWh | AA63: =IF(AND(F65=G65,H65=I65,F65="A"),"2015 - kwh","") ->  | AB63: =IF(OR(B63="2016 - kwh",B63="2017 - kwh"),"2015 - kwh","") -> 
A64: =IF(AND(F65=G65,H65=I65,J65=K65,F65="A"),"2015 - kw",IF(AND(F65=G65,H65=I65,J65<>K65,F65="A"),"2016 - kw",IF(AND(F65=G65,H65<>I65,F65="A"),"2017 - kw","N/A"))) -> N/A | B64: =IF(F65<>G65,"2017 - kw",IF(H65<>I65,"2016 - kw",IF(J65<>K65,"2015 - kw","N/A"))) -> N/A | D64: =D63 & "kW" -> kW | E64: kW | AA64: =IF(AND(F65=G65,H65=I65,F65="A"),"2015 - kw","") ->  | AB64: =IF(OR(B64="2016 - kw",B64="2017 - kw"),"2015 - kw","") -> 
E65: Class A/B
A66: =IF(AND(F68=G68,H68=I68,J68=K68,F68="A"),"2015 - kwh",IF(AND(F68=G68,H68=I68,J68<>K68,F68="A"),"2016 - kwh",IF(AND(F68=G68,H68<>I68,F68="A"),"2017 - kwh","N/A"))) -> N/A | B66: =IF(F68<>G68,"2017 - kwh",IF(H68<>I68,"2016 - kwh",IF(J68<>K68,"2015 - kwh","N/A"))) -> N/A | C66: Customer 13 | E66: kWh | AA66: =IF(AND(F68=G68,H68=I68,F68="A"),"2015 - kwh","") ->  | AB66: =IF(OR(B66="2016 - kwh",B66="2017 - kwh"),"2015 - kwh","") -> 
A67: =IF(AND(F68=G68,H68=I68,J68=K68,F68="A"),"2015 - kw",IF(AND(F68=G68,H68=I68,J68<>K68,F68="A"),"2016 - kw",IF(AND(F68=G68,H68<>I68,F68="A"),"2017 - kw","N/A"))) -> N/A | B67: =IF(F68<>G68,"2017 - kw",IF(H68<>I68,"2016 - kw",IF(J68<>K68,"2015 - kw","N/A"))) -> N/A | D67: =D66 & "kW" -> kW | E67: kW | AA67: =IF(AND(F68=G68,H68=I68,F68="A"),"2015 - kw","") ->  | AB67: =IF(OR(B67="2016 - kw",B67="2017 - kw"),"2015 - kw","") -> 
E68: Class A/B
A69: =IF(AND(F71=G71,H71=I71,J71=K71,F71="A"),"2015 - kwh",IF(AND(F71=G71,H71=I71,J71<>K71,F71="A"),"2016 - kwh",IF(AND(F71=G71,H71<>I71,F71="A"),"2017 - kwh","N/A"))) -> N/A | B69: =IF(F71<>G71,"2017 - kwh",IF(H71<>I71,"2016 - kwh",IF(J71<>K71,"2015 - kwh","N/A"))) -> N/A | C69: Customer 14 | E69: kWh | AA69: =IF(AND(F71=G71,H71=I71,F71="A"),"2015 - kwh","") ->  | AB69: =IF(OR(B69="2016 - kwh",B69="2017 - kwh"),"2015 - kwh","") -> 
A70: =IF(AND(F71=G71,H71=I71,J71=K71,F71="A"),"2015 - kw",IF(AND(F71=G71,H71=I71,J71<>K71,F71="A"),"2016 - kw",IF(AND(F71=G71,H71<>I71,F71="A"),"2017 - kw","N/A"))) -> N/A | B70: =IF(F71<>G71,"2017 - kw",IF(H71<>I71,"2016 - kw",IF(J71<>K71,"2015 - kw","N/A"))) -> N/A | D70: =D69 & "kW" -> kW | E70: kW | AA70: =IF(AND(F71=G71,H71=I71,F71="A"),"2015 - kw","") ->  | AB70: =IF(OR(B70="2016 - kw",B70="2017 - kw"),"2015 - kw","") -> 
E71: Class A/B
A72: =IF(AND(F74=G74,H74=I74,J74=K74,F74="A"),"2015 - kwh",IF(AND(F74=G74,H74=I74,J74<>K74,F74="A"),"2016 - kwh",IF(AND(F74=G74,H74<>I74,F74="A"),"2017 - kwh","N/A"))) -> N/A | B72: =IF(F74<>G74,"2017 - kwh",IF(H74<>I74,"2016 - kwh",IF(J74<>K74,"2015 - kwh","N/A"))) -> N/A | C72: Customer 15 | E72: kWh | AA72: =IF(AND(F74=G74,H74=I74,F74="A"),"2015 - kwh","") ->  | AB72: =IF(OR(B72="2016 - kwh",B72="2017 - kwh"),"2015 - kwh","") -> 
A73: =IF(AND(F74=G74,H74=I74,J74=K74,F74="A"),"2015 - kw",IF(AND(F74=G74,H74=I74,J74<>K74,F74="A"),"2016 - kw",IF(AND(F74=G74,H74<>I74,F74="A"),"2017 - kw","N/A"))) -> N/A | B73: =IF(F74<>G74,"2017 - kw",IF(H74<>I74,"2016 - kw",IF(J74<>K74,"2015 - kw","N/A"))) -> N/A | D73: =D72 & "kW" -> kW | E73: kW | AA73: =IF(AND(F74=G74,H74=I74,F74="A"),"2015 - kw","") ->  | AB73: =IF(OR(B73="2016 - kw",B73="2017 - kw"),"2015 - kw","") -> 
E74: Class A/B
A75: =IF(AND(F77=G77,H77=I77,J77=K77,F77="A"),"2015 - kwh",IF(AND(F77=G77,H77=I77,J77<>K77,F77="A"),"2016 - kwh",IF(AND(F77=G77,H77<>I77,F77="A"),"2017 - kwh","N/A"))) -> N/A | B75: =IF(F77<>G77,"2017 - kwh",IF(H77<>I77,"2016 - kwh",IF(J77<>K77,"2015 - kwh","N/A"))) -> N/A | C75: Customer 16 | E75: kWh | AA75: =IF(AND(F77=G77,H77=I77,F77="A"),"2015 - kwh","") ->  | AB75: =IF(OR(B75="2016 - kwh",B75="2017 - kwh"),"2015 - kwh","") -> 
A76: =IF(AND(F77=G77,H77=I77,J77=K77,F77="A"),"2015 - kw",IF(AND(F77=G77,H77=I77,J77<>K77,F77="A"),"2016 - kw",IF(AND(F77=G77,H77<>I77,F77="A"),"2017 - kw","N/A"))) -> N/A | B76: =IF(F77<>G77,"2017 - kw",IF(H77<>I77,"2016 - kw",IF(J77<>K77,"2015 - kw","N/A"))) -> N/A | D76: =D75 & "kW" -> kW | E76: kW | AA76: =IF(AND(F77=G77,H77=I77,F77="A"),"2015 - kw","") ->  | AB76: =IF(OR(B76="2016 - kw",B76="2017 - kw"),"2015 - kw","") -> 
E77: Class A/B
A78: =IF(AND(F80=G80,H80=I80,J80=K80,F80="A"),"2015 - kwh",IF(AND(F80=G80,H80=I80,J80<>K80,F80="A"),"2016 - kwh",IF(AND(F80=G80,H80<>I80,F80="A"),"2017 - kwh","N/A"))) -> N/A | B78: =IF(F80<>G80,"2017 - kwh",IF(H80<>I80,"2016 - kwh",IF(J80<>K80,"2015 - kwh","N/A"))) -> N/A | C78: Customer 17 | E78: kWh | AA78: =IF(AND(F80=G80,H80=I80,F80="A"),"2015 - kwh","") ->  | AB78: =IF(OR(B78="2016 - kwh",B78="2017 - kwh"),"2015 - kwh","") -> 
A79: =IF(AND(F80=G80,H80=I80,J80=K80,F80="A"),"2015 - kw",IF(AND(F80=G80,H80=I80,J80<>K80,F80="A"),"2016 - kw",IF(AND(F80=G80,H80<>I80,F80="A"),"2017 - kw","N/A"))) -> N/A | B79: =IF(F80<>G80,"2017 - kw",IF(H80<>I80,"2016 - kw",IF(J80<>K80,"2015 - kw","N/A"))) -> N/A | D79: =D78 & "kW" -> kW | E79: kW | AA79: =IF(AND(F80=G80,H80=I80,F80="A"),"2015 - kw","") ->  | AB79: =IF(OR(B79="2016 - kw",B79="2017 - kw"),"2015 - kw","") -> 
E80: Class A/B
A81: =IF(AND(F83=G83,H83=I83,J83=K83,F83="A"),"2015 - kwh",IF(AND(F83=G83,H83=I83,J83<>K83,F83="A"),"2016 - kwh",IF(AND(F83=G83,H83<>I83,F83="A"),"2017 - kwh","N/A"))) -> N/A | B81: =IF(F83<>G83,"2017 - kwh",IF(H83<>I83,"2016 - kwh",IF(J83<>K83,"2015 - kwh","N/A"))) -> N/A | C81: Customer 18 | E81: kWh | AA81: =IF(AND(F83=G83,H83=I83,F83="A"),"2015 - kwh","") ->  | AB81: =IF(OR(B81="2016 - kwh",B81="2017 - kwh"),"2015 - kwh","") -> 
A82: =IF(AND(F83=G83,H83=I83,J83=K83,F83="A"),"2015 - kw",IF(AND(F83=G83,H83=I83,J83<>K83,F83="A"),"2016 - kw",IF(AND(F83=G83,H83<>I83,F83="A"),"2017 - kw","N/A"))) -> N/A | B82: =IF(F83<>G83,"2017 - kw",IF(H83<>I83,"2016 - kw",IF(J83<>K83,"2015 - kw","N/A"))) -> N/A | D82: =D81 & "kW" -> kW | E82: kW | AA82: =IF(AND(F83=G83,H83=I83,F83="A"),"2015 - kw","") ->  | AB82: =IF(OR(B82="2016 - kw",B82="2017 - kw"),"2015 - kw","") -> 
E83: Class A/B
A84: =IF(AND(F86=G86,H86=I86,J86=K86,F86="A"),"2015 - kwh",IF(AND(F86=G86,H86=I86,J86<>K86,F86="A"),"2016 - kwh",IF(AND(F86=G86,H86<>I86,F86="A"),"2017 - kwh","N/A"))) -> N/A | B84: =IF(F86<>G86,"2017 - kwh",IF(H86<>I86,"2016 - kwh",IF(J86<>K86,"2015 - kwh","N/A"))) -> N/A | C84: Customer 19 | E84: kWh | AA84: =IF(AND(F86=G86,H86=I86,F86="A"),"2015 - kwh","") ->  | AB84: =IF(OR(B84="2016 - kwh",B84="2017 - kwh"),"2015 - kwh","") -> 
A85: =IF(AND(F86=G86,H86=I86,J86=K86,F86="A"),"2015 - kw",IF(AND(F86=G86,H86=I86,J86<>K86,F86="A"),"2016 - kw",IF(AND(F86=G86,H86<>I86,F86="A"),"2017 - kw","N/A"))) -> N/A | B85: =IF(F86<>G86,"2017 - kw",IF(H86<>I86,"2016 - kw",IF(J86<>K86,"2015 - kw","N/A"))) -> N/A | D85: =D84 & "kW" -> kW | E85: kW | AA85: =IF(AND(F86=G86,H86=I86,F86="A"),"2015 - kw","") ->  | AB85: =IF(OR(B85="2016 - kw",B85="2017 - kw"),"2015 - kw","") -> 
E86: Class A/B
A87: =IF(AND(F89=G89,H89=I89,J89=K89,F89="A"),"2015 - kwh",IF(AND(F89=G89,H89=I89,J89<>K89,F89="A"),"2016 - kwh",IF(AND(F89=G89,H89<>I89,F89="A"),"2017 - kwh","N/A"))) -> N/A | B87: =IF(F89<>G89,"2017 - kwh",IF(H89<>I89,"2016 - kwh",IF(J89<>K89,"2015 - kwh","N/A"))) -> N/A | C87: Customer 20 | E87: kWh | AA87: =IF(AND(F89=G89,H89=I89,F89="A"),"2015 - kwh","") ->  | AB87: =IF(OR(B87="2016 - kwh",B87="2017 - kwh"),"2015 - kwh","") -> 
A88: =IF(AND(F89=G89,H89=I89,J89=K89,F89="A"),"2015 - kw",IF(AND(F89=G89,H89=I89,J89<>K89,F89="A"),"2016 - kw",IF(AND(F89=G89,H89<>I89,F89="A"),"2017 - kw","N/A"))) -> N/A | B88: =IF(F89<>G89,"2017 - kw",IF(H89<>I89,"2016 - kw",IF(J89<>K89,"2015 - kw","N/A"))) -> N/A | D88: =D87 & "kW" -> kW | E88: kW | AA88: =IF(AND(F89=G89,H89=I89,F89="A"),"2015 - kw","") ->  | AB88: =IF(OR(B88="2016 - kw",B88="2017 - kw"),"2015 - kw","") -> 
E89: Class A/B
A90: =IF(AND(F92=G92,H92=I92,J92=K92,F92="A"),"2015 - kwh",IF(AND(F92=G92,H92=I92,J92<>K92,F92="A"),"2016 - kwh",IF(AND(F92=G92,H92<>I92,F92="A"),"2017 - kwh","N/A"))) -> N/A | B90: =IF(F92<>G92,"2017 - kwh",IF(H92<>I92,"2016 - kwh",IF(J92<>K92,"2015 - kwh","N/A"))) -> N/A | C90: Customer 21 | E90: kWh | AA90: =IF(AND(F92=G92,H92=I92,F92="A"),"2015 - kwh","") ->  | AB90: =IF(OR(B90="2016 - kwh",B90="2017 - kwh"),"2015 - kwh","") -> 
A91: =IF(AND(F92=G92,H92=I92,J92=K92,F92="A"),"2015 - kw",IF(AND(F92=G92,H92=I92,J92<>K92,F92="A"),"2016 - kw",IF(AND(F92=G92,H92<>I92,F92="A"),"2017 - kw","N/A"))) -> N/A | B91: =IF(F92<>G92,"2017 - kw",IF(H92<>I92,"2016 - kw",IF(J92<>K92,"2015 - kw","N/A"))) -> N/A | D91: =D90 & "kW" -> kW | E91: kW | AA91: =IF(AND(F92=G92,H92=I92,F92="A"),"2015 - kw","") ->  | AB91: =IF(OR(B91="2016 - kw",B91="2017 - kw"),"2015 - kw","") -> 
E92: Class A/B
A93: =IF(AND(F95=G95,H95=I95,J95=K95,F95="A"),"2015 - kwh",IF(AND(F95=G95,H95=I95,J95<>K95,F95="A"),"2016 - kwh",IF(AND(F95=G95,H95<>I95,F95="A"),"2017 - kwh","N/A"))) -> N/A | B93: =IF(F95<>G95,"2017 - kwh",IF(H95<>I95,"2016 - kwh",IF(J95<>K95,"2015 - kwh","N/A"))) -> N/A | C93: Customer 22 | E93: kWh | AA93: =IF(AND(F95=G95,H95=I95,F95="A"),"2015 - kwh","") ->  | AB93: =IF(OR(B93="2016 - kwh",B93="2017 - kwh"),"2015 - kwh","") -> 
A94: =IF(AND(F95=G95,H95=I95,J95=K95,F95="A"),"2015 - kw",IF(AND(F95=G95,H95=I95,J95<>K95,F95="A"),"2016 - kw",IF(AND(F95=G95,H95<>I95,F95="A"),"2017 - kw","N/A"))) -> N/A | B94: =IF(F95<>G95,"2017 - kw",IF(H95<>I95,"2016 - kw",IF(J95<>K95,"2015 - kw","N/A"))) -> N/A | D94: =D93 & "kW" -> kW | E94: kW | AA94: =IF(AND(F95=G95,H95=I95,F95="A"),"2015 - kw","") ->  | AB94: =IF(OR(B94="2016 - kw",B94="2017 - kw"),"2015 - kw","") -> 
E95: Class A/B
A96: =IF(AND(F98=G98,H98=I98,J98=K98,F98="A"),"2015 - kwh",IF(AND(F98=G98,H98=I98,J98<>K98,F98="A"),"2016 - kwh",IF(AND(F98=G98,H98<>I98,F98="A"),"2017 - kwh","N/A"))) -> N/A | B96: =IF(F98<>G98,"2017 - kwh",IF(H98<>I98,"2016 - kwh",IF(J98<>K98,"2015 - kwh","N/A"))) -> N/A | C96: Customer 23 | E96: kWh | AA96: =IF(AND(F98=G98,H98=I98,F98="A"),"2015 - kwh","") ->  | AB96: =IF(OR(B96="2016 - kwh",B96="2017 - kwh"),"2015 - kwh","") -> 
A97: =IF(AND(F98=G98,H98=I98,J98=K98,F98="A"),"2015 - kw",IF(AND(F98=G98,H98=I98,J98<>K98,F98="A"),"2016 - kw",IF(AND(F98=G98,H98<>I98,F98="A"),"2017 - kw","N/A"))) -> N/A | B97: =IF(F98<>G98,"2017 - kw",IF(H98<>I98,"2016 - kw",IF(J98<>K98,"2015 - kw","N/A"))) -> N/A | D97: =D96 & "kW" -> kW | E97: kW | AA97: =IF(AND(F98=G98,H98=I98,F98="A"),"2015 - kw","") ->  | AB97: =IF(OR(B97="2016 - kw",B97="2017 - kw"),"2015 - kw","") -> 
E98: Class A/B
A99: =IF(AND(F101=G101,H101=I101,J101=K101,F101="A"),"2015 - kwh",IF(AND(F101=G101,H101=I101,J101<>K101,F101="A"),"2016 - kwh",IF(AND(F101=G101,H101<>I101,F101="A"),"2017 - kwh","N/A"))) -> N/A | B99: =IF(F101<>G101,"2017 - kwh",IF(H101<>I101,"2016 - kwh",IF(J101<>K101,"2015 - kwh","N/A"))) -> N/A | C99: Customer 24 | E99: kWh | AA99: =IF(AND(F101=G101,H101=I101,F101="A"),"2015 - kwh","") ->  | AB99: =IF(OR(B99="2016 - kwh",B99="2017 - kwh"),"2015 - kwh","") -> 
A100: =IF(AND(F101=G101,H101=I101,J101=K101,F101="A"),"2015 - kw",IF(AND(F101=G101,H101=I101,J101<>K101,F101="A"),"2016 - kw",IF(AND(F101=G101,H101<>I101,F101="A"),"2017 - kw","N/A"))) -> N/A | B100: =IF(F101<>G101,"2017 - kw",IF(H101<>I101,"2016 - kw",IF(J101<>K101,"2015 - kw","N/A"))) -> N/A | D100: =D99 & "kW" -> kW | E100: kW | AA100: =IF(AND(F101=G101,H101=I101,F101="A"),"2015 - kw","") ->  | AB100: =IF(OR(B100="2016 - kw",B100="2017 - kw"),"2015 - kw","") -> 
E101: Class A/B
A102: =IF(AND(F104=G104,H104=I104,J104=K104,F104="A"),"2015 - kwh",IF(AND(F104=G104,H104=I104,J104<>K104,F104="A"),"2016 - kwh",IF(AND(F104=G104,H104<>I104,F104="A"),"2017 - kwh","N/A"))) -> N/A | B102: =IF(F104<>G104,"2017 - kwh",IF(H104<>I104,"2016 - kwh",IF(J104<>K104,"2015 - kwh","N/A"))) -> N/A | C102: Customer 25 | E102: kWh | AA102: =IF(AND(F104=G104,H104=I104,F104="A"),"2015 - kwh","") ->  | AB102: =IF(OR(B102="2016 - kwh",B102="2017 - kwh"),"2015 - kwh","") -> 
A103: =IF(AND(F104=G104,H104=I104,J104=K104,F104="A"),"2015 - kw",IF(AND(F104=G104,H104=I104,J104<>K104,F104="A"),"2016 - kw",IF(AND(F104=G104,H104<>I104,F104="A"),"2017 - kw","N/A"))) -> N/A | B103: =IF(F104<>G104,"2017 - kw",IF(H104<>I104,"2016 - kw",IF(J104<>K104,"2015 - kw","N/A"))) -> N/A | D103: =D102 & "kW" -> kW | E103: kW | AA103: =IF(AND(F104=G104,H104=I104,F104="A"),"2015 - kw","") ->  | AB103: =IF(OR(B103="2016 - kw",B103="2017 - kw"),"2015 - kw","") -> 
E104: Class A/B
A105: =IF(AND(F107=G107,H107=I107,J107=K107,F107="A"),"2015 - kwh",IF(AND(F107=G107,H107=I107,J107<>K107,F107="A"),"2016 - kwh",IF(AND(F107=G107,H107<>I107,F107="A"),"2017 - kwh","N/A"))) -> N/A | B105: =IF(F107<>G107,"2017 - kwh",IF(H107<>I107,"2016 - kwh",IF(J107<>K107,"2015 - kwh","N/A"))) -> N/A | C105: Customer 26 | E105: kWh | AA105: =IF(AND(F107=G107,H107=I107,F107="A"),"2015 - kwh","") ->  | AB105: =IF(OR(B105="2016 - kwh",B105="2017 - kwh"),"2015 - kwh","") -> 
A106: =IF(AND(F107=G107,H107=I107,J107=K107,F107="A"),"2015 - kw",IF(AND(F107=G107,H107=I107,J107<>K107,F107="A"),"2016 - kw",IF(AND(F107=G107,H107<>I107,F107="A"),"2017 - kw","N/A"))) -> N/A | B106: =IF(F107<>G107,"2017 - kw",IF(H107<>I107,"2016 - kw",IF(J107<>K107,"2015 - kw","N/A"))) -> N/A | D106: =D105 & "kW" -> kW | E106: kW | AA106: =IF(AND(F107=G107,H107=I107,F107="A"),"2015 - kw","") ->  | AB106: =IF(OR(B106="2016 - kw",B106="2017 - kw"),"2015 - kw","") -> 
E107: Class A/B
A108: =IF(AND(F110=G110,H110=I110,J110=K110,F110="A"),"2015 - kwh",IF(AND(F110=G110,H110=I110,J110<>K110,F110="A"),"2016 - kwh",IF(AND(F110=G110,H110<>I110,F110="A"),"2017 - kwh","N/A"))) -> N/A | B108: =IF(F110<>G110,"2017 - kwh",IF(H110<>I110,"2016 - kwh",IF(J110<>K110,"2015 - kwh","N/A"))) -> N/A | C108: Customer 27 | E108: kWh | AA108: =IF(AND(F110=G110,H110=I110,F110="A"),"2015 - kwh","") ->  | AB108: =IF(OR(B108="2016 - kwh",B108="2017 - kwh"),"2015 - kwh","") -> 
A109: =IF(AND(F110=G110,H110=I110,J110=K110,F110="A"),"2015 - kw",IF(AND(F110=G110,H110=I110,J110<>K110,F110="A"),"2016 - kw",IF(AND(F110=G110,H110<>I110,F110="A"),"2017 - kw","N/A"))) -> N/A | B109: =IF(F110<>G110,"2017 - kw",IF(H110<>I110,"2016 - kw",IF(J110<>K110,"2015 - kw","N/A"))) -> N/A | D109: =D108 & "kW" -> kW | E109: kW | AA109: =IF(AND(F110=G110,H110=I110,F110="A"),"2015 - kw","") ->  | AB109: =IF(OR(B109="2016 - kw",B109="2017 - kw"),"2015 - kw","") -> 
E110: Class A/B
A111: =IF(AND(F113=G113,H113=I113,J113=K113,F113="A"),"2015 - kwh",IF(AND(F113=G113,H113=I113,J113<>K113,F113="A"),"2016 - kwh",IF(AND(F113=G113,H113<>I113,F113="A"),"2017 - kwh","N/A"))) -> N/A | B111: =IF(F113<>G113,"2017 - kwh",IF(H113<>I113,"2016 - kwh",IF(J113<>K113,"2015 - kwh","N/A"))) -> N/A | C111: Customer 28 | E111: kWh | AA111: =IF(AND(F113=G113,H113=I113,F113="A"),"2015 - kwh","") ->  | AB111: =IF(OR(B111="2016 - kwh",B111="2017 - kwh"),"2015 - kwh","") -> 
A112: =IF(AND(F113=G113,H113=I113,J113=K113,F113="A"),"2015 - kw",IF(AND(F113=G113,H113=I113,J113<>K113,F113="A"),"2016 - kw",IF(AND(F113=G113,H113<>I113,F113="A"),"2017 - kw","N/A"))) -> N/A | B112: =IF(F113<>G113,"2017 - kw",IF(H113<>I113,"2016 - kw",IF(J113<>K113,"2015 - kw","N/A"))) -> N/A | D112: =D111 & "kW" -> kW | E112: kW | AA112: =IF(AND(F113=G113,H113=I113,F113="A"),"2015 - kw","") ->  | AB112: =IF(OR(B112="2016 - kw",B112="2017 - kw"),"2015 - kw","") -> 
E113: Class A/B
A114: =IF(AND(F116=G116,H116=I116,J116=K116,F116="A"),"2015 - kwh",IF(AND(F116=G116,H116=I116,J116<>K116,F116="A"),"2016 - kwh",IF(AND(F116=G116,H116<>I116,F116="A"),"2017 - kwh","N/A"))) -> N/A | B114: =IF(F116<>G116,"2017 - kwh",IF(H116<>I116,"2016 - kwh",IF(J116<>K116,"2015 - kwh","N/A"))) -> N/A | C114: Customer 29 | E114: kWh | AA114: =IF(AND(F116=G116,H116=I116,F116="A"),"2015 - kwh","") ->  | AB114: =IF(OR(B114="2016 - kwh",B114="2017 - kwh"),"2015 - kwh","") -> 
A115: =IF(AND(F116=G116,H116=I116,J116=K116,F116="A"),"2015 - kw",IF(AND(F116=G116,H116=I116,J116<>K116,F116="A"),"2016 - kw",IF(AND(F116=G116,H116<>I116,F116="A"),"2017 - kw","N/A"))) -> N/A | B115: =IF(F116<>G116,"2017 - kw",IF(H116<>I116,"2016 - kw",IF(J116<>K116,"2015 - kw","N/A"))) -> N/A | D115: =D114 & "kW" -> kW | E115: kW | AA115: =IF(AND(F116=G116,H116=I116,F116="A"),"2015 - kw","") ->  | AB115: =IF(OR(B115="2016 - kw",B115="2017 - kw"),"2015 - kw","") -> 
E116: Class A/B
A117: =IF(AND(F119=G119,H119=I119,J119=K119,F119="A"),"2015 - kwh",IF(AND(F119=G119,H119=I119,J119<>K119,F119="A"),"2016 - kwh",IF(AND(F119=G119,H119<>I119,F119="A"),"2017 - kwh","N/A"))) -> N/A | B117: =IF(F119<>G119,"2017 - kwh",IF(H119<>I119,"2016 - kwh",IF(J119<>K119,"2015 - kwh","N/A"))) -> N/A | C117: Customer 30 | E117: kWh | AA117: =IF(AND(F119=G119,H119=I119,F119="A"),"2015 - kwh","") ->  | AB117: =IF(OR(B117="2016 - kwh",B117="2017 - kwh"),"2015 - kwh","") -> 
A118: =IF(AND(F119=G119,H119=I119,J119=K119,F119="A"),"2015 - kw",IF(AND(F119=G119,H119=I119,J119<>K119,F119="A"),"2016 - kw",IF(AND(F119=G119,H119<>I119,F119="A"),"2017 - kw","N/A"))) -> N/A | B118: =IF(F119<>G119,"2017 - kw",IF(H119<>I119,"2016 - kw",IF(J119<>K119,"2015 - kw","N/A"))) -> N/A | D118: =D117 & "kW" -> kW | E118: kW | AA118: =IF(AND(F119=G119,H119=I119,F119="A"),"2015 - kw","") ->  | AB118: =IF(OR(B118="2016 - kw",B118="2017 - kw"),"2015 - kw","") -> 
E119: Class A/B
A120: =IF(AND(F122=G122,H122=I122,J122=K122,F122="A"),"2015 - kwh",IF(AND(F122=G122,H122=I122,J122<>K122,F122="A"),"2016 - kwh",IF(AND(F122=G122,H122<>I122,F122="A"),"2017 - kwh","N/A"))) -> N/A | B120: =IF(F122<>G122,"2017 - kwh",IF(H122<>I122,"2016 - kwh",IF(J122<>K122,"2015 - kwh","N/A"))) -> N/A | C120: Customer 31 | E120: kWh | AA120: =IF(AND(F122=G122,H122=I122,F122="A"),"2015 - kwh","") ->  | AB120: =IF(OR(B120="2016 - kwh",B120="2017 - kwh"),"2015 - kwh","") -> 
A121: =IF(AND(F122=G122,H122=I122,J122=K122,F122="A"),"2015 - kw",IF(AND(F122=G122,H122=I122,J122<>K122,F122="A"),"2016 - kw",IF(AND(F122=G122,H122<>I122,F122="A"),"2017 - kw","N/A"))) -> N/A | B121: =IF(F122<>G122,"2017 - kw",IF(H122<>I122,"2016 - kw",IF(J122<>K122,"2015 - kw","N/A"))) -> N/A | D121: =D120 & "kW" -> kW | E121: kW | AA121: =IF(AND(F122=G122,H122=I122,F122="A"),"2015 - kw","") ->  | AB121: =IF(OR(B121="2016 - kw",B121="2017 - kw"),"2015 - kw","") -> 
E122: Class A/B
A123: =IF(AND(F125=G125,H125=I125,J125=K125,F125="A"),"2015 - kwh",IF(AND(F125=G125,H125=I125,J125<>K125,F125="A"),"2016 - kwh",IF(AND(F125=G125,H125<>I125,F125="A"),"2017 - kwh","N/A"))) -> N/A | B123: =IF(F125<>G125,"2017 - kwh",IF(H125<>I125,"2016 - kwh",IF(J125<>K125,"2015 - kwh","N/A"))) -> N/A | C123: Customer 32 | E123: kWh | AA123: =IF(AND(F125=G125,H125=I125,F125="A"),"2015 - kwh","") ->  | AB123: =IF(OR(B123="2016 - kwh",B123="2017 - kwh"),"2015 - kwh","") -> 
A124: =IF(AND(F125=G125,H125=I125,J125=K125,F125="A"),"2015 - kw",IF(AND(F125=G125,H125=I125,J125<>K125,F125="A"),"2016 - kw",IF(AND(F125=G125,H125<>I125,F125="A"),"2017 - kw","N/A"))) -> N/A | B124: =IF(F125<>G125,"2017 - kw",IF(H125<>I125,"2016 - kw",IF(J125<>K125,"2015 - kw","N/A"))) -> N/A | D124: =D123 & "kW" -> kW | E124: kW | AA124: =IF(AND(F125=G125,H125=I125,F125="A"),"2015 - kw","") ->  | AB124: =IF(OR(B124="2016 - kw",B124="2017 - kw"),"2015 - kw","") -> 
E125: Class A/B
A126: =IF(AND(F128=G128,H128=I128,J128=K128,F128="A"),"2015 - kwh",IF(AND(F128=G128,H128=I128,J128<>K128,F128="A"),"2016 - kwh",IF(AND(F128=G128,H128<>I128,F128="A"),"2017 - kwh","N/A"))) -> N/A | B126: =IF(F128<>G128,"2017 - kwh",IF(H128<>I128,"2016 - kwh",IF(J128<>K128,"2015 - kwh","N/A"))) -> N/A | C126: Customer 33 | E126: kWh | AA126: =IF(AND(F128=G128,H128=I128,F128="A"),"2015 - kwh","") ->  | AB126: =IF(OR(B126="2016 - kwh",B126="2017 - kwh"),"2015 - kwh","") -> 
A127: =IF(AND(F128=G128,H128=I128,J128=K128,F128="A"),"2015 - kw",IF(AND(F128=G128,H128=I128,J128<>K128,F128="A"),"2016 - kw",IF(AND(F128=G128,H128<>I128,F128="A"),"2017 - kw","N/A"))) -> N/A | B127: =IF(F128<>G128,"2017 - kw",IF(H128<>I128,"2016 - kw",IF(J128<>K128,"2015 - kw","N/A"))) -> N/A | D127: =D126 & "kW" -> kW | E127: kW | AA127: =IF(AND(F128=G128,H128=I128,F128="A"),"2015 - kw","") ->  | AB127: =IF(OR(B127="2016 - kw",B127="2017 - kw"),"2015 - kw","") -> 
E128: Class A/B
A129: =IF(AND(F131=G131,H131=I131,J131=K131,F131="A"),"2015 - kwh",IF(AND(F131=G131,H131=I131,J131<>K131,F131="A"),"2016 - kwh",IF(AND(F131=G131,H131<>I131,F131="A"),"2017 - kwh","N/A"))) -> N/A | B129: =IF(F131<>G131,"2017 - kwh",IF(H131<>I131,"2016 - kwh",IF(J131<>K131,"2015 - kwh","N/A"))) -> N/A | C129: Customer 34 | E129: kWh | AA129: =IF(AND(F131=G131,H131=I131,F131="A"),"2015 - kwh","") ->  | AB129: =IF(OR(B129="2016 - kwh",B129="2017 - kwh"),"2015 - kwh","") -> 
A130: =IF(AND(F131=G131,H131=I131,J131=K131,F131="A"),"2015 - kw",IF(AND(F131=G131,H131=I131,J131<>K131,F131="A"),"2016 - kw",IF(AND(F131=G131,H131<>I131,F131="A"),"2017 - kw","N/A"))) -> N/A | B130: =IF(F131<>G131,"2017 - kw",IF(H131<>I131,"2016 - kw",IF(J131<>K131,"2015 - kw","N/A"))) -> N/A | D130: =D129 & "kW" -> kW | E130: kW | AA130: =IF(AND(F131=G131,H131=I131,F131="A"),"2015 - kw","") ->  | AB130: =IF(OR(B130="2016 - kw",B130="2017 - kw"),"2015 - kw","") -> 
E131: Class A/B
A132: =IF(AND(F134=G134,H134=I134,J134=K134,F134="A"),"2015 - kwh",IF(AND(F134=G134,H134=I134,J134<>K134,F134="A"),"2016 - kwh",IF(AND(F134=G134,H134<>I134,F134="A"),"2017 - kwh","N/A"))) -> N/A | B132: =IF(F134<>G134,"2017 - kwh",IF(H134<>I134,"2016 - kwh",IF(J134<>K134,"2015 - kwh","N/A"))) -> N/A | C132: Customer 35 | E132: kWh | AA132: =IF(AND(F134=G134,H134=I134,F134="A"),"2015 - kwh","") ->  | AB132: =IF(OR(B132="2016 - kwh",B132="2017 - kwh"),"2015 - kwh","") -> 
A133: =IF(AND(F134=G134,H134=I134,J134=K134,F134="A"),"2015 - kw",IF(AND(F134=G134,H134=I134,J134<>K134,F134="A"),"2016 - kw",IF(AND(F134=G134,H134<>I134,F134="A"),"2017 - kw","N/A"))) -> N/A | B133: =IF(F134<>G134,"2017 - kw",IF(H134<>I134,"2016 - kw",IF(J134<>K134,"2015 - kw","N/A"))) -> N/A | D133: =D132 & "kW" -> kW | E133: kW | AA133: =IF(AND(F134=G134,H134=I134,F134="A"),"2015 - kw","") ->  | AB133: =IF(OR(B133="2016 - kw",B133="2017 - kw"),"2015 - kw","") -> 
E134: Class A/B
A135: =IF(AND(F137=G137,H137=I137,J137=K137,F137="A"),"2015 - kwh",IF(AND(F137=G137,H137=I137,J137<>K137,F137="A"),"2016 - kwh",IF(AND(F137=G137,H137<>I137,F137="A"),"2017 - kwh","N/A"))) -> N/A | B135: =IF(F137<>G137,"2017 - kwh",IF(H137<>I137,"2016 - kwh",IF(J137<>K137,"2015 - kwh","N/A"))) -> N/A | C135: Customer 36 | E135: kWh | AA135: =IF(AND(F137=G137,H137=I137,F137="A"),"2015 - kwh","") ->  | AB135: =IF(OR(B135="2016 - kwh",B135="2017 - kwh"),"2015 - kwh","") -> 
A136: =IF(AND(F137=G137,H137=I137,J137=K137,F137="A"),"2015 - kw",IF(AND(F137=G137,H137=I137,J137<>K137,F137="A"),"2016 - kw",IF(AND(F137=G137,H137<>I137,F137="A"),"2017 - kw","N/A"))) -> N/A | B136: =IF(F137<>G137,"2017 - kw",IF(H137<>I137,"2016 - kw",IF(J137<>K137,"2015 - kw","N/A"))) -> N/A | D136: =D135 & "kW" -> kW | E136: kW | AA136: =IF(AND(F137=G137,H137=I137,F137="A"),"2015 - kw","") ->  | AB136: =IF(OR(B136="2016 - kw",B136="2017 - kw"),"2015 - kw","") -> 
E137: Class A/B
A138: =IF(AND(F140=G140,H140=I140,J140=K140,F140="A"),"2015 - kwh",IF(AND(F140=G140,H140=I140,J140<>K140,F140="A"),"2016 - kwh",IF(AND(F140=G140,H140<>I140,F140="A"),"2017 - kwh","N/A"))) -> N/A | B138: =IF(F140<>G140,"2017 - kwh",IF(H140<>I140,"2016 - kwh",IF(J140<>K140,"2015 - kwh","N/A"))) -> N/A | C138: Customer 37 | E138: kWh | AA138: =IF(AND(F140=G140,H140=I140,F140="A"),"2015 - kwh","") ->  | AB138: =IF(OR(B138="2016 - kwh",B138="2017 - kwh"),"2015 - kwh","") -> 
A139: =IF(AND(F140=G140,H140=I140,J140=K140,F140="A"),"2015 - kw",IF(AND(F140=G140,H140=I140,J140<>K140,F140="A"),"2016 - kw",IF(AND(F140=G140,H140<>I140,F140="A"),"2017 - kw","N/A"))) -> N/A | B139: =IF(F140<>G140,"2017 - kw",IF(H140<>I140,"2016 - kw",IF(J140<>K140,"2015 - kw","N/A"))) -> N/A | D139: =D138 & "kW" -> kW | E139: kW | AA139: =IF(AND(F140=G140,H140=I140,F140="A"),"2015 - kw","") ->  | AB139: =IF(OR(B139="2016 - kw",B139="2017 - kw"),"2015 - kw","") -> 
E140: Class A/B
A141: =IF(AND(F143=G143,H143=I143,J143=K143,F143="A"),"2015 - kwh",IF(AND(F143=G143,H143=I143,J143<>K143,F143="A"),"2016 - kwh",IF(AND(F143=G143,H143<>I143,F143="A"),"2017 - kwh","N/A"))) -> N/A | B141: =IF(F143<>G143,"2017 - kwh",IF(H143<>I143,"2016 - kwh",IF(J143<>K143,"2015 - kwh","N/A"))) -> N/A | C141: Customer 38 | E141: kWh | AA141: =IF(AND(F143=G143,H143=I143,F143="A"),"2015 - kwh","") ->  | AB141: =IF(OR(B141="2016 - kwh",B141="2017 - kwh"),"2015 - kwh","") -> 
A142: =IF(AND(F143=G143,H143=I143,J143=K143,F143="A"),"2015 - kw",IF(AND(F143=G143,H143=I143,J143<>K143,F143="A"),"2016 - kw",IF(AND(F143=G143,H143<>I143,F143="A"),"2017 - kw","N/A"))) -> N/A | B142: =IF(F143<>G143,"2017 - kw",IF(H143<>I143,"2016 - kw",IF(J143<>K143,"2015 - kw","N/A"))) -> N/A | D142: =D141 & "kW" -> kW | E142: kW | AA142: =IF(AND(F143=G143,H143=I143,F143="A"),"2015 - kw","") ->  | AB142: =IF(OR(B142="2016 - kw",B142="2017 - kw"),"2015 - kw","") -> 
E143: Class A/B
A144: =IF(AND(F146=G146,H146=I146,J146=K146,F146="A"),"2015 - kwh",IF(AND(F146=G146,H146=I146,J146<>K146,F146="A"),"2016 - kwh",IF(AND(F146=G146,H146<>I146,F146="A"),"2017 - kwh","N/A"))) -> N/A | B144: =IF(F146<>G146,"2017 - kwh",IF(H146<>I146,"2016 - kwh",IF(J146<>K146,"2015 - kwh","N/A"))) -> N/A | C144: Customer 39 | E144: kWh | AA144: =IF(AND(F146=G146,H146=I146,F146="A"),"2015 - kwh","") ->  | AB144: =IF(OR(B144="2016 - kwh",B144="2017 - kwh"),"2015 - kwh","") -> 
A145: =IF(AND(F146=G146,H146=I146,J146=K146,F146="A"),"2015 - kw",IF(AND(F146=G146,H146=I146,J146<>K146,F146="A"),"2016 - kw",IF(AND(F146=G146,H146<>I146,F146="A"),"2017 - kw","N/A"))) -> N/A | B145: =IF(F146<>G146,"2017 - kw",IF(H146<>I146,"2016 - kw",IF(J146<>K146,"2015 - kw","N/A"))) -> N/A | D145: =D144 & "kW" -> kW | E145: kW | AA145: =IF(AND(F146=G146,H146=I146,F146="A"),"2015 - kw","") ->  | AB145: =IF(OR(B145="2016 - kw",B145="2017 - kw"),"2015 - kw","") -> 
E146: Class A/B
A147: =IF(AND(F149=G149,H149=I149,J149=K149,F149="A"),"2015 - kwh",IF(AND(F149=G149,H149=I149,J149<>K149,F149="A"),"2016 - kwh",IF(AND(F149=G149,H149<>I149,F149="A"),"2017 - kwh","N/A"))) -> N/A | B147: =IF(F149<>G149,"2017 - kwh",IF(H149<>I149,"2016 - kwh",IF(J149<>K149,"2015 - kwh","N/A"))) -> N/A | C147: Customer 40 | E147: kWh | AA147: =IF(AND(F149=G149,H149=I149,F149="A"),"2015 - kwh","") ->  | AB147: =IF(OR(B147="2016 - kwh",B147="2017 - kwh"),"2015 - kwh","") -> 
A148: =IF(AND(F149=G149,H149=I149,J149=K149,F149="A"),"2015 - kw",IF(AND(F149=G149,H149=I149,J149<>K149,F149="A"),"2016 - kw",IF(AND(F149=G149,H149<>I149,F149="A"),"2017 - kw","N/A"))) -> N/A | B148: =IF(F149<>G149,"2017 - kw",IF(H149<>I149,"2016 - kw",IF(J149<>K149,"2015 - kw","N/A"))) -> N/A | D148: =D147 & "kW" -> kW | E148: kW | AA148: =IF(AND(F149=G149,H149=I149,F149="A"),"2015 - kw","") ->  | AB148: =IF(OR(B148="2016 - kw",B148="2017 - kw"),"2015 - kw","") -> 
E149: Class A/B
A150: =IF(AND(F152=G152,H152=I152,J152=K152,F152="A"),"2015 - kwh",IF(AND(F152=G152,H152=I152,J152<>K152,F152="A"),"2016 - kwh",IF(AND(F152=G152,H152<>I152,F152="A"),"2017 - kwh","N/A"))) -> N/A | B150: =IF(F152<>G152,"2017 - kwh",IF(H152<>I152,"2016 - kwh",IF(J152<>K152,"2015 - kwh","N/A"))) -> N/A | C150: Customer 41 | E150: kWh | AA150: =IF(AND(F152=G152,H152=I152,F152="A"),"2015 - kwh","") ->  | AB150: =IF(OR(B150="2016 - kwh",B150="2017 - kwh"),"2015 - kwh","") -> 
A151: =IF(AND(F152=G152,H152=I152,J152=K152,F152="A"),"2015 - kw",IF(AND(F152=G152,H152=I152,J152<>K152,F152="A"),"2016 - kw",IF(AND(F152=G152,H152<>I152,F152="A"),"2017 - kw","N/A"))) -> N/A | B151: =IF(F152<>G152,"2017 - kw",IF(H152<>I152,"2016 - kw",IF(J152<>K152,"2015 - kw","N/A"))) -> N/A | D151: =D150 & "kW" -> kW | E151: kW | AA151: =IF(AND(F152=G152,H152=I152,F152="A"),"2015 - kw","") ->  | AB151: =IF(OR(B151="2016 - kw",B151="2017 - kw"),"2015 - kw","") -> 
E152: Class A/B
A153: =IF(AND(F155=G155,H155=I155,J155=K155,F155="A"),"2015 - kwh",IF(AND(F155=G155,H155=I155,J155<>K155,F155="A"),"2016 - kwh",IF(AND(F155=G155,H155<>I155,F155="A"),"2017 - kwh","N/A"))) -> N/A | B153: =IF(F155<>G155,"2017 - kwh",IF(H155<>I155,"2016 - kwh",IF(J155<>K155,"2015 - kwh","N/A"))) -> N/A | C153: Customer 42 | E153: kWh | AA153: =IF(AND(F155=G155,H155=I155,F155="A"),"2015 - kwh","") ->  | AB153: =IF(OR(B153="2016 - kwh",B153="2017 - kwh"),"2015 - kwh","") -> 
A154: =IF(AND(F155=G155,H155=I155,J155=K155,F155="A"),"2015 - kw",IF(AND(F155=G155,H155=I155,J155<>K155,F155="A"),"2016 - kw",IF(AND(F155=G155,H155<>I155,F155="A"),"2017 - kw","N/A"))) -> N/A | B154: =IF(F155<>G155,"2017 - kw",IF(H155<>I155,"2016 - kw",IF(J155<>K155,"2015 - kw","N/A"))) -> N/A | D154: =D153 & "kW" -> kW | E154: kW | AA154: =IF(AND(F155=G155,H155=I155,F155="A"),"2015 - kw","") ->  | AB154: =IF(OR(B154="2016 - kw",B154="2017 - kw"),"2015 - kw","") -> 
E155: Class A/B
A156: =IF(AND(F158=G158,H158=I158,J158=K158,F158="A"),"2015 - kwh",IF(AND(F158=G158,H158=I158,J158<>K158,F158="A"),"2016 - kwh",IF(AND(F158=G158,H158<>I158,F158="A"),"2017 - kwh","N/A"))) -> N/A | B156: =IF(F158<>G158,"2017 - kwh",IF(H158<>I158,"2016 - kwh",IF(J158<>K158,"2015 - kwh","N/A"))) -> N/A | C156: Customer 43 | E156: kWh | AA156: =IF(AND(F158=G158,H158=I158,F158="A"),"2015 - kwh","") ->  | AB156: =IF(OR(B156="2016 - kwh",B156="2017 - kwh"),"2015 - kwh","") -> 
A157: =IF(AND(F158=G158,H158=I158,J158=K158,F158="A"),"2015 - kw",IF(AND(F158=G158,H158=I158,J158<>K158,F158="A"),"2016 - kw",IF(AND(F158=G158,H158<>I158,F158="A"),"2017 - kw","N/A"))) -> N/A | B157: =IF(F158<>G158,"2017 - kw",IF(H158<>I158,"2016 - kw",IF(J158<>K158,"2015 - kw","N/A"))) -> N/A | D157: =D156 & "kW" -> kW | E157: kW | AA157: =IF(AND(F158=G158,H158=I158,F158="A"),"2015 - kw","") ->  | AB157: =IF(OR(B157="2016 - kw",B157="2017 - kw"),"2015 - kw","") -> 
E158: Class A/B
A159: =IF(AND(F161=G161,H161=I161,J161=K161,F161="A"),"2015 - kwh",IF(AND(F161=G161,H161=I161,J161<>K161,F161="A"),"2016 - kwh",IF(AND(F161=G161,H161<>I161,F161="A"),"2017 - kwh","N/A"))) -> N/A | B159: =IF(F161<>G161,"2017 - kwh",IF(H161<>I161,"2016 - kwh",IF(J161<>K161,"2015 - kwh","N/A"))) -> N/A | C159: Customer 44 | E159: kWh | AA159: =IF(AND(F161=G161,H161=I161,F161="A"),"2015 - kwh","") ->  | AB159: =IF(OR(B159="2016 - kwh",B159="2017 - kwh"),"2015 - kwh","") -> 
A160: =IF(AND(F161=G161,H161=I161,J161=K161,F161="A"),"2015 - kw",IF(AND(F161=G161,H161=I161,J161<>K161,F161="A"),"2016 - kw",IF(AND(F161=G161,H161<>I161,F161="A"),"2017 - kw","N/A"))) -> N/A | B160: =IF(F161<>G161,"2017 - kw",IF(H161<>I161,"2016 - kw",IF(J161<>K161,"2015 - kw","N/A"))) -> N/A | D160: =D159 & "kW" -> kW | E160: kW | AA160: =IF(AND(F161=G161,H161=I161,F161="A"),"2015 - kw","") ->  | AB160: =IF(OR(B160="2016 - kw",B160="2017 - kw"),"2015 - kw","") -> 
E161: Class A/B
A162: =IF(AND(F164=G164,H164=I164,J164=K164,F164="A"),"2015 - kwh",IF(AND(F164=G164,H164=I164,J164<>K164,F164="A"),"2016 - kwh",IF(AND(F164=G164,H164<>I164,F164="A"),"2017 - kwh","N/A"))) -> N/A | B162: =IF(F164<>G164,"2017 - kwh",IF(H164<>I164,"2016 - kwh",IF(J164<>K164,"2015 - kwh","N/A"))) -> N/A | C162: Customer 45 | E162: kWh | AA162: =IF(AND(F164=G164,H164=I164,F164="A"),"2015 - kwh","") ->  | AB162: =IF(OR(B162="2016 - kwh",B162="2017 - kwh"),"2015 - kwh","") -> 
A163: =IF(AND(F164=G164,H164=I164,J164=K164,F164="A"),"2015 - kw",IF(AND(F164=G164,H164=I164,J164<>K164,F164="A"),"2016 - kw",IF(AND(F164=G164,H164<>I164,F164="A"),"2017 - kw","N/A"))) -> N/A | B163: =IF(F164<>G164,"2017 - kw",IF(H164<>I164,"2016 - kw",IF(J164<>K164,"2015 - kw","N/A"))) -> N/A | D163: =D162 & "kW" -> kW | E163: kW | AA163: =IF(AND(F164=G164,H164=I164,F164="A"),"2015 - kw","") ->  | AB163: =IF(OR(B163="2016 - kw",B163="2017 - kw"),"2015 - kw","") -> 
E164: Class A/B
A165: =IF(AND(F167=G167,H167=I167,J167=K167,F167="A"),"2015 - kwh",IF(AND(F167=G167,H167=I167,J167<>K167,F167="A"),"2016 - kwh",IF(AND(F167=G167,H167<>I167,F167="A"),"2017 - kwh","N/A"))) -> N/A | B165: =IF(F167<>G167,"2017 - kwh",IF(H167<>I167,"2016 - kwh",IF(J167<>K167,"2015 - kwh","N/A"))) -> N/A | C165: Customer 46 | E165: kWh | AA165: =IF(AND(F167=G167,H167=I167,F167="A"),"2015 - kwh","") ->  | AB165: =IF(OR(B165="2016 - kwh",B165="2017 - kwh"),"2015 - kwh","") -> 
A166: =IF(AND(F167=G167,H167=I167,J167=K167,F167="A"),"2015 - kw",IF(AND(F167=G167,H167=I167,J167<>K167,F167="A"),"2016 - kw",IF(AND(F167=G167,H167<>I167,F167="A"),"2017 - kw","N/A"))) -> N/A | B166: =IF(F167<>G167,"2017 - kw",IF(H167<>I167,"2016 - kw",IF(J167<>K167,"2015 - kw","N/A"))) -> N/A | D166: =D165 & "kW" -> kW | E166: kW | AA166: =IF(AND(F167=G167,H167=I167,F167="A"),"2015 - kw","") ->  | AB166: =IF(OR(B166="2016 - kw",B166="2017 - kw"),"2015 - kw","") -> 
E167: Class A/B
A168: =IF(AND(F170=G170,H170=I170,J170=K170,F170="A"),"2015 - kwh",IF(AND(F170=G170,H170=I170,J170<>K170,F170="A"),"2016 - kwh",IF(AND(F170=G170,H170<>I170,F170="A"),"2017 - kwh","N/A"))) -> N/A | B168: =IF(F170<>G170,"2017 - kwh",IF(H170<>I170,"2016 - kwh",IF(J170<>K170,"2015 - kwh","N/A"))) -> N/A | C168: Customer 47 | E168: kWh | AA168: =IF(AND(F170=G170,H170=I170,F170="A"),"2015 - kwh","") ->  | AB168: =IF(OR(B168="2016 - kwh",B168="2017 - kwh"),"2015 - kwh","") -> 
A169: =IF(AND(F170=G170,H170=I170,J170=K170,F170="A"),"2015 - kw",IF(AND(F170=G170,H170=I170,J170<>K170,F170="A"),"2016 - kw",IF(AND(F170=G170,H170<>I170,F170="A"),"2017 - kw","N/A"))) -> N/A | B169: =IF(F170<>G170,"2017 - kw",IF(H170<>I170,"2016 - kw",IF(J170<>K170,"2015 - kw","N/A"))) -> N/A | D169: =D168 & "kW" -> kW | E169: kW | AA169: =IF(AND(F170=G170,H170=I170,F170="A"),"2015 - kw","") ->  | AB169: =IF(OR(B169="2016 - kw",B169="2017 - kw"),"2015 - kw","") -> 
E170: Class A/B
A171: =IF(AND(F173=G173,H173=I173,J173=K173,F173="A"),"2015 - kwh",IF(AND(F173=G173,H173=I173,J173<>K173,F173="A"),"2016 - kwh",IF(AND(F173=G173,H173<>I173,F173="A"),"2017 - kwh","N/A"))) -> N/A | B171: =IF(F173<>G173,"2017 - kwh",IF(H173<>I173,"2016 - kwh",IF(J173<>K173,"2015 - kwh","N/A"))) -> N/A | C171: Customer 48 | E171: kWh | AA171: =IF(AND(F173=G173,H173=I173,F173="A"),"2015 - kwh","") ->  | AB171: =IF(OR(B171="2016 - kwh",B171="2017 - kwh"),"2015 - kwh","") -> 
A172: =IF(AND(F173=G173,H173=I173,J173=K173,F173="A"),"2015 - kw",IF(AND(F173=G173,H173=I173,J173<>K173,F173="A"),"2016 - kw",IF(AND(F173=G173,H173<>I173,F173="A"),"2017 - kw","N/A"))) -> N/A | B172: =IF(F173<>G173,"2017 - kw",IF(H173<>I173,"2016 - kw",IF(J173<>K173,"2015 - kw","N/A"))) -> N/A | D172: =D171 & "kW" -> kW | E172: kW | AA172: =IF(AND(F173=G173,H173=I173,F173="A"),"2015 - kw","") ->  | AB172: =IF(OR(B172="2016 - kw",B172="2017 - kw"),"2015 - kw","") -> 
E173: Class A/B
A174: =IF(AND(F176=G176,H176=I176,J176=K176,F176="A"),"2015 - kwh",IF(AND(F176=G176,H176=I176,J176<>K176,F176="A"),"2016 - kwh",IF(AND(F176=G176,H176<>I176,F176="A"),"2017 - kwh","N/A"))) -> N/A | B174: =IF(F176<>G176,"2017 - kwh",IF(H176<>I176,"2016 - kwh",IF(J176<>K176,"2015 - kwh","N/A"))) -> N/A | C174: Customer 49 | E174: kWh | AA174: =IF(AND(F176=G176,H176=I176,F176="A"),"2015 - kwh","") ->  | AB174: =IF(OR(B174="2016 - kwh",B174="2017 - kwh"),"2015 - kwh","") -> 
A175: =IF(AND(F176=G176,H176=I176,J176=K176,F176="A"),"2015 - kw",IF(AND(F176=G176,H176=I176,J176<>K176,F176="A"),"2016 - kw",IF(AND(F176=G176,H176<>I176,F176="A"),"2017 - kw","N/A"))) -> N/A | B175: =IF(F176<>G176,"2017 - kw",IF(H176<>I176,"2016 - kw",IF(J176<>K176,"2015 - kw","N/A"))) -> N/A | D175: =D174 & "kW" -> kW | E175: kW | AA175: =IF(AND(F176=G176,H176=I176,F176="A"),"2015 - kw","") ->  | AB175: =IF(OR(B175="2016 - kw",B175="2017 - kw"),"2015 - kw","") -> 
E176: Class A/B
A177: =IF(AND(F179=G179,H179=I179,J179=K179,F179="A"),"2015 - kwh",IF(AND(F179=G179,H179=I179,J179<>K179,F179="A"),"2016 - kwh",IF(AND(F179=G179,H179<>I179,F179="A"),"2017 - kwh","N/A"))) -> N/A | B177: =IF(F179<>G179,"2017 - kwh",IF(H179<>I179,"2016 - kwh",IF(J179<>K179,"2015 - kwh","N/A"))) -> N/A | C177: Customer 50 | E177: kWh | AA177: =IF(AND(F179=G179,H179=I179,F179="A"),"2015 - kwh","") ->  | AB177: =IF(OR(B177="2016 - kwh",B177="2017 - kwh"),"2015 - kwh","") -> 
A178: =IF(AND(F179=G179,H179=I179,J179=K179,F179="A"),"2015 - kw",IF(AND(F179=G179,H179=I179,J179<>K179,F179="A"),"2016 - kw",IF(AND(F179=G179,H179<>I179,F179="A"),"2017 - kw","N/A"))) -> N/A | B178: =IF(F179<>G179,"2017 - kw",IF(H179<>I179,"2016 - kw",IF(J179<>K179,"2015 - kw","N/A"))) -> N/A | D178: =D177 & "kW" -> kW | E178: kW | AA178: =IF(AND(F179=G179,H179=I179,F179="A"),"2015 - kw","") ->  | AB178: =IF(OR(B178="2016 - kw",B178="2017 - kw"),"2015 - kw","") -> 
E179: Class A/B
A180: =IF(AND(F182=G182,H182=I182,J182=K182,F182="A"),"2015 - kwh",IF(AND(F182=G182,H182=I182,J182<>K182,F182="A"),"2016 - kwh",IF(AND(F182=G182,H182<>I182,F182="A"),"2017 - kwh","N/A"))) -> N/A | B180: =IF(F182<>G182,"2017 - kwh",IF(H182<>I182,"2016 - kwh",IF(J182<>K182,"2015 - kwh","N/A"))) -> N/A | C180: Customer 51 | E180: kWh | AA180: =IF(AND(F182=G182,H182=I182,F182="A"),"2015 - kwh","") ->  | AB180: =IF(OR(B180="2016 - kwh",B180="2017 - kwh"),"2015 - kwh","") -> 
A181: =IF(AND(F182=G182,H182=I182,J182=K182,F182="A"),"2015 - kw",IF(AND(F182=G182,H182=I182,J182<>K182,F182="A"),"2016 - kw",IF(AND(F182=G182,H182<>I182,F182="A"),"2017 - kw","N/A"))) -> N/A | B181: =IF(F182<>G182,"2017 - kw",IF(H182<>I182,"2016 - kw",IF(J182<>K182,"2015 - kw","N/A"))) -> N/A | D181: =D180 & "kW" -> kW | E181: kW | AA181: =IF(AND(F182=G182,H182=I182,F182="A"),"2015 - kw","") ->  | AB181: =IF(OR(B181="2016 - kw",B181="2017 - kw"),"2015 - kw","") -> 
E182: Class A/B
A183: =IF(AND(F185=G185,H185=I185,J185=K185,F185="A"),"2015 - kwh",IF(AND(F185=G185,H185=I185,J185<>K185,F185="A"),"2016 - kwh",IF(AND(F185=G185,H185<>I185,F185="A"),"2017 - kwh","N/A"))) -> N/A | B183: =IF(F185<>G185,"2017 - kwh",IF(H185<>I185,"2016 - kwh",IF(J185<>K185,"2015 - kwh","N/A"))) -> N/A | C183: Customer 52 | E183: kWh | AA183: =IF(AND(F185=G185,H185=I185,F185="A"),"2015 - kwh","") ->  | AB183: =IF(OR(B183="2016 - kwh",B183="2017 - kwh"),"2015 - kwh","") -> 
A184: =IF(AND(F185=G185,H185=I185,J185=K185,F185="A"),"2015 - kw",IF(AND(F185=G185,H185=I185,J185<>K185,F185="A"),"2016 - kw",IF(AND(F185=G185,H185<>I185,F185="A"),"2017 - kw","N/A"))) -> N/A | B184: =IF(F185<>G185,"2017 - kw",IF(H185<>I185,"2016 - kw",IF(J185<>K185,"2015 - kw","N/A"))) -> N/A | D184: =D183 & "kW" -> kW | E184: kW | AA184: =IF(AND(F185=G185,H185=I185,F185="A"),"2015 - kw","") ->  | AB184: =IF(OR(B184="2016 - kw",B184="2017 - kw"),"2015 - kw","") -> 
E185: Class A/B
A186: =IF(AND(F188=G188,H188=I188,J188=K188,F188="A"),"2015 - kwh",IF(AND(F188=G188,H188=I188,J188<>K188,F188="A"),"2016 - kwh",IF(AND(F188=G188,H188<>I188,F188="A"),"2017 - kwh","N/A"))) -> N/A | B186: =IF(F188<>G188,"2017 - kwh",IF(H188<>I188,"2016 - kwh",IF(J188<>K188,"2015 - kwh","N/A"))) -> N/A | C186: Customer 53 | E186: kWh | AA186: =IF(AND(F188=G188,H188=I188,F188="A"),"2015 - kwh","") ->  | AB186: =IF(OR(B186="2016 - kwh",B186="2017 - kwh"),"2015 - kwh","") -> 
A187: =IF(AND(F188=G188,H188=I188,J188=K188,F188="A"),"2015 - kw",IF(AND(F188=G188,H188=I188,J188<>K188,F188="A"),"2016 - kw",IF(AND(F188=G188,H188<>I188,F188="A"),"2017 - kw","N/A"))) -> N/A | B187: =IF(F188<>G188,"2017 - kw",IF(H188<>I188,"2016 - kw",IF(J188<>K188,"2015 - kw","N/A"))) -> N/A | D187: =D186 & "kW" -> kW | E187: kW | AA187: =IF(AND(F188=G188,H188=I188,F188="A"),"2015 - kw","") ->  | AB187: =IF(OR(B187="2016 - kw",B187="2017 - kw"),"2015 - kw","") -> 
E188: Class A/B
A189: =IF(AND(F191=G191,H191=I191,J191=K191,F191="A"),"2015 - kwh",IF(AND(F191=G191,H191=I191,J191<>K191,F191="A"),"2016 - kwh",IF(AND(F191=G191,H191<>I191,F191="A"),"2017 - kwh","N/A"))) -> N/A | B189: =IF(F191<>G191,"2017 - kwh",IF(H191<>I191,"2016 - kwh",IF(J191<>K191,"2015 - kwh","N/A"))) -> N/A | C189: Customer 54 | E189: kWh | AA189: =IF(AND(F191=G191,H191=I191,F191="A"),"2015 - kwh","") ->  | AB189: =IF(OR(B189="2016 - kwh",B189="2017 - kwh"),"2015 - kwh","") -> 
A190: =IF(AND(F191=G191,H191=I191,J191=K191,F191="A"),"2015 - kw",IF(AND(F191=G191,H191=I191,J191<>K191,F191="A"),"2016 - kw",IF(AND(F191=G191,H191<>I191,F191="A"),"2017 - kw","N/A"))) -> N/A | B190: =IF(F191<>G191,"2017 - kw",IF(H191<>I191,"2016 - kw",IF(J191<>K191,"2015 - kw","N/A"))) -> N/A | D190: =D189 & "kW" -> kW | E190: kW | AA190: =IF(AND(F191=G191,H191=I191,F191="A"),"2015 - kw","") ->  | AB190: =IF(OR(B190="2016 - kw",B190="2017 - kw"),"2015 - kw","") -> 
E191: Class A/B
A192: =IF(AND(F194=G194,H194=I194,J194=K194,F194="A"),"2015 - kwh",IF(AND(F194=G194,H194=I194,J194<>K194,F194="A"),"2016 - kwh",IF(AND(F194=G194,H194<>I194,F194="A"),"2017 - kwh","N/A"))) -> N/A | B192: =IF(F194<>G194,"2017 - kwh",IF(H194<>I194,"2016 - kwh",IF(J194<>K194,"2015 - kwh","N/A"))) -> N/A | C192: Customer 55 | E192: kWh | AA192: =IF(AND(F194=G194,H194=I194,F194="A"),"2015 - kwh","") ->  | AB192: =IF(OR(B192="2016 - kwh",B192="2017 - kwh"),"2015 - kwh","") -> 
A193: =IF(AND(F194=G194,H194=I194,J194=K194,F194="A"),"2015 - kw",IF(AND(F194=G194,H194=I194,J194<>K194,F194="A"),"2016 - kw",IF(AND(F194=G194,H194<>I194,F194="A"),"2017 - kw","N/A"))) -> N/A | B193: =IF(F194<>G194,"2017 - kw",IF(H194<>I194,"2016 - kw",IF(J194<>K194,"2015 - kw","N/A"))) -> N/A | D193: =D192 & "kW" -> kW | E193: kW | AA193: =IF(AND(F194=G194,H194=I194,F194="A"),"2015 - kw","") ->  | AB193: =IF(OR(B193="2016 - kw",B193="2017 - kw"),"2015 - kw","") -> 
E194: Class A/B
A195: =IF(AND(F197=G197,H197=I197,J197=K197,F197="A"),"2015 - kwh",IF(AND(F197=G197,H197=I197,J197<>K197,F197="A"),"2016 - kwh",IF(AND(F197=G197,H197<>I197,F197="A"),"2017 - kwh","N/A"))) -> N/A | B195: =IF(F197<>G197,"2017 - kwh",IF(H197<>I197,"2016 - kwh",IF(J197<>K197,"2015 - kwh","N/A"))) -> N/A | C195: Customer 56 | E195: kWh | AA195: =IF(AND(F197=G197,H197=I197,F197="A"),"2015 - kwh","") ->  | AB195: =IF(OR(B195="2016 - kwh",B195="2017 - kwh"),"2015 - kwh","") -> 
A196: =IF(AND(F197=G197,H197=I197,J197=K197,F197="A"),"2015 - kw",IF(AND(F197=G197,H197=I197,J197<>K197,F197="A"),"2016 - kw",IF(AND(F197=G197,H197<>I197,F197="A"),"2017 - kw","N/A"))) -> N/A | B196: =IF(F197<>G197,"2017 - kw",IF(H197<>I197,"2016 - kw",IF(J197<>K197,"2015 - kw","N/A"))) -> N/A | D196: =D195 & "kW" -> kW | E196: kW | AA196: =IF(AND(F197=G197,H197=I197,F197="A"),"2015 - kw","") ->  | AB196: =IF(OR(B196="2016 - kw",B196="2017 - kw"),"2015 - kw","") -> 
E197: Class A/B
A198: =IF(AND(F200=G200,H200=I200,J200=K200,F200="A"),"2015 - kwh",IF(AND(F200=G200,H200=I200,J200<>K200,F200="A"),"2016 - kwh",IF(AND(F200=G200,H200<>I200,F200="A"),"2017 - kwh","N/A"))) -> N/A | B198: =IF(F200<>G200,"2017 - kwh",IF(H200<>I200,"2016 - kwh",IF(J200<>K200,"2015 - kwh","N/A"))) -> N/A | C198: Customer 57 | E198: kWh | AA198: =IF(AND(F200=G200,H200=I200,F200="A"),"2015 - kwh","") ->  | AB198: =IF(OR(B198="2016 - kwh",B198="2017 - kwh"),"2015 - kwh","") -> 
A199: =IF(AND(F200=G200,H200=I200,J200=K200,F200="A"),"2015 - kw",IF(AND(F200=G200,H200=I200,J200<>K200,F200="A"),"2016 - kw",IF(AND(F200=G200,H200<>I200,F200="A"),"2017 - kw","N/A"))) -> N/A | B199: =IF(F200<>G200,"2017 - kw",IF(H200<>I200,"2016 - kw",IF(J200<>K200,"2015 - kw","N/A"))) -> N/A | D199: =D198 & "kW" -> kW | E199: kW | AA199: =IF(AND(F200=G200,H200=I200,F200="A"),"2015 - kw","") ->  | AB199: =IF(OR(B199="2016 - kw",B199="2017 - kw"),"2015 - kw","") -> 
E200: Class A/B
A201: =IF(AND(F203=G203,H203=I203,J203=K203,F203="A"),"2015 - kwh",IF(AND(F203=G203,H203=I203,J203<>K203,F203="A"),"2016 - kwh",IF(AND(F203=G203,H203<>I203,F203="A"),"2017 - kwh","N/A"))) -> N/A | B201: =IF(F203<>G203,"2017 - kwh",IF(H203<>I203,"2016 - kwh",IF(J203<>K203,"2015 - kwh","N/A"))) -> N/A | C201: Customer 58 | E201: kWh | AA201: =IF(AND(F203=G203,H203=I203,F203="A"),"2015 - kwh","") ->  | AB201: =IF(OR(B201="2016 - kwh",B201="2017 - kwh"),"2015 - kwh","") -> 
A202: =IF(AND(F203=G203,H203=I203,J203=K203,F203="A"),"2015 - kw",IF(AND(F203=G203,H203=I203,J203<>K203,F203="A"),"2016 - kw",IF(AND(F203=G203,H203<>I203,F203="A"),"2017 - kw","N/A"))) -> N/A | B202: =IF(F203<>G203,"2017 - kw",IF(H203<>I203,"2016 - kw",IF(J203<>K203,"2015 - kw","N/A"))) -> N/A | D202: =D201 & "kW" -> kW | E202: kW | AA202: =IF(AND(F203=G203,H203=I203,F203="A"),"2015 - kw","") ->  | AB202: =IF(OR(B202="2016 - kw",B202="2017 - kw"),"2015 - kw","") -> 
E203: Class A/B
A204: =IF(AND(F206=G206,H206=I206,J206=K206,F206="A"),"2015 - kwh",IF(AND(F206=G206,H206=I206,J206<>K206,F206="A"),"2016 - kwh",IF(AND(F206=G206,H206<>I206,F206="A"),"2017 - kwh","N/A"))) -> N/A | B204: =IF(F206<>G206,"2017 - kwh",IF(H206<>I206,"2016 - kwh",IF(J206<>K206,"2015 - kwh","N/A"))) -> N/A | C204: Customer 59 | E204: kWh | AA204: =IF(AND(F206=G206,H206=I206,F206="A"),"2015 - kwh","") ->  | AB204: =IF(OR(B204="2016 - kwh",B204="2017 - kwh"),"2015 - kwh","") -> 
A205: =IF(AND(F206=G206,H206=I206,J206=K206,F206="A"),"2015 - kw",IF(AND(F206=G206,H206=I206,J206<>K206,F206="A"),"2016 - kw",IF(AND(F206=G206,H206<>I206,F206="A"),"2017 - kw","N/A"))) -> N/A | B205: =IF(F206<>G206,"2017 - kw",IF(H206<>I206,"2016 - kw",IF(J206<>K206,"2015 - kw","N/A"))) -> N/A | D205: =D204 & "kW" -> kW | E205: kW | AA205: =IF(AND(F206=G206,H206=I206,F206="A"),"2015 - kw","") ->  | AB205: =IF(OR(B205="2016 - kw",B205="2017 - kw"),"2015 - kw","") -> 
E206: Class A/B
A207: =IF(AND(F209=G209,H209=I209,J209=K209,F209="A"),"2015 - kwh",IF(AND(F209=G209,H209=I209,J209<>K209,F209="A"),"2016 - kwh",IF(AND(F209=G209,H209<>I209,F209="A"),"2017 - kwh","N/A"))) -> N/A | B207: =IF(F209<>G209,"2017 - kwh",IF(H209<>I209,"2016 - kwh",IF(J209<>K209,"2015 - kwh","N/A"))) -> N/A | C207: Customer 60 | E207: kWh | AA207: =IF(AND(F209=G209,H209=I209,F209="A"),"2015 - kwh","") ->  | AB207: =IF(OR(B207="2016 - kwh",B207="2017 - kwh"),"2015 - kwh","") -> 
A208: =IF(AND(F209=G209,H209=I209,J209=K209,F209="A"),"2015 - kw",IF(AND(F209=G209,H209=I209,J209<>K209,F209="A"),"2016 - kw",IF(AND(F209=G209,H209<>I209,F209="A"),"2017 - kw","N/A"))) -> N/A | B208: =IF(F209<>G209,"2017 - kw",IF(H209<>I209,"2016 - kw",IF(J209<>K209,"2015 - kw","N/A"))) -> N/A | D208: =D207 & "kW" -> kW | E208: kW | AA208: =IF(AND(F209=G209,H209=I209,F209="A"),"2015 - kw","") ->  | AB208: =IF(OR(B208="2016 - kw",B208="2017 - kw"),"2015 - kw","") -> 
E209: Class A/B
A210: =IF(AND(F212=G212,H212=I212,J212=K212,F212="A"),"2015 - kwh",IF(AND(F212=G212,H212=I212,J212<>K212,F212="A"),"2016 - kwh",IF(AND(F212=G212,H212<>I212,F212="A"),"2017 - kwh","N/A"))) -> N/A | B210: =IF(F212<>G212,"2017 - kwh",IF(H212<>I212,"2016 - kwh",IF(J212<>K212,"2015 - kwh","N/A"))) -> N/A | C210: Customer 61 | E210: kWh | AA210: =IF(AND(F212=G212,H212=I212,F212="A"),"2015 - kwh","") ->  | AB210: =IF(OR(B210="2016 - kwh",B210="2017 - kwh"),"2015 - kwh","") -> 
A211: =IF(AND(F212=G212,H212=I212,J212=K212,F212="A"),"2015 - kw",IF(AND(F212=G212,H212=I212,J212<>K212,F212="A"),"2016 - kw",IF(AND(F212=G212,H212<>I212,F212="A"),"2017 - kw","N/A"))) -> N/A | B211: =IF(F212<>G212,"2017 - kw",IF(H212<>I212,"2016 - kw",IF(J212<>K212,"2015 - kw","N/A"))) -> N/A | D211: =D210 & "kW" -> kW | E211: kW | AA211: =IF(AND(F212=G212,H212=I212,F212="A"),"2015 - kw","") ->  | AB211: =IF(OR(B211="2016 - kw",B211="2017 - kw"),"2015 - kw","") -> 
E212: Class A/B
A213: =IF(AND(F215=G215,H215=I215,J215=K215,F215="A"),"2015 - kwh",IF(AND(F215=G215,H215=I215,J215<>K215,F215="A"),"2016 - kwh",IF(AND(F215=G215,H215<>I215,F215="A"),"2017 - kwh","N/A"))) -> N/A | B213: =IF(F215<>G215,"2017 - kwh",IF(H215<>I215,"2016 - kwh",IF(J215<>K215,"2015 - kwh","N/A"))) -> N/A | C213: Customer 62 | E213: kWh | AA213: =IF(AND(F215=G215,H215=I215,F215="A"),"2015 - kwh","") ->  | AB213: =IF(OR(B213="2016 - kwh",B213="2017 - kwh"),"2015 - kwh","") -> 
A214: =IF(AND(F215=G215,H215=I215,J215=K215,F215="A"),"2015 - kw",IF(AND(F215=G215,H215=I215,J215<>K215,F215="A"),"2016 - kw",IF(AND(F215=G215,H215<>I215,F215="A"),"2017 - kw","N/A"))) -> N/A | B214: =IF(F215<>G215,"2017 - kw",IF(H215<>I215,"2016 - kw",IF(J215<>K215,"2015 - kw","N/A"))) -> N/A | D214: =D213 & "kW" -> kW | E214: kW | AA214: =IF(AND(F215=G215,H215=I215,F215="A"),"2015 - kw","") ->  | AB214: =IF(OR(B214="2016 - kw",B214="2017 - kw"),"2015 - kw","") -> 
E215: Class A/B
A216: =IF(AND(F218=G218,H218=I218,J218=K218,F218="A"),"2015 - kwh",IF(AND(F218=G218,H218=I218,J218<>K218,F218="A"),"2016 - kwh",IF(AND(F218=G218,H218<>I218,F218="A"),"2017 - kwh","N/A"))) -> N/A | B216: =IF(F218<>G218,"2017 - kwh",IF(H218<>I218,"2016 - kwh",IF(J218<>K218,"2015 - kwh","N/A"))) -> N/A | C216: Customer 63 | E216: kWh | AA216: =IF(AND(F218=G218,H218=I218,F218="A"),"2015 - kwh","") ->  | AB216: =IF(OR(B216="2016 - kwh",B216="2017 - kwh"),"2015 - kwh","") -> 
A217: =IF(AND(F218=G218,H218=I218,J218=K218,F218="A"),"2015 - kw",IF(AND(F218=G218,H218=I218,J218<>K218,F218="A"),"2016 - kw",IF(AND(F218=G218,H218<>I218,F218="A"),"2017 - kw","N/A"))) -> N/A | B217: =IF(F218<>G218,"2017 - kw",IF(H218<>I218,"2016 - kw",IF(J218<>K218,"2015 - kw","N/A"))) -> N/A | D217: =D216 & "kW" -> kW | E217: kW | AA217: =IF(AND(F218=G218,H218=I218,F218="A"),"2015 - kw","") ->  | AB217: =IF(OR(B217="2016 - kw",B217="2017 - kw"),"2015 - kw","") -> 
E218: Class A/B
A219: =IF(AND(F221=G221,H221=I221,J221=K221,F221="A"),"2015 - kwh",IF(AND(F221=G221,H221=I221,J221<>K221,F221="A"),"2016 - kwh",IF(AND(F221=G221,H221<>I221,F221="A"),"2017 - kwh","N/A"))) -> N/A | B219: =IF(F221<>G221,"2017 - kwh",IF(H221<>I221,"2016 - kwh",IF(J221<>K221,"2015 - kwh","N/A"))) -> N/A | C219: Customer 64 | E219: kWh | AA219: =IF(AND(F221=G221,H221=I221,F221="A"),"2015 - kwh","") ->  | AB219: =IF(OR(B219="2016 - kwh",B219="2017 - kwh"),"2015 - kwh","") -> 
A220: =IF(AND(F221=G221,H221=I221,J221=K221,F221="A"),"2015 - kw",IF(AND(F221=G221,H221=I221,J221<>K221,F221="A"),"2016 - kw",IF(AND(F221=G221,H221<>I221,F221="A"),"2017 - kw","N/A"))) -> N/A | B220: =IF(F221<>G221,"2017 - kw",IF(H221<>I221,"2016 - kw",IF(J221<>K221,"2015 - kw","N/A"))) -> N/A | D220: =D219 & "kW" -> kW | E220: kW | AA220: =IF(AND(F221=G221,H221=I221,F221="A"),"2015 - kw","") ->  | AB220: =IF(OR(B220="2016 - kw",B220="2017 - kw"),"2015 - kw","") -> 
E221: Class A/B
... 561 more rows

Sheet 6.1a GA Allocation
A14: This tab allocates the GA balance to transition customers (i.e Class A customers who were former Class B customers and Class B customers who were former Class A customers) who contributed to the current GA balance. The tables below calculate specific amounts for each customer who made the change. The general GA rate rider to non-RPP customers is not to be charged to the transition customers that are allocated amounts in the table below. Consistent with prior decisions, distributors are generally expected to settle the amount through 12 equal adjustments to bills.
A16: Year the Account 1589 GA Balance Last Disposed | B16: =G1LD -> 2014
A18: Allocation of total Non-RPP Consumption (kWh) between Current Class B and Class A/B Transition Customers
C19: Total | D19: 2017 | E19: 2016 | F19: 2015 | G19: 2014 | H19: 2013
A20: Total Non-RPP Class B Consumption for Years During Balance Accumulation (Non-RPP Consumption LESS WMP Consumption and Consumption for Class A customers who were Class A for partial or full year) | B20: A | C20: =SUM(D20:G20) -> 228399812 | D20: =112352024-9065795 -> 103286229 | E20: =125113583-0 -> 125113583 | F20: 0
A21: Transition Customers' Class B Consumption (i.e. full year or partial year) | B21: B | C21: =SUM(D21:G21) -> 8160896 | D21: =D184 -> 8160896 | E21: =E184 -> 0 | F21: =F184 -> 0 | G21: =G184 -> 0 | H21: =H184 -> 0
A22: Transition Customers' Portion of Total Consumption | B22: C=B/A | C22: =IFERROR(+C21/C20,0) -> 0.03573074745
A25: Allocation of Total GA Balance $
A27: Total GA Balance | B27: D | C27: ='3. Continuity Schedule'!BT29 -> 0
A28: Transition Customers Portion of GA Balance | B28: E=C*D | C28: =+C22*C27 -> 0
A29: GA Balance to be disposed to Current Class B Customers through Rate Rider | B29: F=D-E | C29: =+C27-C28 -> 0
A31: Allocation of GA Balances to Class A/B Transition Customers
A32: # of Class A/B Transition Customers | C32: =Cust3a -> 1
A33: Customer | C33: Total Metered Consumption (kWh) for Transition Customers During the Period WhenThey Were Class B Customers | D33: Metered Consumption (kWh) for Transition Customers During the Period When They Were Class B Customers in 2017 | E33: Metered Consumption (kWh) for Transition Customers During the Period When They Were Class B Customers in 2016 | F33: Metered Consumption (kWh) for Transition Customers During the Period When They Were Class B Customers in 2015 | G33: Metered Consumption (kWh) for Transition Customers During the Period When They Were Class B Customers in 2014 | H33: Metered Consumption (kWh) for Transition Customers During the Period When They Were Class B Customers in 2013 | I33: % of kWh | J33: Customer Specific GA Allocation for the Period When They Were a Class B customer | K33: Monthly Equal Payments
A34: Customer 1 | C34: =SUM(D34:G34) -> 8160896 | D34: =SUM(IF('6. Class A Consumption Data'!F32:G32="B",'6. Class A Consumption Data'!F30:G30)) -> 8160896 | E34: =SUM(IF('6. Class A Consumption Data'!H32:I32="B",'6. Class A Consumption Data'!H30:I30)) -> 0 | F34: =SUM(IF('6. Class A Consumption Data'!J32:K32="B",'6. Class A Consumption Data'!J30:K30)) -> 0 | G34: =SUM(IF('6. Class A Consumption Data'!L32:M32="B",'6. Class A Consumption Data'!L30:M30)) -> 0 | H34: =SUM(IF('6. Class A Consumption Data'!N32:O32="B",'6. Class A Consumption Data'!N30:O30)) -> 0 | I34: =IFERROR(+C34/$C$184,0) -> 1 | J34: =+I34*$C$28 -> 0 | K34: =+J34/12 -> 0
A35: Customer 2 | C35: =SUM(D35:G35) -> 0 | D35: =SUM(IF('6. Class A Consumption Data'!F35:G35="B",'6. Class A Consumption Data'!F33:G33)) -> 0 | E35: =SUM(IF('6. Class A Consumption Data'!H35:I35="B",'6. Class A Consumption Data'!H33:I33)) -> 0 | F35: =SUM(IF('6. Class A Consumption Data'!J35:K35="B",'6. Class A Consumption Data'!J33:K33)) -> 0 | G35: =SUM(IF('6. Class A Consumption Data'!L35:M35="B",'6. Class A Consumption Data'!L33:M33)) -> 0 | H35: =SUM(IF('6. Class A Consumption Data'!N35:O35="B",'6. Class A Consumption Data'!N33:O33)) -> 0 | I35: =IFERROR(+C35/$C$184,0) -> 0 | J35: =+I35*$C$28 -> 0 | K35: =+J35/12 -> 0
A36: Customer 3 | C36: =SUM(D36:G36) -> 0 | D36: =SUM(IF('6. Class A Consumption Data'!F38:G38="B",'6. Class A Consumption Data'!F36:G36)) -> 0 | E36: =SUM(IF('6. Class A Consumption Data'!H38:I38="B",'6. Class A Consumption Data'!H36:I36)) -> 0 | F36: =SUM(IF('6. Class A Consumption Data'!J38:K38="B",'6. Class A Consumption Data'!J36:K36)) -> 0 | G36: =SUM(IF('6. Class A Consumption Data'!L38:M38="B",'6. Class A Consumption Data'!L36:M36)) -> 0 | H36: =SUM(IF('6. Class A Consumption Data'!N38:O38="B",'6. Class A Consumption Data'!N36:O36)) -> 0 | I36: 0 | J36: =+I36*$C$28 -> 0 | K36: =+J36/12 -> 0
A37: Customer 4 | C37: =SUM(D37:G37) -> 0 | D37: =SUM(IF('6. Class A Consumption Data'!F41:G41="B",'6. Class A Consumption Data'!F39:G39)) -> 0 | E37: =SUM(IF('6. Class A Consumption Data'!H41:I41="B",'6. Class A Consumption Data'!H39:I39)) -> 0 | F37: =SUM(IF('6. Class A Consumption Data'!J41:K41="B",'6. Class A Consumption Data'!J39:K39)) -> 0 | G37: =SUM(IF('6. Class A Consumption Data'!L41:M41="B",'6. Class A Consumption Data'!L39:M39)) -> 0 | H37: =SUM(IF('6. Class A Consumption Data'!N41:O41="B",'6. Class A Consumption Data'!N39:O39)) -> 0 | I37: 0 | J37: =+I37*$C$28 -> 0 | K37: =+J37/12 -> 0
A38: Customer 5 | C38: =SUM(D38:G38) -> 0 | D38: =SUM(IF('6. Class A Consumption Data'!F44:G44="B",'6. Class A Consumption Data'!F42:G42)) -> 0 | E38: =SUM(IF('6. Class A Consumption Data'!H44:I44="B",'6. Class A Consumption Data'!H42:I42)) -> 0 | F38: =SUM(IF('6. Class A Consumption Data'!J44:K44="B",'6. Class A Consumption Data'!J42:K42)) -> 0 | G38: =SUM(IF('6. Class A Consumption Data'!L44:M44="B",'6. Class A Consumption Data'!L42:M42)) -> 0 | H38: =SUM(IF('6. Class A Consumption Data'!N44:O44="B",'6. Class A Consumption Data'!N42:O42)) -> 0 | I38: 0 | J38: =+I38*$C$28 -> 0 | K38: =+J38/12 -> 0
A39: Customer 6 | C39: 0 | D39: =SUM(IF('6. Class A Consumption Data'!F47:G47="B",'6. Class A Consumption Data'!F45:G45)) -> 0 | E39: =SUM(IF('6. Class A Consumption Data'!H47:I47="B",'6. Class A Consumption Data'!H45:I45)) -> 0 | F39: =SUM(IF('6. Class A Consumption Data'!J47:K47="B",'6. Class A Consumption Data'!J45:K45)) -> 0 | G39: =SUM(IF('6. Class A Consumption Data'!L47:M47="B",'6. Class A Consumption Data'!L45:M45)) -> 0 | H39: =SUM(IF('6. Class A Consumption Data'!N47:O47="B",'6. Class A Consumption Data'!N45:O45)) -> 0 | I39: 0 | J39: 0 | K39: 0
A40: Customer 7 | C40: 0 | D40: =SUM(IF('6. Class A Consumption Data'!F50:G50="B",'6. Class A Consumption Data'!F48:G48)) -> 0 | E40: =SUM(IF('6. Class A Consumption Data'!H50:I50="B",'6. Class A Consumption Data'!H48:I48)) -> 0 | F40: =SUM(IF('6. Class A Consumption Data'!J50:K50="B",'6. Class A Consumption Data'!J48:K48)) -> 0 | G40: =SUM(IF('6. Class A Consumption Data'!L50:M50="B",'6. Class A Consumption Data'!L48:M48)) -> 0 | H40: =SUM(IF('6. Class A Consumption Data'!N50:O50="B",'6. Class A Consumption Data'!N48:O48)) -> 0 | I40: 0 | J40: 0 | K40: 0
A41: Customer 8 | C41: 0 | D41: =SUM(IF('6. Class A Consumption Data'!F53:G53="B",'6. Class A Consumption Data'!F51:G51)) -> 0 | E41: =SUM(IF('6. Class A Consumption Data'!H53:I53="B",'6. Class A Consumption Data'!H51:I51)) -> 0 | F41: =SUM(IF('6. Class A Consumption Data'!J53:K53="B",'6. Class A Consumption Data'!J51:K51)) -> 0 | G41: =SUM(IF('6. Class A Consumption Data'!L53:M53="B",'6. Class A Consumption Data'!L51:M51)) -> 0 | H41: =SUM(IF('6. Class A Consumption Data'!N53:O53="B",'6. Class A Consumption Data'!N51:O51)) -> 0 | I41: 0 | J41: 0 | K41: 0
A42: Customer 9 | C42: 0 | D42: =SUM(IF('6. Class A Consumption Data'!F56:G56="B",'6. Class A Consumption Data'!F54:G54)) -> 0 | E42: =SUM(IF('6. Class A Consumption Data'!H56:I56="B",'6. Class A Consumption Data'!H54:I54)) -> 0 | F42: =SUM(IF('6. Class A Consumption Data'!J56:K56="B",'6. Class A Consumption Data'!J54:K54)) -> 0 | G42: =SUM(IF('6. Class A Consumption Data'!L56:M56="B",'6. Class A Consumption Data'!L54:M54)) -> 0 | H42: =SUM(IF('6. Class A Consumption Data'!N56:O56="B",'6. Class A Consumption Data'!N54:O54)) -> 0 | I42: 0 | J42: 0 | K42: 0
A43: Customer 10 | C43: 0 | D43: =SUM(IF('6. Class A Consumption Data'!F59:G59="B",'6. Class A Consumption Data'!F57:G57)) -> 0 | E43: =SUM(IF('6. Class A Consumption Data'!H59:I59="B",'6. Class A Consumption Data'!H57:I57)) -> 0 | F43: =SUM(IF('6. Class A Consumption Data'!J59:K59="B",'6. Class A Consumption Data'!J57:K57)) -> 0 | G43: =SUM(IF('6. Class A Consumption Data'!L59:M59="B",'6. Class A Consumption Data'!L57:M57)) -> 0 | H43: =SUM(IF('6. Class A Consumption Data'!N59:O59="B",'6. Class A Consumption Data'!N57:O57)) -> 0 | I43: 0 | J43: 0 | K43: 0
A44: Customer 11 | C44: 0 | D44: =SUM(IF('6. Class A Consumption Data'!F62:G62="B",'6. Class A Consumption Data'!F60:G60)) -> 0 | E44: =SUM(IF('6. Class A Consumption Data'!H62:I62="B",'6. Class A Consumption Data'!H60:I60)) -> 0 | F44: =SUM(IF('6. Class A Consumption Data'!J62:K62="B",'6. Class A Consumption Data'!J60:K60)) -> 0 | G44: =SUM(IF('6. Class A Consumption Data'!L62:M62="B",'6. Class A Consumption Data'!L60:M60)) -> 0 | H44: =SUM(IF('6. Class A Consumption Data'!N62:O62="B",'6. Class A Consumption Data'!N60:O60)) -> 0 | I44: 0 | J44: 0 | K44: 0
A45: Customer 12 | C45: 0 | D45: =SUM(IF('6. Class A Consumption Data'!F65:G65="B",'6. Class A Consumption Data'!F63:G63)) -> 0 | E45: =SUM(IF('6. Class A Consumption Data'!H65:I65="B",'6. Class A Consumption Data'!H63:I63)) -> 0 | F45: =SUM(IF('6. Class A Consumption Data'!J65:K65="B",'6. Class A Consumption Data'!J63:K63)) -> 0 | G45: =SUM(IF('6. Class A Consumption Data'!L65:M65="B",'6. Class A Consumption Data'!L63:M63)) -> 0 | H45: =SUM(IF('6. Class A Consumption Data'!N65:O65="B",'6. Class A Consumption Data'!N63:O63)) -> 0 | I45: 0 | J45: 0 | K45: 0
A46: Customer 13 | C46: 0 | D46: =SUM(IF('6. Class A Consumption Data'!F68:G68="B",'6. Class A Consumption Data'!F66:G66)) -> 0 | E46: =SUM(IF('6. Class A Consumption Data'!H68:I68="B",'6. Class A Consumption Data'!H66:I66)) -> 0 | F46: =SUM(IF('6. Class A Consumption Data'!J68:K68="B",'6. Class A Consumption Data'!J66:K66)) -> 0 | G46: =SUM(IF('6. Class A Consumption Data'!L68:M68="B",'6. Class A Consumption Data'!L66:M66)) -> 0 | H46: =SUM(IF('6. Class A Consumption Data'!N68:O68="B",'6. Class A Consumption Data'!N66:O66)) -> 0 | I46: 0 | J46: 0 | K46: 0
A47: Customer 14 | C47: 0 | D47: =SUM(IF('6. Class A Consumption Data'!F71:G71="B",'6. Class A Consumption Data'!F69:G69)) -> 0 | E47: =SUM(IF('6. Class A Consumption Data'!H71:I71="B",'6. Class A Consumption Data'!H69:I69)) -> 0 | F47: =SUM(IF('6. Class A Consumption Data'!J71:K71="B",'6. Class A Consumption Data'!J69:K69)) -> 0 | G47: =SUM(IF('6. Class A Consumption Data'!L71:M71="B",'6. Class A Consumption Data'!L69:M69)) -> 0 | H47: =SUM(IF('6. Class A Consumption Data'!N71:O71="B",'6. Class A Consumption Data'!N69:O69)) -> 0 | I47: 0 | J47: 0 | K47: 0
A48: Customer 15 | C48: 0 | D48: =SUM(IF('6. Class A Consumption Data'!F74:G74="B",'6. Class A Consumption Data'!F72:G72)) -> 0 | E48: =SUM(IF('6. Class A Consumption Data'!H74:I74="B",'6. Class A Consumption Data'!H72:I72)) -> 0 | F48: =SUM(IF('6. Class A Consumption Data'!J74:K74="B",'6. Class A Consumption Data'!J72:K72)) -> 0 | G48: =SUM(IF('6. Class A Consumption Data'!L74:M74="B",'6. Class A Consumption Data'!L72:M72)) -> 0 | H48: =SUM(IF('6. Class A Consumption Data'!N74:O74="B",'6. Class A Consumption Data'!N72:O72)) -> 0 | I48: 0 | J48: 0 | K48: 0
A49: Customer 16 | C49: 0 | D49: =SUM(IF('6. Class A Consumption Data'!F77:G77="B",'6. Class A Consumption Data'!F75:G75)) -> 0 | E49: =SUM(IF('6. Class A Consumption Data'!H77:I77="B",'6. Class A Consumption Data'!H75:I75)) -> 0 | F49: =SUM(IF('6. Class A Consumption Data'!J77:K77="B",'6. Class A Consumption Data'!J75:K75)) -> 0 | G49: =SUM(IF('6. Class A Consumption Data'!L77:M77="B",'6. Class A Consumption Data'!L75:M75)) -> 0 | H49: =SUM(IF('6. Class A Consumption Data'!N77:O77="B",'6. Class A Consumption Data'!N75:O75)) -> 0 | I49: 0 | J49: 0 | K49: 0
A50: Customer 17 | C50: 0 | D50: =SUM(IF('6. Class A Consumption Data'!F80:G80="B",'6. Class A Consumption Data'!F78:G78)) -> 0 | E50: =SUM(IF('6. Class A Consumption Data'!H80:I80="B",'6. Class A Consumption Data'!H78:I78)) -> 0 | F50: =SUM(IF('6. Class A Consumption Data'!J80:K80="B",'6. Class A Consumption Data'!J78:K78)) -> 0 | G50: =SUM(IF('6. Class A Consumption Data'!L80:M80="B",'6. Class A Consumption Data'!L78:M78)) -> 0 | H50: =SUM(IF('6. Class A Consumption Data'!N80:O80="B",'6. Class A Consumption Data'!N78:O78)) -> 0 | I50: 0 | J50: 0 | K50: 0
A51: Customer 18 | C51: 0 | D51: =SUM(IF('6. Class A Consumption Data'!F83:G83="B",'6. Class A Consumption Data'!F81:G81)) -> 0 | E51: =SUM(IF('6. Class A Consumption Data'!H83:I83="B",'6. Class A Consumption Data'!H81:I81)) -> 0 | F51: =SUM(IF('6. Class A Consumption Data'!J83:K83="B",'6. Class A Consumption Data'!J81:K81)) -> 0 | G51: =SUM(IF('6. Class A Consumption Data'!L83:M83="B",'6. Class A Consumption Data'!L81:M81)) -> 0 | H51: =SUM(IF('6. Class A Consumption Data'!N83:O83="B",'6. Class A Consumption Data'!N81:O81)) -> 0 | I51: 0 | J51: 0 | K51: 0
A52: Customer 19 | C52: 0 | D52: =SUM(IF('6. Class A Consumption Data'!F86:G86="B",'6. Class A Consumption Data'!F84:G84)) -> 0 | E52: =SUM(IF('6. Class A Consumption Data'!H86:I86="B",'6. Class A Consumption Data'!H84:I84)) -> 0 | F52: =SUM(IF('6. Class A Consumption Data'!J86:K86="B",'6. Class A Consumption Data'!J84:K84)) -> 0 | G52: =SUM(IF('6. Class A Consumption Data'!L86:M86="B",'6. Class A Consumption Data'!L84:M84)) -> 0 | H52: =SUM(IF('6. Class A Consumption Data'!N86:O86="B",'6. Class A Consumption Data'!N84:O84)) -> 0 | I52: 0 | J52: 0 | K52: 0
A53: Customer 20 | C53: 0 | D53: =SUM(IF('6. Class A Consumption Data'!F89:G89="B",'6. Class A Consumption Data'!F87:G87)) -> 0 | E53: =SUM(IF('6. Class A Consumption Data'!H89:I89="B",'6. Class A Consumption Data'!H87:I87)) -> 0 | F53: =SUM(IF('6. Class A Consumption Data'!J89:K89="B",'6. Class A Consumption Data'!J87:K87)) -> 0 | G53: =SUM(IF('6. Class A Consumption Data'!L89:M89="B",'6. Class A Consumption Data'!L87:M87)) -> 0 | H53: =SUM(IF('6. Class A Consumption Data'!N89:O89="B",'6. Class A Consumption Data'!N87:O87)) -> 0 | I53: 0 | J53: 0 | K53: 0
A54: Customer 21 | C54: 0 | D54: =SUM(IF('6. Class A Consumption Data'!F92:G92="B",'6. Class A Consumption Data'!F90:G90)) -> 0 | E54: =SUM(IF('6. Class A Consumption Data'!H92:I92="B",'6. Class A Consumption Data'!H90:I90)) -> 0 | F54: =SUM(IF('6. Class A Consumption Data'!J92:K92="B",'6. Class A Consumption Data'!J90:K90)) -> 0 | G54: =SUM(IF('6. Class A Consumption Data'!L92:M92="B",'6. Class A Consumption Data'!L90:M90)) -> 0 | H54: =SUM(IF('6. Class A Consumption Data'!N92:O92="B",'6. Class A Consumption Data'!N90:O90)) -> 0 | I54: 0 | J54: 0 | K54: 0
A55: Customer 22 | C55: 0 | D55: =SUM(IF('6. Class A Consumption Data'!F95:G95="B",'6. Class A Consumption Data'!F93:G93)) -> 0 | E55: =SUM(IF('6. Class A Consumption Data'!H95:I95="B",'6. Class A Consumption Data'!H93:I93)) -> 0 | F55: =SUM(IF('6. Class A Consumption Data'!J95:K95="B",'6. Class A Consumption Data'!J93:K93)) -> 0 | G55: =SUM(IF('6. Class A Consumption Data'!L95:M95="B",'6. Class A Consumption Data'!L93:M93)) -> 0 | H55: =SUM(IF('6. Class A Consumption Data'!N95:O95="B",'6. Class A Consumption Data'!N93:O93)) -> 0 | I55: 0 | J55: 0 | K55: 0
A56: Customer 23 | C56: 0 | D56: =SUM(IF('6. Class A Consumption Data'!F98:G98="B",'6. Class A Consumption Data'!F96:G96)) -> 0 | E56: =SUM(IF('6. Class A Consumption Data'!H98:I98="B",'6. Class A Consumption Data'!H96:I96)) -> 0 | F56: =SUM(IF('6. Class A Consumption Data'!J98:K98="B",'6. Class A Consumption Data'!J96:K96)) -> 0 | G56: =SUM(IF('6. Class A Consumption Data'!L98:M98="B",'6. Class A Consumption Data'!L96:M96)) -> 0 | H56: =SUM(IF('6. Class A Consumption Data'!N98:O98="B",'6. Class A Consumption Data'!N96:O96)) -> 0 | I56: 0 | J56: 0 | K56: 0
A57: Customer 24 | C57: 0 | D57: =SUM(IF('6. Class A Consumption Data'!F101:G101="B",'6. Class A Consumption Data'!F99:G99)) -> 0 | E57: =SUM(IF('6. Class A Consumption Data'!H101:I101="B",'6. Class A Consumption Data'!H99:I99)) -> 0 | F57: =SUM(IF('6. Class A Consumption Data'!J101:K101="B",'6. Class A Consumption Data'!J99:K99)) -> 0 | G57: =SUM(IF('6. Class A Consumption Data'!L101:M101="B",'6. Class A Consumption Data'!L99:M99)) -> 0 | H57: =SUM(IF('6. Class A Consumption Data'!N101:O101="B",'6. Class A Consumption Data'!N99:O99)) -> 0 | I57: 0 | J57: 0 | K57: 0
A58: Customer 25 | C58: 0 | D58: =SUM(IF('6. Class A Consumption Data'!F104:G104="B",'6. Class A Consumption Data'!F102:G102)) -> 0 | E58: =SUM(IF('6. Class A Consumption Data'!H104:I104="B",'6. Class A Consumption Data'!H102:I102)) -> 0 | F58: =SUM(IF('6. Class A Consumption Data'!J104:K104="B",'6. Class A Consumption Data'!J102:K102)) -> 0 | G58: =SUM(IF('6. Class A Consumption Data'!L104:M104="B",'6. Class A Consumption Data'!L102:M102)) -> 0 | H58: =SUM(IF('6. Class A Consumption Data'!N104:O104="B",'6. Class A Consumption Data'!N102:O102)) -> 0 | I58: 0 | J58: 0 | K58: 0
A59: Customer 26 | C59: 0 | D59: =SUM(IF('6. Class A Consumption Data'!F107:G107="B",'6. Class A Consumption Data'!F105:G105)) -> 0 | E59: =SUM(IF('6. Class A Consumption Data'!H107:I107="B",'6. Class A Consumption Data'!H105:I105)) -> 0 | F59: =SUM(IF('6. Class A Consumption Data'!J107:K107="B",'6. Class A Consumption Data'!J105:K105)) -> 0 | G59: =SUM(IF('6. Class A Consumption Data'!L107:M107="B",'6. Class A Consumption Data'!L105:M105)) -> 0 | H59: =SUM(IF('6. Class A Consumption Data'!N107:O107="B",'6. Class A Consumption Data'!N105:O105)) -> 0 | I59: 0 | J59: 0 | K59: 0
A60: Customer 27 | C60: 0 | D60: =SUM(IF('6. Class A Consumption Data'!F110:G110="B",'6. Class A Consumption Data'!F108:G108)) -> 0 | E60: =SUM(IF('6. Class A Consumption Data'!H110:I110="B",'6. Class A Consumption Data'!H108:I108)) -> 0 | F60: =SUM(IF('6. Class A Consumption Data'!J110:K110="B",'6. Class A Consumption Data'!J108:K108)) -> 0 | G60: =SUM(IF('6. Class A Consumption Data'!L110:M110="B",'6. Class A Consumption Data'!L108:M108)) -> 0 | H60: =SUM(IF('6. Class A Consumption Data'!N110:O110="B",'6. Class A Consumption Data'!N108:O108)) -> 0 | I60: 0 | J60: 0 | K60: 0
A61: Customer 28 | C61: 0 | D61: =SUM(IF('6. Class A Consumption Data'!F113:G113="B",'6. Class A Consumption Data'!F111:G111)) -> 0 | E61: =SUM(IF('6. Class A Consumption Data'!H113:I113="B",'6. Class A Consumption Data'!H111:I111)) -> 0 | F61: =SUM(IF('6. Class A Consumption Data'!J113:K113="B",'6. Class A Consumption Data'!J111:K111)) -> 0 | G61: =SUM(IF('6. Class A Consumption Data'!L113:M113="B",'6. Class A Consumption Data'!L111:M111)) -> 0 | H61: =SUM(IF('6. Class A Consumption Data'!N113:O113="B",'6. Class A Consumption Data'!N111:O111)) -> 0 | I61: 0 | J61: 0 | K61: 0
A62: Customer 29 | C62: 0 | D62: =SUM(IF('6. Class A Consumption Data'!F116:G116="B",'6. Class A Consumption Data'!F114:G114)) -> 0 | E62: =SUM(IF('6. Class A Consumption Data'!H116:I116="B",'6. Class A Consumption Data'!H114:I114)) -> 0 | F62: =SUM(IF('6. Class A Consumption Data'!J116:K116="B",'6. Class A Consumption Data'!J114:K114)) -> 0 | G62: =SUM(IF('6. Class A Consumption Data'!L116:M116="B",'6. Class A Consumption Data'!L114:M114)) -> 0 | H62: =SUM(IF('6. Class A Consumption Data'!N116:O116="B",'6. Class A Consumption Data'!N114:O114)) -> 0 | I62: 0 | J62: 0 | K62: 0
A63: Customer 30 | C63: 0 | D63: =SUM(IF('6. Class A Consumption Data'!F119:G119="B",'6. Class A Consumption Data'!F117:G117)) -> 0 | E63: =SUM(IF('6. Class A Consumption Data'!H119:I119="B",'6. Class A Consumption Data'!H117:I117)) -> 0 | F63: =SUM(IF('6. Class A Consumption Data'!J119:K119="B",'6. Class A Consumption Data'!J117:K117)) -> 0 | G63: =SUM(IF('6. Class A Consumption Data'!L119:M119="B",'6. Class A Consumption Data'!L117:M117)) -> 0 | H63: =SUM(IF('6. Class A Consumption Data'!N119:O119="B",'6. Class A Consumption Data'!N117:O117)) -> 0 | I63: 0 | J63: 0 | K63: 0
A64: Customer 31 | C64: 0 | D64: =SUM(IF('6. Class A Consumption Data'!F122:G122="B",'6. Class A Consumption Data'!F120:G120)) -> 0 | E64: =SUM(IF('6. Class A Consumption Data'!H122:I122="B",'6. Class A Consumption Data'!H120:I120)) -> 0 | F64: =SUM(IF('6. Class A Consumption Data'!J122:K122="B",'6. Class A Consumption Data'!J120:K120)) -> 0 | G64: =SUM(IF('6. Class A Consumption Data'!L122:M122="B",'6. Class A Consumption Data'!L120:M120)) -> 0 | H64: =SUM(IF('6. Class A Consumption Data'!N122:O122="B",'6. Class A Consumption Data'!N120:O120)) -> 0 | I64: 0 | J64: 0 | K64: 0
A65: Customer 32 | C65: 0 | D65: =SUM(IF('6. Class A Consumption Data'!F125:G125="B",'6. Class A Consumption Data'!F123:G123)) -> 0 | E65: =SUM(IF('6. Class A Consumption Data'!H125:I125="B",'6. Class A Consumption Data'!H123:I123)) -> 0 | F65: =SUM(IF('6. Class A Consumption Data'!J125:K125="B",'6. Class A Consumption Data'!J123:K123)) -> 0 | G65: =SUM(IF('6. Class A Consumption Data'!L125:M125="B",'6. Class A Consumption Data'!L123:M123)) -> 0 | H65: =SUM(IF('6. Class A Consumption Data'!N125:O125="B",'6. Class A Consumption Data'!N123:O123)) -> 0 | I65: 0 | J65: 0 | K65: 0
A66: Customer 33 | C66: 0 | D66: =SUM(IF('6. Class A Consumption Data'!F128:G128="B",'6. Class A Consumption Data'!F126:G126)) -> 0 | E66: =SUM(IF('6. Class A Consumption Data'!H128:I128="B",'6. Class A Consumption Data'!H126:I126)) -> 0 | F66: =SUM(IF('6. Class A Consumption Data'!J128:K128="B",'6. Class A Consumption Data'!J126:K126)) -> 0 | G66: =SUM(IF('6. Class A Consumption Data'!L128:M128="B",'6. Class A Consumption Data'!L126:M126)) -> 0 | H66: =SUM(IF('6. Class A Consumption Data'!N128:O128="B",'6. Class A Consumption Data'!N126:O126)) -> 0 | I66: 0 | J66: 0 | K66: 0
A67: Customer 34 | C67: 0 | D67: =SUM(IF('6. Class A Consumption Data'!F131:G131="B",'6. Class A Consumption Data'!F129:G129)) -> 0 | E67: =SUM(IF('6. Class A Consumption Data'!H131:I131="B",'6. Class A Consumption Data'!H129:I129)) -> 0 | F67: =SUM(IF('6. Class A Consumption Data'!J131:K131="B",'6. Class A Consumption Data'!J129:K129)) -> 0 | G67: =SUM(IF('6. Class A Consumption Data'!L131:M131="B",'6. Class A Consumption Data'!L129:M129)) -> 0 | H67: =SUM(IF('6. Class A Consumption Data'!N131:O131="B",'6. Class A Consumption Data'!N129:O129)) -> 0 | I67: 0 | J67: 0 | K67: 0
A68: Customer 35 | C68: 0 | D68: =SUM(IF('6. Class A Consumption Data'!F134:G134="B",'6. Class A Consumption Data'!F132:G132)) -> 0 | E68: =SUM(IF('6. Class A Consumption Data'!H134:I134="B",'6. Class A Consumption Data'!H132:I132)) -> 0 | F68: =SUM(IF('6. Class A Consumption Data'!J134:K134="B",'6. Class A Consumption Data'!J132:K132)) -> 0 | G68: =SUM(IF('6. Class A Consumption Data'!L134:M134="B",'6. Class A Consumption Data'!L132:M132)) -> 0 | H68: =SUM(IF('6. Class A Consumption Data'!N134:O134="B",'6. Class A Consumption Data'!N132:O132)) -> 0 | I68: 0 | J68: 0 | K68: 0
A69: Customer 36 | C69: 0 | D69: =SUM(IF('6. Class A Consumption Data'!F137:G137="B",'6. Class A Consumption Data'!F135:G135)) -> 0 | E69: =SUM(IF('6. Class A Consumption Data'!H137:I137="B",'6. Class A Consumption Data'!H135:I135)) -> 0 | F69: =SUM(IF('6. Class A Consumption Data'!J137:K137="B",'6. Class A Consumption Data'!J135:K135)) -> 0 | G69: =SUM(IF('6. Class A Consumption Data'!L137:M137="B",'6. Class A Consumption Data'!L135:M135)) -> 0 | H69: =SUM(IF('6. Class A Consumption Data'!N137:O137="B",'6. Class A Consumption Data'!N135:O135)) -> 0 | I69: 0 | J69: 0 | K69: 0
A70: Customer 37 | C70: 0 | D70: =SUM(IF('6. Class A Consumption Data'!F140:G140="B",'6. Class A Consumption Data'!F138:G138)) -> 0 | E70: =SUM(IF('6. Class A Consumption Data'!H140:I140="B",'6. Class A Consumption Data'!H138:I138)) -> 0 | F70: =SUM(IF('6. Class A Consumption Data'!J140:K140="B",'6. Class A Consumption Data'!J138:K138)) -> 0 | G70: =SUM(IF('6. Class A Consumption Data'!L140:M140="B",'6. Class A Consumption Data'!L138:M138)) -> 0 | H70: =SUM(IF('6. Class A Consumption Data'!N140:O140="B",'6. Class A Consumption Data'!N138:O138)) -> 0 | I70: 0 | J70: 0 | K70: 0
A71: Customer 38 | C71: 0 | D71: =SUM(IF('6. Class A Consumption Data'!F143:G143="B",'6. Class A Consumption Data'!F141:G141)) -> 0 | E71: =SUM(IF('6. Class A Consumption Data'!H143:I143="B",'6. Class A Consumption Data'!H141:I141)) -> 0 | F71: =SUM(IF('6. Class A Consumption Data'!J143:K143="B",'6. Class A Consumption Data'!J141:K141)) -> 0 | G71: =SUM(IF('6. Class A Consumption Data'!L143:M143="B",'6. Class A Consumption Data'!L141:M141)) -> 0 | H71: =SUM(IF('6. Class A Consumption Data'!N143:O143="B",'6. Class A Consumption Data'!N141:O141)) -> 0 | I71: 0 | J71: 0 | K71: 0
A72: Customer 39 | C72: 0 | D72: =SUM(IF('6. Class A Consumption Data'!F146:G146="B",'6. Class A Consumption Data'!F144:G144)) -> 0 | E72: =SUM(IF('6. Class A Consumption Data'!H146:I146="B",'6. Class A Consumption Data'!H144:I144)) -> 0 | F72: =SUM(IF('6. Class A Consumption Data'!J146:K146="B",'6. Class A Consumption Data'!J144:K144)) -> 0 | G72: =SUM(IF('6. Class A Consumption Data'!L146:M146="B",'6. Class A Consumption Data'!L144:M144)) -> 0 | H72: =SUM(IF('6. Class A Consumption Data'!N146:O146="B",'6. Class A Consumption Data'!N144:O144)) -> 0 | I72: 0 | J72: 0 | K72: 0
A73: Customer 40 | C73: 0 | D73: =SUM(IF('6. Class A Consumption Data'!F149:G149="B",'6. Class A Consumption Data'!F147:G147)) -> 0 | E73: =SUM(IF('6. Class A Consumption Data'!H149:I149="B",'6. Class A Consumption Data'!H147:I147)) -> 0 | F73: =SUM(IF('6. Class A Consumption Data'!J149:K149="B",'6. Class A Consumption Data'!J147:K147)) -> 0 | G73: =SUM(IF('6. Class A Consumption Data'!L149:M149="B",'6. Class A Consumption Data'!L147:M147)) -> 0 | H73: =SUM(IF('6. Class A Consumption Data'!N149:O149="B",'6. Class A Consumption Data'!N147:O147)) -> 0 | I73: 0 | J73: 0 | K73: 0
A74: Customer 41 | C74: 0 | D74: =SUM(IF('6. Class A Consumption Data'!F152:G152="B",'6. Class A Consumption Data'!F150:G150)) -> 0 | E74: =SUM(IF('6. Class A Consumption Data'!H152:I152="B",'6. Class A Consumption Data'!H150:I150)) -> 0 | F74: =SUM(IF('6. Class A Consumption Data'!J152:K152="B",'6. Class A Consumption Data'!J150:K150)) -> 0 | G74: =SUM(IF('6. Class A Consumption Data'!L152:M152="B",'6. Class A Consumption Data'!L150:M150)) -> 0 | H74: =SUM(IF('6. Class A Consumption Data'!N152:O152="B",'6. Class A Consumption Data'!N150:O150)) -> 0 | I74: 0 | J74: 0 | K74: 0
A75: Customer 42 | C75: 0 | D75: =SUM(IF('6. Class A Consumption Data'!F155:G155="B",'6. Class A Consumption Data'!F153:G153)) -> 0 | E75: =SUM(IF('6. Class A Consumption Data'!H155:I155="B",'6. Class A Consumption Data'!H153:I153)) -> 0 | F75: =SUM(IF('6. Class A Consumption Data'!J155:K155="B",'6. Class A Consumption Data'!J153:K153)) -> 0 | G75: =SUM(IF('6. Class A Consumption Data'!L155:M155="B",'6. Class A Consumption Data'!L153:M153)) -> 0 | H75: =SUM(IF('6. Class A Consumption Data'!N155:O155="B",'6. Class A Consumption Data'!N153:O153)) -> 0 | I75: 0 | J75: 0 | K75: 0
A76: Customer 43 | C76: 0 | D76: =SUM(IF('6. Class A Consumption Data'!F158:G158="B",'6. Class A Consumption Data'!F156:G156)) -> 0 | E76: =SUM(IF('6. Class A Consumption Data'!H158:I158="B",'6. Class A Consumption Data'!H156:I156)) -> 0 | F76: =SUM(IF('6. Class A Consumption Data'!J158:K158="B",'6. Class A Consumption Data'!J156:K156)) -> 0 | G76: =SUM(IF('6. Class A Consumption Data'!L158:M158="B",'6. Class A Consumption Data'!L156:M156)) -> 0 | H76: =SUM(IF('6. Class A Consumption Data'!N158:O158="B",'6. Class A Consumption Data'!N156:O156)) -> 0 | I76: 0 | J76: 0 | K76: 0
A77: Customer 44 | C77: 0 | D77: =SUM(IF('6. Class A Consumption Data'!F161:G161="B",'6. Class A Consumption Data'!F159:G159)) -> 0 | E77: =SUM(IF('6. Class A Consumption Data'!H161:I161="B",'6. Class A Consumption Data'!H159:I159)) -> 0 | F77: =SUM(IF('6. Class A Consumption Data'!J161:K161="B",'6. Class A Consumption Data'!J159:K159)) -> 0 | G77: =SUM(IF('6. Class A Consumption Data'!L161:M161="B",'6. Class A Consumption Data'!L159:M159)) -> 0 | H77: =SUM(IF('6. Class A Consumption Data'!N161:O161="B",'6. Class A Consumption Data'!N159:O159)) -> 0 | I77: 0 | J77: 0 | K77: 0
A78: Customer 45 | C78: 0 | D78: =SUM(IF('6. Class A Consumption Data'!F164:G164="B",'6. Class A Consumption Data'!F162:G162)) -> 0 | E78: =SUM(IF('6. Class A Consumption Data'!H164:I164="B",'6. Class A Consumption Data'!H162:I162)) -> 0 | F78: =SUM(IF('6. Class A Consumption Data'!J164:K164="B",'6. Class A Consumption Data'!J162:K162)) -> 0 | G78: =SUM(IF('6. Class A Consumption Data'!L164:M164="B",'6. Class A Consumption Data'!L162:M162)) -> 0 | H78: =SUM(IF('6. Class A Consumption Data'!N164:O164="B",'6. Class A Consumption Data'!N162:O162)) -> 0 | I78: 0 | J78: 0 | K78: 0
A79: Customer 46 | C79: 0 | D79: =SUM(IF('6. Class A Consumption Data'!F167:G167="B",'6. Class A Consumption Data'!F165:G165)) -> 0 | E79: =SUM(IF('6. Class A Consumption Data'!H167:I167="B",'6. Class A Consumption Data'!H165:I165)) -> 0 | F79: =SUM(IF('6. Class A Consumption Data'!J167:K167="B",'6. Class A Consumption Data'!J165:K165)) -> 0 | G79: =SUM(IF('6. Class A Consumption Data'!L167:M167="B",'6. Class A Consumption Data'!L165:M165)) -> 0 | H79: =SUM(IF('6. Class A Consumption Data'!N167:O167="B",'6. Class A Consumption Data'!N165:O165)) -> 0 | I79: 0 | J79: 0 | K79: 0
A80: Customer 47 | C80: 0 | D80: =SUM(IF('6. Class A Consumption Data'!F170:G170="B",'6. Class A Consumption Data'!F168:G168)) -> 0 | E80: =SUM(IF('6. Class A Consumption Data'!H170:I170="B",'6. Class A Consumption Data'!H168:I168)) -> 0 | F80: =SUM(IF('6. Class A Consumption Data'!J170:K170="B",'6. Class A Consumption Data'!J168:K168)) -> 0 | G80: =SUM(IF('6. Class A Consumption Data'!L170:M170="B",'6. Class A Consumption Data'!L168:M168)) -> 0 | H80: =SUM(IF('6. Class A Consumption Data'!N170:O170="B",'6. Class A Consumption Data'!N168:O168)) -> 0 | I80: 0 | J80: 0 | K80: 0
A81: Customer 48 | C81: 0 | D81: =SUM(IF('6. Class A Consumption Data'!F173:G173="B",'6. Class A Consumption Data'!F171:G171)) -> 0 | E81: =SUM(IF('6. Class A Consumption Data'!H173:I173="B",'6. Class A Consumption Data'!H171:I171)) -> 0 | F81: =SUM(IF('6. Class A Consumption Data'!J173:K173="B",'6. Class A Consumption Data'!J171:K171)) -> 0 | G81: =SUM(IF('6. Class A Consumption Data'!L173:M173="B",'6. Class A Consumption Data'!L171:M171)) -> 0 | H81: =SUM(IF('6. Class A Consumption Data'!N173:O173="B",'6. Class A Consumption Data'!N171:O171)) -> 0 | I81: 0 | J81: 0 | K81: 0
A82: Customer 49 | C82: 0 | D82: =SUM(IF('6. Class A Consumption Data'!F176:G176="B",'6. Class A Consumption Data'!F174:G174)) -> 0 | E82: =SUM(IF('6. Class A Consumption Data'!H176:I176="B",'6. Class A Consumption Data'!H174:I174)) -> 0 | F82: =SUM(IF('6. Class A Consumption Data'!J176:K176="B",'6. Class A Consumption Data'!J174:K174)) -> 0 | G82: =SUM(IF('6. Class A Consumption Data'!L176:M176="B",'6. Class A Consumption Data'!L174:M174)) -> 0 | H82: =SUM(IF('6. Class A Consumption Data'!N176:O176="B",'6. Class A Consumption Data'!N174:O174)) -> 0 | I82: 0 | J82: 0 | K82: 0
A83: Customer 50 | C83: 0 | D83: =SUM(IF('6. Class A Consumption Data'!F179:G179="B",'6. Class A Consumption Data'!F177:G177)) -> 0 | E83: =SUM(IF('6. Class A Consumption Data'!H179:I179="B",'6. Class A Consumption Data'!H177:I177)) -> 0 | F83: =SUM(IF('6. Class A Consumption Data'!J179:K179="B",'6. Class A Consumption Data'!J177:K177)) -> 0 | G83: =SUM(IF('6. Class A Consumption Data'!L179:M179="B",'6. Class A Consumption Data'!L177:M177)) -> 0 | H83: =SUM(IF('6. Class A Consumption Data'!N179:O179="B",'6. Class A Consumption Data'!N177:O177)) -> 0 | I83: 0 | J83: 0 | K83: 0
A84: Customer 51 | C84: 0 | D84: =SUM(IF('6. Class A Consumption Data'!F182:G182="B",'6. Class A Consumption Data'!F180:G180)) -> 0 | E84: =SUM(IF('6. Class A Consumption Data'!H182:I182="B",'6. Class A Consumption Data'!H180:I180)) -> 0 | F84: =SUM(IF('6. Class A Consumption Data'!J182:K182="B",'6. Class A Consumption Data'!J180:K180)) -> 0 | G84: =SUM(IF('6. Class A Consumption Data'!L182:M182="B",'6. Class A Consumption Data'!L180:M180)) -> 0 | H84: =SUM(IF('6. Class A Consumption Data'!N182:O182="B",'6. Class A Consumption Data'!N180:O180)) -> 0 | I84: 0 | J84: 0 | K84: 0
A85: Customer 52 | C85: 0 | D85: =SUM(IF('6. Class A Consumption Data'!F185:G185="B",'6. Class A Consumption Data'!F183:G183)) -> 0 | E85: =SUM(IF('6. Class A Consumption Data'!H185:I185="B",'6. Class A Consumption Data'!H183:I183)) -> 0 | F85: =SUM(IF('6. Class A Consumption Data'!J185:K185="B",'6. Class A Consumption Data'!J183:K183)) -> 0 | G85: =SUM(IF('6. Class A Consumption Data'!L185:M185="B",'6. Class A Consumption Data'!L183:M183)) -> 0 | H85: =SUM(IF('6. Class A Consumption Data'!N185:O185="B",'6. Class A Consumption Data'!N183:O183)) -> 0 | I85: 0 | J85: 0 | K85: 0
A86: Customer 53 | C86: 0 | D86: =SUM(IF('6. Class A Consumption Data'!F188:G188="B",'6. Class A Consumption Data'!F186:G186)) -> 0 | E86: =SUM(IF('6. Class A Consumption Data'!H188:I188="B",'6. Class A Consumption Data'!H186:I186)) -> 0 | F86: =SUM(IF('6. Class A Consumption Data'!J188:K188="B",'6. Class A Consumption Data'!J186:K186)) -> 0 | G86: =SUM(IF('6. Class A Consumption Data'!L188:M188="B",'6. Class A Consumption Data'!L186:M186)) -> 0 | H86: =SUM(IF('6. Class A Consumption Data'!N188:O188="B",'6. Class A Consumption Data'!N186:O186)) -> 0 | I86: 0 | J86: 0 | K86: 0
A87: Customer 54 | C87: 0 | D87: =SUM(IF('6. Class A Consumption Data'!F191:G191="B",'6. Class A Consumption Data'!F189:G189)) -> 0 | E87: =SUM(IF('6. Class A Consumption Data'!H191:I191="B",'6. Class A Consumption Data'!H189:I189)) -> 0 | F87: =SUM(IF('6. Class A Consumption Data'!J191:K191="B",'6. Class A Consumption Data'!J189:K189)) -> 0 | G87: =SUM(IF('6. Class A Consumption Data'!L191:M191="B",'6. Class A Consumption Data'!L189:M189)) -> 0 | H87: =SUM(IF('6. Class A Consumption Data'!N191:O191="B",'6. Class A Consumption Data'!N189:O189)) -> 0 | I87: 0 | J87: 0 | K87: 0
A88: Customer 55 | C88: 0 | D88: =SUM(IF('6. Class A Consumption Data'!F194:G194="B",'6. Class A Consumption Data'!F192:G192)) -> 0 | E88: =SUM(IF('6. Class A Consumption Data'!H194:I194="B",'6. Class A Consumption Data'!H192:I192)) -> 0 | F88: =SUM(IF('6. Class A Consumption Data'!J194:K194="B",'6. Class A Consumption Data'!J192:K192)) -> 0 | G88: =SUM(IF('6. Class A Consumption Data'!L194:M194="B",'6. Class A Consumption Data'!L192:M192)) -> 0 | H88: =SUM(IF('6. Class A Consumption Data'!N194:O194="B",'6. Class A Consumption Data'!N192:O192)) -> 0 | I88: 0 | J88: 0 | K88: 0
A89: Customer 56 | C89: 0 | D89: =SUM(IF('6. Class A Consumption Data'!F197:G197="B",'6. Class A Consumption Data'!F195:G195)) -> 0 | E89: =SUM(IF('6. Class A Consumption Data'!H197:I197="B",'6. Class A Consumption Data'!H195:I195)) -> 0 | F89: =SUM(IF('6. Class A Consumption Data'!J197:K197="B",'6. Class A Consumption Data'!J195:K195)) -> 0 | G89: =SUM(IF('6. Class A Consumption Data'!L197:M197="B",'6. Class A Consumption Data'!L195:M195)) -> 0 | H89: =SUM(IF('6. Class A Consumption Data'!N197:O197="B",'6. Class A Consumption Data'!N195:O195)) -> 0 | I89: 0 | J89: 0 | K89: 0
A90: Customer 57 | C90: 0 | D90: =SUM(IF('6. Class A Consumption Data'!F200:G200="B",'6. Class A Consumption Data'!F198:G198)) -> 0 | E90: =SUM(IF('6. Class A Consumption Data'!H200:I200="B",'6. Class A Consumption Data'!H198:I198)) -> 0 | F90: =SUM(IF('6. Class A Consumption Data'!J200:K200="B",'6. Class A Consumption Data'!J198:K198)) -> 0 | G90: =SUM(IF('6. Class A Consumption Data'!L200:M200="B",'6. Class A Consumption Data'!L198:M198)) -> 0 | H90: =SUM(IF('6. Class A Consumption Data'!N200:O200="B",'6. Class A Consumption Data'!N198:O198)) -> 0 | I90: 0 | J90: 0 | K90: 0
A91: Customer 58 | C91: 0 | D91: =SUM(IF('6. Class A Consumption Data'!F203:G203="B",'6. Class A Consumption Data'!F201:G201)) -> 0 | E91: =SUM(IF('6. Class A Consumption Data'!H203:I203="B",'6. Class A Consumption Data'!H201:I201)) -> 0 | F91: =SUM(IF('6. Class A Consumption Data'!J203:K203="B",'6. Class A Consumption Data'!J201:K201)) -> 0 | G91: =SUM(IF('6. Class A Consumption Data'!L203:M203="B",'6. Class A Consumption Data'!L201:M201)) -> 0 | H91: =SUM(IF('6. Class A Consumption Data'!N203:O203="B",'6. Class A Consumption Data'!N201:O201)) -> 0 | I91: 0 | J91: 0 | K91: 0
A92: Customer 59 | C92: 0 | D92: =SUM(IF('6. Class A Consumption Data'!F206:G206="B",'6. Class A Consumption Data'!F204:G204)) -> 0 | E92: =SUM(IF('6. Class A Consumption Data'!H206:I206="B",'6. Class A Consumption Data'!H204:I204)) -> 0 | F92: =SUM(IF('6. Class A Consumption Data'!J206:K206="B",'6. Class A Consumption Data'!J204:K204)) -> 0 | G92: =SUM(IF('6. Class A Consumption Data'!L206:M206="B",'6. Class A Consumption Data'!L204:M204)) -> 0 | H92: =SUM(IF('6. Class A Consumption Data'!N206:O206="B",'6. Class A Consumption Data'!N204:O204)) -> 0 | I92: 0 | J92: 0 | K92: 0
A93: Customer 60 | C93: 0 | D93: =SUM(IF('6. Class A Consumption Data'!F209:G209="B",'6. Class A Consumption Data'!F207:G207)) -> 0 | E93: =SUM(IF('6. Class A Consumption Data'!H209:I209="B",'6. Class A Consumption Data'!H207:I207)) -> 0 | F93: =SUM(IF('6. Class A Consumption Data'!J209:K209="B",'6. Class A Consumption Data'!J207:K207)) -> 0 | G93: =SUM(IF('6. Class A Consumption Data'!L209:M209="B",'6. Class A Consumption Data'!L207:M207)) -> 0 | H93: =SUM(IF('6. Class A Consumption Data'!N209:O209="B",'6. Class A Consumption Data'!N207:O207)) -> 0 | I93: 0 | J93: 0 | K93: 0
A94: Customer 61 | C94: 0 | D94: =SUM(IF('6. Class A Consumption Data'!F212:G212="B",'6. Class A Consumption Data'!F210:G210)) -> 0 | E94: =SUM(IF('6. Class A Consumption Data'!H212:I212="B",'6. Class A Consumption Data'!H210:I210)) -> 0 | F94: =SUM(IF('6. Class A Consumption Data'!J212:K212="B",'6. Class A Consumption Data'!J210:K210)) -> 0 | G94: =SUM(IF('6. Class A Consumption Data'!L212:M212="B",'6. Class A Consumption Data'!L210:M210)) -> 0 | H94: =SUM(IF('6. Class A Consumption Data'!N212:O212="B",'6. Class A Consumption Data'!N210:O210)) -> 0 | I94: 0 | J94: 0 | K94: 0
A95: Customer 62 | C95: 0 | D95: =SUM(IF('6. Class A Consumption Data'!F215:G215="B",'6. Class A Consumption Data'!F213:G213)) -> 0 | E95: =SUM(IF('6. Class A Consumption Data'!H215:I215="B",'6. Class A Consumption Data'!H213:I213)) -> 0 | F95: =SUM(IF('6. Class A Consumption Data'!J215:K215="B",'6. Class A Consumption Data'!J213:K213)) -> 0 | G95: =SUM(IF('6. Class A Consumption Data'!L215:M215="B",'6. Class A Consumption Data'!L213:M213)) -> 0 | H95: =SUM(IF('6. Class A Consumption Data'!N215:O215="B",'6. Class A Consumption Data'!N213:O213)) -> 0 | I95: 0 | J95: 0 | K95: 0
A96: Customer 63 | C96: 0 | D96: =SUM(IF('6. Class A Consumption Data'!F218:G218="B",'6. Class A Consumption Data'!F216:G216)) -> 0 | E96: =SUM(IF('6. Class A Consumption Data'!H218:I218="B",'6. Class A Consumption Data'!H216:I216)) -> 0 | F96: =SUM(IF('6. Class A Consumption Data'!J218:K218="B",'6. Class A Consumption Data'!J216:K216)) -> 0 | G96: =SUM(IF('6. Class A Consumption Data'!L218:M218="B",'6. Class A Consumption Data'!L216:M216)) -> 0 | H96: =SUM(IF('6. Class A Consumption Data'!N218:O218="B",'6. Class A Consumption Data'!N216:O216)) -> 0 | I96: 0 | J96: 0 | K96: 0
A97: Customer 64 | C97: 0 | D97: =SUM(IF('6. Class A Consumption Data'!F221:G221="B",'6. Class A Consumption Data'!F219:G219)) -> 0 | E97: =SUM(IF('6. Class A Consumption Data'!H221:I221="B",'6. Class A Consumption Data'!H219:I219)) -> 0 | F97: =SUM(IF('6. Class A Consumption Data'!J221:K221="B",'6. Class A Consumption Data'!J219:K219)) -> 0 | G97: =SUM(IF('6. Class A Consumption Data'!L221:M221="B",'6. Class A Consumption Data'!L219:M219)) -> 0 | H97: =SUM(IF('6. Class A Consumption Data'!N221:O221="B",'6. Class A Consumption Data'!N219:O219)) -> 0 | I97: 0 | J97: 0 | K97: 0
A98: Customer 65 | C98: 0 | D98: =SUM(IF('6. Class A Consumption Data'!F224:G224="B",'6. Class A Consumption Data'!F222:G222)) -> 0 | E98: =SUM(IF('6. Class A Consumption Data'!H224:I224="B",'6. Class A Consumption Data'!H222:I222)) -> 0 | F98: =SUM(IF('6. Class A Consumption Data'!J224:K224="B",'6. Class A Consumption Data'!J222:K222)) -> 0 | G98: =SUM(IF('6. Class A Consumption Data'!L224:M224="B",'6. Class A Consumption Data'!L222:M222)) -> 0 | H98: =SUM(IF('6. Class A Consumption Data'!N224:O224="B",'6. Class A Consumption Data'!N222:O222)) -> 0 | I98: 0 | J98: 0 | K98: 0
A99: Customer 66 | C99: 0 | D99: =SUM(IF('6. Class A Consumption Data'!F227:G227="B",'6. Class A Consumption Data'!F225:G225)) -> 0 | E99: =SUM(IF('6. Class A Consumption Data'!H227:I227="B",'6. Class A Consumption Data'!H225:I225)) -> 0 | F99: =SUM(IF('6. Class A Consumption Data'!J227:K227="B",'6. Class A Consumption Data'!J225:K225)) -> 0 | G99: =SUM(IF('6. Class A Consumption Data'!L227:M227="B",'6. Class A Consumption Data'!L225:M225)) -> 0 | H99: =SUM(IF('6. Class A Consumption Data'!N227:O227="B",'6. Class A Consumption Data'!N225:O225)) -> 0 | I99: =IFERROR(+C99/$C$184,0) -> 0 | J99: 0 | K99: 0
A100: Customer 67 | C100: 0 | D100: =SUM(IF('6. Class A Consumption Data'!F230:G230="B",'6. Class A Consumption Data'!F228:G228)) -> 0 | E100: =SUM(IF('6. Class A Consumption Data'!H230:I230="B",'6. Class A Consumption Data'!H228:I228)) -> 0 | F100: =SUM(IF('6. Class A Consumption Data'!J230:K230="B",'6. Class A Consumption Data'!J228:K228)) -> 0 | G100: =SUM(IF('6. Class A Consumption Data'!L230:M230="B",'6. Class A Consumption Data'!L228:M228)) -> 0 | H100: =SUM(IF('6. Class A Consumption Data'!N230:O230="B",'6. Class A Consumption Data'!N228:O228)) -> 0 | I100: 0 | J100: 0 | K100: 0
A101: Customer 68 | C101: 0 | D101: =SUM(IF('6. Class A Consumption Data'!F233:G233="B",'6. Class A Consumption Data'!F231:G231)) -> 0 | E101: =SUM(IF('6. Class A Consumption Data'!H233:I233="B",'6. Class A Consumption Data'!H231:I231)) -> 0 | F101: =SUM(IF('6. Class A Consumption Data'!J233:K233="B",'6. Class A Consumption Data'!J231:K231)) -> 0 | G101: =SUM(IF('6. Class A Consumption Data'!L233:M233="B",'6. Class A Consumption Data'!L231:M231)) -> 0 | H101: =SUM(IF('6. Class A Consumption Data'!N233:O233="B",'6. Class A Consumption Data'!N231:O231)) -> 0 | I101: 0 | J101: 0 | K101: 0
A102: Customer 69 | C102: =SUM(D102:G102) -> 0 | D102: =SUM(IF('6. Class A Consumption Data'!F236:G236="B",'6. Class A Consumption Data'!F234:G234)) -> 0 | E102: =SUM(IF('6. Class A Consumption Data'!H236:I236="B",'6. Class A Consumption Data'!H234:I234)) -> 0 | F102: =SUM(IF('6. Class A Consumption Data'!J236:K236="B",'6. Class A Consumption Data'!J234:K234)) -> 0 | G102: =SUM(IF('6. Class A Consumption Data'!L236:M236="B",'6. Class A Consumption Data'!L234:M234)) -> 0 | H102: =SUM(IF('6. Class A Consumption Data'!N236:O236="B",'6. Class A Consumption Data'!N234:O234)) -> 0 | I102: 0 | J102: =+I102*$C$28 -> 0 | K102: =+J102/12 -> 0
A103: Customer 70 | C103: 0 | D103: =SUM(IF('6. Class A Consumption Data'!F239:G239="B",'6. Class A Consumption Data'!F237:G237)) -> 0 | E103: =SUM(IF('6. Class A Consumption Data'!H239:I239="B",'6. Class A Consumption Data'!H237:I237)) -> 0 | F103: =SUM(IF('6. Class A Consumption Data'!J239:K239="B",'6. Class A Consumption Data'!J237:K237)) -> 0 | G103: =SUM(IF('6. Class A Consumption Data'!L239:M239="B",'6. Class A Consumption Data'!L237:M237)) -> 0 | H103: =SUM(IF('6. Class A Consumption Data'!N239:O239="B",'6. Class A Consumption Data'!N237:O237)) -> 0 | I103: 0 | J103: 0 | K103: 0
A104: Customer 71 | C104: 0 | D104: =SUM(IF('6. Class A Consumption Data'!F242:G242="B",'6. Class A Consumption Data'!F240:G240)) -> 0 | E104: =SUM(IF('6. Class A Consumption Data'!H242:I242="B",'6. Class A Consumption Data'!H240:I240)) -> 0 | F104: =SUM(IF('6. Class A Consumption Data'!J242:K242="B",'6. Class A Consumption Data'!J240:K240)) -> 0 | G104: =SUM(IF('6. Class A Consumption Data'!L242:M242="B",'6. Class A Consumption Data'!L240:M240)) -> 0 | H104: =SUM(IF('6. Class A Consumption Data'!N242:O242="B",'6. Class A Consumption Data'!N240:O240)) -> 0 | I104: 0 | J104: 0 | K104: 0
A105: Customer 72 | C105: 0 | D105: =SUM(IF('6. Class A Consumption Data'!F245:G245="B",'6. Class A Consumption Data'!F243:G243)) -> 0 | E105: =SUM(IF('6. Class A Consumption Data'!H245:I245="B",'6. Class A Consumption Data'!H243:I243)) -> 0 | F105: =SUM(IF('6. Class A Consumption Data'!J245:K245="B",'6. Class A Consumption Data'!J243:K243)) -> 0 | G105: =SUM(IF('6. Class A Consumption Data'!L245:M245="B",'6. Class A Consumption Data'!L243:M243)) -> 0 | H105: =SUM(IF('6. Class A Consumption Data'!N245:O245="B",'6. Class A Consumption Data'!N243:O243)) -> 0 | I105: 0 | J105: 0 | K105: 0
A106: Customer 73 | C106: 0 | D106: =SUM(IF('6. Class A Consumption Data'!F248:G248="B",'6. Class A Consumption Data'!F246:G246)) -> 0 | E106: =SUM(IF('6. Class A Consumption Data'!H248:I248="B",'6. Class A Consumption Data'!H246:I246)) -> 0 | F106: =SUM(IF('6. Class A Consumption Data'!J248:K248="B",'6. Class A Consumption Data'!J246:K246)) -> 0 | G106: =SUM(IF('6. Class A Consumption Data'!L248:M248="B",'6. Class A Consumption Data'!L246:M246)) -> 0 | H106: =SUM(IF('6. Class A Consumption Data'!N248:O248="B",'6. Class A Consumption Data'!N246:O246)) -> 0 | I106: 0 | J106: 0 | K106: 0
A107: Customer 74 | C107: 0 | D107: =SUM(IF('6. Class A Consumption Data'!F251:G251="B",'6. Class A Consumption Data'!F249:G249)) -> 0 | E107: =SUM(IF('6. Class A Consumption Data'!H251:I251="B",'6. Class A Consumption Data'!H249:I249)) -> 0 | F107: =SUM(IF('6. Class A Consumption Data'!J251:K251="B",'6. Class A Consumption Data'!J249:K249)) -> 0 | G107: =SUM(IF('6. Class A Consumption Data'!L251:M251="B",'6. Class A Consumption Data'!L249:M249)) -> 0 | H107: =SUM(IF('6. Class A Consumption Data'!N251:O251="B",'6. Class A Consumption Data'!N249:O249)) -> 0 | I107: 0 | J107: 0 | K107: 0
A108: Customer 75 | C108: 0 | D108: =SUM(IF('6. Class A Consumption Data'!F254:G254="B",'6. Class A Consumption Data'!F252:G252)) -> 0 | E108: =SUM(IF('6. Class A Consumption Data'!H254:I254="B",'6. Class A Consumption Data'!H252:I252)) -> 0 | F108: =SUM(IF('6. Class A Consumption Data'!J254:K254="B",'6. Class A Consumption Data'!J252:K252)) -> 0 | G108: =SUM(IF('6. Class A Consumption Data'!L254:M254="B",'6. Class A Consumption Data'!L252:M252)) -> 0 | H108: =SUM(IF('6. Class A Consumption Data'!N254:O254="B",'6. Class A Consumption Data'!N252:O252)) -> 0 | I108: 0 | J108: 0 | K108: 0
A109: Customer 76 | C109: 0 | D109: =SUM(IF('6. Class A Consumption Data'!F257:G257="B",'6. Class A Consumption Data'!F255:G255)) -> 0 | E109: =SUM(IF('6. Class A Consumption Data'!H257:I257="B",'6. Class A Consumption Data'!H255:I255)) -> 0 | F109: =SUM(IF('6. Class A Consumption Data'!J257:K257="B",'6. Class A Consumption Data'!J255:K255)) -> 0 | G109: =SUM(IF('6. Class A Consumption Data'!L257:M257="B",'6. Class A Consumption Data'!L255:M255)) -> 0 | H109: =SUM(IF('6. Class A Consumption Data'!N257:O257="B",'6. Class A Consumption Data'!N255:O255)) -> 0 | I109: 0 | J109: 0 | K109: 0
A110: Customer 77 | C110: 0 | D110: =SUM(IF('6. Class A Consumption Data'!F260:G260="B",'6. Class A Consumption Data'!F258:G258)) -> 0 | E110: =SUM(IF('6. Class A Consumption Data'!H260:I260="B",'6. Class A Consumption Data'!H258:I258)) -> 0 | F110: =SUM(IF('6. Class A Consumption Data'!J260:K260="B",'6. Class A Consumption Data'!J258:K258)) -> 0 | G110: =SUM(IF('6. Class A Consumption Data'!L260:M260="B",'6. Class A Consumption Data'!L258:M258)) -> 0 | H110: =SUM(IF('6. Class A Consumption Data'!N260:O260="B",'6. Class A Consumption Data'!N258:O258)) -> 0 | I110: 0 | J110: 0 | K110: 0
A111: Customer 78 | C111: 0 | D111: =SUM(IF('6. Class A Consumption Data'!F263:G263="B",'6. Class A Consumption Data'!F261:G261)) -> 0 | E111: =SUM(IF('6. Class A Consumption Data'!H263:I263="B",'6. Class A Consumption Data'!H261:I261)) -> 0 | F111: =SUM(IF('6. Class A Consumption Data'!J263:K263="B",'6. Class A Consumption Data'!J261:K261)) -> 0 | G111: =SUM(IF('6. Class A Consumption Data'!L263:M263="B",'6. Class A Consumption Data'!L261:M261)) -> 0 | H111: =SUM(IF('6. Class A Consumption Data'!N263:O263="B",'6. Class A Consumption Data'!N261:O261)) -> 0 | I111: 0 | J111: 0 | K111: 0
A112: Customer 79 | C112: 0 | D112: =SUM(IF('6. Class A Consumption Data'!F266:G266="B",'6. Class A Consumption Data'!F264:G264)) -> 0 | E112: =SUM(IF('6. Class A Consumption Data'!H266:I266="B",'6. Class A Consumption Data'!H264:I264)) -> 0 | F112: =SUM(IF('6. Class A Consumption Data'!J266:K266="B",'6. Class A Consumption Data'!J264:K264)) -> 0 | G112: =SUM(IF('6. Class A Consumption Data'!L266:M266="B",'6. Class A Consumption Data'!L264:M264)) -> 0 | H112: =SUM(IF('6. Class A Consumption Data'!N266:O266="B",'6. Class A Consumption Data'!N264:O264)) -> 0 | I112: 0 | J112: 0 | K112: 0
A113: Customer 80 | C113: 0 | D113: =SUM(IF('6. Class A Consumption Data'!F269:G269="B",'6. Class A Consumption Data'!F267:G267)) -> 0 | E113: =SUM(IF('6. Class A Consumption Data'!H269:I269="B",'6. Class A Consumption Data'!H267:I267)) -> 0 | F113: =SUM(IF('6. Class A Consumption Data'!J269:K269="B",'6. Class A Consumption Data'!J267:K267)) -> 0 | G113: =SUM(IF('6. Class A Consumption Data'!L269:M269="B",'6. Class A Consumption Data'!L267:M267)) -> 0 | H113: =SUM(IF('6. Class A Consumption Data'!N269:O269="B",'6. Class A Consumption Data'!N267:O267)) -> 0 | I113: 0 | J113: 0 | K113: 0
A114: Customer 81 | C114: 0 | D114: =SUM(IF('6. Class A Consumption Data'!F272:G272="B",'6. Class A Consumption Data'!F270:G270)) -> 0 | E114: =SUM(IF('6. Class A Consumption Data'!H272:I272="B",'6. Class A Consumption Data'!H270:I270)) -> 0 | F114: =SUM(IF('6. Class A Consumption Data'!J272:K272="B",'6. Class A Consumption Data'!J270:K270)) -> 0 | G114: =SUM(IF('6. Class A Consumption Data'!L272:M272="B",'6. Class A Consumption Data'!L270:M270)) -> 0 | H114: =SUM(IF('6. Class A Consumption Data'!N272:O272="B",'6. Class A Consumption Data'!N270:O270)) -> 0 | I114: 0 | J114: 0 | K114: 0
A115: Customer 82 | C115: 0 | D115: =SUM(IF('6. Class A Consumption Data'!F275:G275="B",'6. Class A Consumption Data'!F273:G273)) -> 0 | E115: =SUM(IF('6. Class A Consumption Data'!H275:I275="B",'6. Class A Consumption Data'!H273:I273)) -> 0 | F115: =SUM(IF('6. Class A Consumption Data'!J275:K275="B",'6. Class A Consumption Data'!J273:K273)) -> 0 | G115: =SUM(IF('6. Class A Consumption Data'!L275:M275="B",'6. Class A Consumption Data'!L273:M273)) -> 0 | H115: =SUM(IF('6. Class A Consumption Data'!N275:O275="B",'6. Class A Consumption Data'!N273:O273)) -> 0 | I115: 0 | J115: 0 | K115: 0
A116: Customer 83 | C116: 0 | D116: =SUM(IF('6. Class A Consumption Data'!F278:G278="B",'6. Class A Consumption Data'!F276:G276)) -> 0 | E116: =SUM(IF('6. Class A Consumption Data'!H278:I278="B",'6. Class A Consumption Data'!H276:I276)) -> 0 | F116: =SUM(IF('6. Class A Consumption Data'!J278:K278="B",'6. Class A Consumption Data'!J276:K276)) -> 0 | G116: =SUM(IF('6. Class A Consumption Data'!L278:M278="B",'6. Class A Consumption Data'!L276:M276)) -> 0 | H116: =SUM(IF('6. Class A Consumption Data'!N278:O278="B",'6. Class A Consumption Data'!N276:O276)) -> 0 | I116: 0 | J116: 0 | K116: 0
A117: Customer 84 | C117: 0 | D117: =SUM(IF('6. Class A Consumption Data'!F281:G281="B",'6. Class A Consumption Data'!F279:G279)) -> 0 | E117: =SUM(IF('6. Class A Consumption Data'!H281:I281="B",'6. Class A Consumption Data'!H279:I279)) -> 0 | F117: =SUM(IF('6. Class A Consumption Data'!J281:K281="B",'6. Class A Consumption Data'!J279:K279)) -> 0 | G117: =SUM(IF('6. Class A Consumption Data'!L281:M281="B",'6. Class A Consumption Data'!L279:M279)) -> 0 | H117: =SUM(IF('6. Class A Consumption Data'!N281:O281="B",'6. Class A Consumption Data'!N279:O279)) -> 0 | I117: 0 | J117: 0 | K117: 0
A118: Customer 85 | C118: 0 | D118: =SUM(IF('6. Class A Consumption Data'!F284:G284="B",'6. Class A Consumption Data'!F282:G282)) -> 0 | E118: =SUM(IF('6. Class A Consumption Data'!H284:I284="B",'6. Class A Consumption Data'!H282:I282)) -> 0 | F118: =SUM(IF('6. Class A Consumption Data'!J284:K284="B",'6. Class A Consumption Data'!J282:K282)) -> 0 | G118: =SUM(IF('6. Class A Consumption Data'!L284:M284="B",'6. Class A Consumption Data'!L282:M282)) -> 0 | H118: =SUM(IF('6. Class A Consumption Data'!N284:O284="B",'6. Class A Consumption Data'!N282:O282)) -> 0 | I118: 0 | J118: 0 | K118: 0
A119: Customer 86 | C119: 0 | D119: =SUM(IF('6. Class A Consumption Data'!F287:G287="B",'6. Class A Consumption Data'!F285:G285)) -> 0 | E119: =SUM(IF('6. Class A Consumption Data'!H287:I287="B",'6. Class A Consumption Data'!H285:I285)) -> 0 | F119: =SUM(IF('6. Class A Consumption Data'!J287:K287="B",'6. Class A Consumption Data'!J285:K285)) -> 0 | G119: =SUM(IF('6. Class A Consumption Data'!L287:M287="B",'6. Class A Consumption Data'!L285:M285)) -> 0 | H119: =SUM(IF('6. Class A Consumption Data'!N287:O287="B",'6. Class A Consumption Data'!N285:O285)) -> 0 | I119: 0 | J119: 0 | K119: 0
A120: Customer 87 | C120: 0 | D120: =SUM(IF('6. Class A Consumption Data'!F290:G290="B",'6. Class A Consumption Data'!F288:G288)) -> 0 | E120: =SUM(IF('6. Class A Consumption Data'!H290:I290="B",'6. Class A Consumption Data'!H288:I288)) -> 0 | F120: =SUM(IF('6. Class A Consumption Data'!J290:K290="B",'6. Class A Consumption Data'!J288:K288)) -> 0 | G120: =SUM(IF('6. Class A Consumption Data'!L290:M290="B",'6. Class A Consumption Data'!L288:M288)) -> 0 | H120: =SUM(IF('6. Class A Consumption Data'!N290:O290="B",'6. Class A Consumption Data'!N288:O288)) -> 0 | I120: 0 | J120: 0 | K120: 0
A121: Customer 88 | C121: 0 | D121: =SUM(IF('6. Class A Consumption Data'!F293:G293="B",'6. Class A Consumption Data'!F291:G291)) -> 0 | E121: =SUM(IF('6. Class A Consumption Data'!H293:I293="B",'6. Class A Consumption Data'!H291:I291)) -> 0 | F121: =SUM(IF('6. Class A Consumption Data'!J293:K293="B",'6. Class A Consumption Data'!J291:K291)) -> 0 | G121: =SUM(IF('6. Class A Consumption Data'!L293:M293="B",'6. Class A Consumption Data'!L291:M291)) -> 0 | H121: =SUM(IF('6. Class A Consumption Data'!N293:O293="B",'6. Class A Consumption Data'!N291:O291)) -> 0 | I121: 0 | J121: 0 | K121: 0
A122: Customer 89 | C122: 0 | D122: =SUM(IF('6. Class A Consumption Data'!F296:G296="B",'6. Class A Consumption Data'!F294:G294)) -> 0 | E122: =SUM(IF('6. Class A Consumption Data'!H296:I296="B",'6. Class A Consumption Data'!H294:I294)) -> 0 | F122: =SUM(IF('6. Class A Consumption Data'!J296:K296="B",'6. Class A Consumption Data'!J294:K294)) -> 0 | G122: =SUM(IF('6. Class A Consumption Data'!L296:M296="B",'6. Class A Consumption Data'!L294:M294)) -> 0 | H122: =SUM(IF('6. Class A Consumption Data'!N296:O296="B",'6. Class A Consumption Data'!N294:O294)) -> 0 | I122: 0 | J122: 0 | K122: 0
A123: Customer 90 | C123: 0 | D123: =SUM(IF('6. Class A Consumption Data'!F299:G299="B",'6. Class A Consumption Data'!F297:G297)) -> 0 | E123: =SUM(IF('6. Class A Consumption Data'!H299:I299="B",'6. Class A Consumption Data'!H297:I297)) -> 0 | F123: =SUM(IF('6. Class A Consumption Data'!J299:K299="B",'6. Class A Consumption Data'!J297:K297)) -> 0 | G123: =SUM(IF('6. Class A Consumption Data'!L299:M299="B",'6. Class A Consumption Data'!L297:M297)) -> 0 | H123: =SUM(IF('6. Class A Consumption Data'!N299:O299="B",'6. Class A Consumption Data'!N297:O297)) -> 0 | I123: 0 | J123: 0 | K123: 0
A124: Customer 91 | C124: 0 | D124: =SUM(IF('6. Class A Consumption Data'!F302:G302="B",'6. Class A Consumption Data'!F300:G300)) -> 0 | E124: =SUM(IF('6. Class A Consumption Data'!H302:I302="B",'6. Class A Consumption Data'!H300:I300)) -> 0 | F124: =SUM(IF('6. Class A Consumption Data'!J302:K302="B",'6. Class A Consumption Data'!J300:K300)) -> 0 | G124: =SUM(IF('6. Class A Consumption Data'!L302:M302="B",'6. Class A Consumption Data'!L300:M300)) -> 0 | H124: =SUM(IF('6. Class A Consumption Data'!N302:O302="B",'6. Class A Consumption Data'!N300:O300)) -> 0 | I124: 0 | J124: 0 | K124: 0
A125: Customer 92 | C125: 0 | D125: =SUM(IF('6. Class A Consumption Data'!F305:G305="B",'6. Class A Consumption Data'!F303:G303)) -> 0 | E125: =SUM(IF('6. Class A Consumption Data'!H305:I305="B",'6. Class A Consumption Data'!H303:I303)) -> 0 | F125: =SUM(IF('6. Class A Consumption Data'!J305:K305="B",'6. Class A Consumption Data'!J303:K303)) -> 0 | G125: =SUM(IF('6. Class A Consumption Data'!L305:M305="B",'6. Class A Consumption Data'!L303:M303)) -> 0 | H125: =SUM(IF('6. Class A Consumption Data'!N305:O305="B",'6. Class A Consumption Data'!N303:O303)) -> 0 | I125: 0 | J125: 0 | K125: 0
A126: Customer 93 | C126: 0 | D126: =SUM(IF('6. Class A Consumption Data'!F308:G308="B",'6. Class A Consumption Data'!F306:G306)) -> 0 | E126: =SUM(IF('6. Class A Consumption Data'!H308:I308="B",'6. Class A Consumption Data'!H306:I306)) -> 0 | F126: =SUM(IF('6. Class A Consumption Data'!J308:K308="B",'6. Class A Consumption Data'!J306:K306)) -> 0 | G126: =SUM(IF('6. Class A Consumption Data'!L308:M308="B",'6. Class A Consumption Data'!L306:M306)) -> 0 | H126: =SUM(IF('6. Class A Consumption Data'!N308:O308="B",'6. Class A Consumption Data'!N306:O306)) -> 0 | I126: 0 | J126: 0 | K126: 0
A127: Customer 94 | C127: 0 | D127: =SUM(IF('6. Class A Consumption Data'!F311:G311="B",'6. Class A Consumption Data'!F309:G309)) -> 0 | E127: =SUM(IF('6. Class A Consumption Data'!H311:I311="B",'6. Class A Consumption Data'!H309:I309)) -> 0 | F127: =SUM(IF('6. Class A Consumption Data'!J311:K311="B",'6. Class A Consumption Data'!J309:K309)) -> 0 | G127: =SUM(IF('6. Class A Consumption Data'!L311:M311="B",'6. Class A Consumption Data'!L309:M309)) -> 0 | H127: =SUM(IF('6. Class A Consumption Data'!N311:O311="B",'6. Class A Consumption Data'!N309:O309)) -> 0 | I127: 0 | J127: 0 | K127: 0
A128: Customer 95 | C128: 0 | D128: =SUM(IF('6. Class A Consumption Data'!F314:G314="B",'6. Class A Consumption Data'!F312:G312)) -> 0 | E128: =SUM(IF('6. Class A Consumption Data'!H314:I314="B",'6. Class A Consumption Data'!H312:I312)) -> 0 | F128: =SUM(IF('6. Class A Consumption Data'!J314:K314="B",'6. Class A Consumption Data'!J312:K312)) -> 0 | G128: =SUM(IF('6. Class A Consumption Data'!L314:M314="B",'6. Class A Consumption Data'!L312:M312)) -> 0 | H128: =SUM(IF('6. Class A Consumption Data'!N314:O314="B",'6. Class A Consumption Data'!N312:O312)) -> 0 | I128: 0 | J128: 0 | K128: 0
A129: Customer 96 | C129: 0 | D129: =SUM(IF('6. Class A Consumption Data'!F317:G317="B",'6. Class A Consumption Data'!F315:G315)) -> 0 | E129: =SUM(IF('6. Class A Consumption Data'!H317:I317="B",'6. Class A Consumption Data'!H315:I315)) -> 0 | F129: =SUM(IF('6. Class A Consumption Data'!J317:K317="B",'6. Class A Consumption Data'!J315:K315)) -> 0 | G129: =SUM(IF('6. Class A Consumption Data'!L317:M317="B",'6. Class A Consumption Data'!L315:M315)) -> 0 | H129: =SUM(IF('6. Class A Consumption Data'!N317:O317="B",'6. Class A Consumption Data'!N315:O315)) -> 0 | I129: 0 | J129: 0 | K129: 0
A130: Customer 97 | C130: 0 | D130: =SUM(IF('6. Class A Consumption Data'!F320:G320="B",'6. Class A Consumption Data'!F318:G318)) -> 0 | E130: =SUM(IF('6. Class A Consumption Data'!H320:I320="B",'6. Class A Consumption Data'!H318:I318)) -> 0 | F130: =SUM(IF('6. Class A Consumption Data'!J320:K320="B",'6. Class A Consumption Data'!J318:K318)) -> 0 | G130: =SUM(IF('6. Class A Consumption Data'!L320:M320="B",'6. Class A Consumption Data'!L318:M318)) -> 0 | H130: =SUM(IF('6. Class A Consumption Data'!N320:O320="B",'6. Class A Consumption Data'!N318:O318)) -> 0 | I130: 0 | J130: 0 | K130: 0
A131: Customer 98 | C131: 0 | D131: =SUM(IF('6. Class A Consumption Data'!F323:G323="B",'6. Class A Consumption Data'!F321:G321)) -> 0 | E131: =SUM(IF('6. Class A Consumption Data'!H323:I323="B",'6. Class A Consumption Data'!H321:I321)) -> 0 | F131: =SUM(IF('6. Class A Consumption Data'!J323:K323="B",'6. Class A Consumption Data'!J321:K321)) -> 0 | G131: =SUM(IF('6. Class A Consumption Data'!L323:M323="B",'6. Class A Consumption Data'!L321:M321)) -> 0 | H131: =SUM(IF('6. Class A Consumption Data'!N323:O323="B",'6. Class A Consumption Data'!N321:O321)) -> 0 | I131: 0 | J131: 0 | K131: 0
A132: Customer 99 | C132: 0 | D132: =SUM(IF('6. Class A Consumption Data'!F326:G326="B",'6. Class A Consumption Data'!F324:G324)) -> 0 | E132: =SUM(IF('6. Class A Consumption Data'!H326:I326="B",'6. Class A Consumption Data'!H324:I324)) -> 0 | F132: =SUM(IF('6. Class A Consumption Data'!J326:K326="B",'6. Class A Consumption Data'!J324:K324)) -> 0 | G132: =SUM(IF('6. Class A Consumption Data'!L326:M326="B",'6. Class A Consumption Data'!L324:M324)) -> 0 | H132: =SUM(IF('6. Class A Consumption Data'!N326:O326="B",'6. Class A Consumption Data'!N324:O324)) -> 0 | I132: 0 | J132: 0 | K132: 0
A133: Customer 100 | C133: 0 | D133: =SUM(IF('6. Class A Consumption Data'!F329:G329="B",'6. Class A Consumption Data'!F327:G327)) -> 0 | E133: =SUM(IF('6. Class A Consumption Data'!H329:I329="B",'6. Class A Consumption Data'!H327:I327)) -> 0 | F133: =SUM(IF('6. Class A Consumption Data'!J329:K329="B",'6. Class A Consumption Data'!J327:K327)) -> 0 | G133: =SUM(IF('6. Class A Consumption Data'!L329:M329="B",'6. Class A Consumption Data'!L327:M327)) -> 0 | H133: =SUM(IF('6. Class A Consumption Data'!N329:O329="B",'6. Class A Consumption Data'!N327:O327)) -> 0 | I133: 0 | J133: 0 | K133: 0
A134: Customer 101 | C134: 0 | D134: =SUM(IF('6. Class A Consumption Data'!F332:G332="B",'6. Class A Consumption Data'!F330:G330)) -> 0 | E134: =SUM(IF('6. Class A Consumption Data'!H332:I332="B",'6. Class A Consumption Data'!H330:I330)) -> 0 | F134: =SUM(IF('6. Class A Consumption Data'!J332:K332="B",'6. Class A Consumption Data'!J330:K330)) -> 0 | G134: =SUM(IF('6. Class A Consumption Data'!L332:M332="B",'6. Class A Consumption Data'!L330:M330)) -> 0 | H134: =SUM(IF('6. Class A Consumption Data'!N332:O332="B",'6. Class A Consumption Data'!N330:O330)) -> 0 | I134: 0 | J134: 0 | K134: 0
A135: Customer 102 | C135: 0 | D135: =SUM(IF('6. Class A Consumption Data'!F335:G335="B",'6. Class A Consumption Data'!F333:G333)) -> 0 | E135: =SUM(IF('6. Class A Consumption Data'!H335:I335="B",'6. Class A Consumption Data'!H333:I333)) -> 0 | F135: =SUM(IF('6. Class A Consumption Data'!J335:K335="B",'6. Class A Consumption Data'!J333:K333)) -> 0 | G135: =SUM(IF('6. Class A Consumption Data'!L335:M335="B",'6. Class A Consumption Data'!L333:M333)) -> 0 | H135: =SUM(IF('6. Class A Consumption Data'!N335:O335="B",'6. Class A Consumption Data'!N333:O333)) -> 0 | I135: 0 | J135: 0 | K135: 0
A136: Customer 103 | C136: 0 | D136: =SUM(IF('6. Class A Consumption Data'!F338:G338="B",'6. Class A Consumption Data'!F336:G336)) -> 0 | E136: =SUM(IF('6. Class A Consumption Data'!H338:I338="B",'6. Class A Consumption Data'!H336:I336)) -> 0 | F136: =SUM(IF('6. Class A Consumption Data'!J338:K338="B",'6. Class A Consumption Data'!J336:K336)) -> 0 | G136: =SUM(IF('6. Class A Consumption Data'!L338:M338="B",'6. Class A Consumption Data'!L336:M336)) -> 0 | H136: =SUM(IF('6. Class A Consumption Data'!N338:O338="B",'6. Class A Consumption Data'!N336:O336)) -> 0 | I136: 0 | J136: 0 | K136: 0
A137: Customer 104 | C137: 0 | D137: =SUM(IF('6. Class A Consumption Data'!F341:G341="B",'6. Class A Consumption Data'!F339:G339)) -> 0 | E137: =SUM(IF('6. Class A Consumption Data'!H341:I341="B",'6. Class A Consumption Data'!H339:I339)) -> 0 | F137: =SUM(IF('6. Class A Consumption Data'!J341:K341="B",'6. Class A Consumption Data'!J339:K339)) -> 0 | G137: =SUM(IF('6. Class A Consumption Data'!L341:M341="B",'6. Class A Consumption Data'!L339:M339)) -> 0 | H137: =SUM(IF('6. Class A Consumption Data'!N341:O341="B",'6. Class A Consumption Data'!N339:O339)) -> 0 | I137: 0 | J137: 0 | K137: 0
A138: Customer 105 | C138: 0 | D138: =SUM(IF('6. Class A Consumption Data'!F344:G344="B",'6. Class A Consumption Data'!F342:G342)) -> 0 | E138: =SUM(IF('6. Class A Consumption Data'!H344:I344="B",'6. Class A Consumption Data'!H342:I342)) -> 0 | F138: =SUM(IF('6. Class A Consumption Data'!J344:K344="B",'6. Class A Consumption Data'!J342:K342)) -> 0 | G138: =SUM(IF('6. Class A Consumption Data'!L344:M344="B",'6. Class A Consumption Data'!L342:M342)) -> 0 | H138: =SUM(IF('6. Class A Consumption Data'!N344:O344="B",'6. Class A Consumption Data'!N342:O342)) -> 0 | I138: 0 | J138: 0 | K138: 0
A139: Customer 106 | C139: 0 | D139: =SUM(IF('6. Class A Consumption Data'!F347:G347="B",'6. Class A Consumption Data'!F345:G345)) -> 0 | E139: =SUM(IF('6. Class A Consumption Data'!H347:I347="B",'6. Class A Consumption Data'!H345:I345)) -> 0 | F139: =SUM(IF('6. Class A Consumption Data'!J347:K347="B",'6. Class A Consumption Data'!J345:K345)) -> 0 | G139: =SUM(IF('6. Class A Consumption Data'!L347:M347="B",'6. Class A Consumption Data'!L345:M345)) -> 0 | H139: =SUM(IF('6. Class A Consumption Data'!N347:O347="B",'6. Class A Consumption Data'!N345:O345)) -> 0 | I139: 0 | J139: 0 | K139: 0
A140: Customer 107 | C140: 0 | D140: =SUM(IF('6. Class A Consumption Data'!F350:G350="B",'6. Class A Consumption Data'!F348:G348)) -> 0 | E140: =SUM(IF('6. Class A Consumption Data'!H350:I350="B",'6. Class A Consumption Data'!H348:I348)) -> 0 | F140: =SUM(IF('6. Class A Consumption Data'!J350:K350="B",'6. Class A Consumption Data'!J348:K348)) -> 0 | G140: =SUM(IF('6. Class A Consumption Data'!L350:M350="B",'6. Class A Consumption Data'!L348:M348)) -> 0 | H140: =SUM(IF('6. Class A Consumption Data'!N350:O350="B",'6. Class A Consumption Data'!N348:O348)) -> 0 | I140: 0 | J140: 0 | K140: 0
A141: Customer 108 | C141: 0 | D141: =SUM(IF('6. Class A Consumption Data'!F353:G353="B",'6. Class A Consumption Data'!F351:G351)) -> 0 | E141: =SUM(IF('6. Class A Consumption Data'!H353:I353="B",'6. Class A Consumption Data'!H351:I351)) -> 0 | F141: =SUM(IF('6. Class A Consumption Data'!J353:K353="B",'6. Class A Consumption Data'!J351:K351)) -> 0 | G141: =SUM(IF('6. Class A Consumption Data'!L353:M353="B",'6. Class A Consumption Data'!L351:M351)) -> 0 | H141: =SUM(IF('6. Class A Consumption Data'!N353:O353="B",'6. Class A Consumption Data'!N351:O351)) -> 0 | I141: 0 | J141: 0 | K141: 0
A142: Customer 109 | C142: 0 | D142: =SUM(IF('6. Class A Consumption Data'!F356:G356="B",'6. Class A Consumption Data'!F354:G354)) -> 0 | E142: =SUM(IF('6. Class A Consumption Data'!H356:I356="B",'6. Class A Consumption Data'!H354:I354)) -> 0 | F142: =SUM(IF('6. Class A Consumption Data'!J356:K356="B",'6. Class A Consumption Data'!J354:K354)) -> 0 | G142: =SUM(IF('6. Class A Consumption Data'!L356:M356="B",'6. Class A Consumption Data'!L354:M354)) -> 0 | H142: =SUM(IF('6. Class A Consumption Data'!N356:O356="B",'6. Class A Consumption Data'!N354:O354)) -> 0 | I142: 0 | J142: 0 | K142: 0
A143: Customer 110 | C143: 0 | D143: =SUM(IF('6. Class A Consumption Data'!F359:G359="B",'6. Class A Consumption Data'!F357:G357)) -> 0 | E143: =SUM(IF('6. Class A Consumption Data'!H359:I359="B",'6. Class A Consumption Data'!H357:I357)) -> 0 | F143: =SUM(IF('6. Class A Consumption Data'!J359:K359="B",'6. Class A Consumption Data'!J357:K357)) -> 0 | G143: =SUM(IF('6. Class A Consumption Data'!L359:M359="B",'6. Class A Consumption Data'!L357:M357)) -> 0 | H143: =SUM(IF('6. Class A Consumption Data'!N359:O359="B",'6. Class A Consumption Data'!N357:O357)) -> 0 | I143: 0 | J143: 0 | K143: 0
A144: Customer 111 | C144: 0 | D144: =SUM(IF('6. Class A Consumption Data'!F362:G362="B",'6. Class A Consumption Data'!F360:G360)) -> 0 | E144: =SUM(IF('6. Class A Consumption Data'!H362:I362="B",'6. Class A Consumption Data'!H360:I360)) -> 0 | F144: =SUM(IF('6. Class A Consumption Data'!J362:K362="B",'6. Class A Consumption Data'!J360:K360)) -> 0 | G144: =SUM(IF('6. Class A Consumption Data'!L362:M362="B",'6. Class A Consumption Data'!L360:M360)) -> 0 | H144: =SUM(IF('6. Class A Consumption Data'!N362:O362="B",'6. Class A Consumption Data'!N360:O360)) -> 0 | I144: 0 | J144: 0 | K144: 0
A145: Customer 112 | C145: 0 | D145: =SUM(IF('6. Class A Consumption Data'!F365:G365="B",'6. Class A Consumption Data'!F363:G363)) -> 0 | E145: =SUM(IF('6. Class A Consumption Data'!H365:I365="B",'6. Class A Consumption Data'!H363:I363)) -> 0 | F145: =SUM(IF('6. Class A Consumption Data'!J365:K365="B",'6. Class A Consumption Data'!J363:K363)) -> 0 | G145: =SUM(IF('6. Class A Consumption Data'!L365:M365="B",'6. Class A Consumption Data'!L363:M363)) -> 0 | H145: =SUM(IF('6. Class A Consumption Data'!N365:O365="B",'6. Class A Consumption Data'!N363:O363)) -> 0 | I145: 0 | J145: 0 | K145: 0
A146: Customer 113 | C146: 0 | D146: =SUM(IF('6. Class A Consumption Data'!F368:G368="B",'6. Class A Consumption Data'!F366:G366)) -> 0 | E146: =SUM(IF('6. Class A Consumption Data'!H368:I368="B",'6. Class A Consumption Data'!H366:I366)) -> 0 | F146: =SUM(IF('6. Class A Consumption Data'!J368:K368="B",'6. Class A Consumption Data'!J366:K366)) -> 0 | G146: =SUM(IF('6. Class A Consumption Data'!L368:M368="B",'6. Class A Consumption Data'!L366:M366)) -> 0 | H146: =SUM(IF('6. Class A Consumption Data'!N368:O368="B",'6. Class A Consumption Data'!N366:O366)) -> 0 | I146: 0 | J146: 0 | K146: 0
A147: Customer 114 | C147: 0 | D147: =SUM(IF('6. Class A Consumption Data'!F371:G371="B",'6. Class A Consumption Data'!F369:G369)) -> 0 | E147: =SUM(IF('6. Class A Consumption Data'!H371:I371="B",'6. Class A Consumption Data'!H369:I369)) -> 0 | F147: =SUM(IF('6. Class A Consumption Data'!J371:K371="B",'6. Class A Consumption Data'!J369:K369)) -> 0 | G147: =SUM(IF('6. Class A Consumption Data'!L371:M371="B",'6. Class A Consumption Data'!L369:M369)) -> 0 | H147: =SUM(IF('6. Class A Consumption Data'!N371:O371="B",'6. Class A Consumption Data'!N369:O369)) -> 0 | I147: 0 | J147: 0 | K147: 0
A148: Customer 115 | C148: 0 | D148: =SUM(IF('6. Class A Consumption Data'!F374:G374="B",'6. Class A Consumption Data'!F372:G372)) -> 0 | E148: =SUM(IF('6. Class A Consumption Data'!H374:I374="B",'6. Class A Consumption Data'!H372:I372)) -> 0 | F148: =SUM(IF('6. Class A Consumption Data'!J374:K374="B",'6. Class A Consumption Data'!J372:K372)) -> 0 | G148: =SUM(IF('6. Class A Consumption Data'!L374:M374="B",'6. Class A Consumption Data'!L372:M372)) -> 0 | H148: =SUM(IF('6. Class A Consumption Data'!N374:O374="B",'6. Class A Consumption Data'!N372:O372)) -> 0 | I148: 0 | J148: 0 | K148: 0
A149: Customer 116 | C149: 0 | D149: =SUM(IF('6. Class A Consumption Data'!F377:G377="B",'6. Class A Consumption Data'!F375:G375)) -> 0 | E149: =SUM(IF('6. Class A Consumption Data'!H377:I377="B",'6. Class A Consumption Data'!H375:I375)) -> 0 | F149: =SUM(IF('6. Class A Consumption Data'!J377:K377="B",'6. Class A Consumption Data'!J375:K375)) -> 0 | G149: =SUM(IF('6. Class A Consumption Data'!L377:M377="B",'6. Class A Consumption Data'!L375:M375)) -> 0 | H149: =SUM(IF('6. Class A Consumption Data'!N377:O377="B",'6. Class A Consumption Data'!N375:O375)) -> 0 | I149: 0 | J149: 0 | K149: 0
A150: Customer 117 | C150: 0 | D150: =SUM(IF('6. Class A Consumption Data'!F380:G380="B",'6. Class A Consumption Data'!F378:G378)) -> 0 | E150: =SUM(IF('6. Class A Consumption Data'!H380:I380="B",'6. Class A Consumption Data'!H378:I378)) -> 0 | F150: =SUM(IF('6. Class A Consumption Data'!J380:K380="B",'6. Class A Consumption Data'!J378:K378)) -> 0 | G150: =SUM(IF('6. Class A Consumption Data'!L380:M380="B",'6. Class A Consumption Data'!L378:M378)) -> 0 | H150: =SUM(IF('6. Class A Consumption Data'!N380:O380="B",'6. Class A Consumption Data'!N378:O378)) -> 0 | I150: 0 | J150: 0 | K150: 0
A151: Customer 118 | C151: 0 | D151: =SUM(IF('6. Class A Consumption Data'!F383:G383="B",'6. Class A Consumption Data'!F381:G381)) -> 0 | E151: =SUM(IF('6. Class A Consumption Data'!H383:I383="B",'6. Class A Consumption Data'!H381:I381)) -> 0 | F151: =SUM(IF('6. Class A Consumption Data'!J383:K383="B",'6. Class A Consumption Data'!J381:K381)) -> 0 | G151: =SUM(IF('6. Class A Consumption Data'!L383:M383="B",'6. Class A Consumption Data'!L381:M381)) -> 0 | H151: =SUM(IF('6. Class A Consumption Data'!N383:O383="B",'6. Class A Consumption Data'!N381:O381)) -> 0 | I151: 0 | J151: 0 | K151: 0
A152: Customer 119 | C152: 0 | D152: =SUM(IF('6. Class A Consumption Data'!F386:G386="B",'6. Class A Consumption Data'!F384:G384)) -> 0 | E152: =SUM(IF('6. Class A Consumption Data'!H386:I386="B",'6. Class A Consumption Data'!H384:I384)) -> 0 | F152: =SUM(IF('6. Class A Consumption Data'!J386:K386="B",'6. Class A Consumption Data'!J384:K384)) -> 0 | G152: =SUM(IF('6. Class A Consumption Data'!L386:M386="B",'6. Class A Consumption Data'!L384:M384)) -> 0 | H152: =SUM(IF('6. Class A Consumption Data'!N386:O386="B",'6. Class A Consumption Data'!N384:O384)) -> 0 | I152: 0 | J152: 0 | K152: 0
A153: Customer 120 | C153: 0 | D153: =SUM(IF('6. Class A Consumption Data'!F389:G389="B",'6. Class A Consumption Data'!F387:G387)) -> 0 | E153: =SUM(IF('6. Class A Consumption Data'!H389:I389="B",'6. Class A Consumption Data'!H387:I387)) -> 0 | F153: =SUM(IF('6. Class A Consumption Data'!J389:K389="B",'6. Class A Consumption Data'!J387:K387)) -> 0 | G153: =SUM(IF('6. Class A Consumption Data'!L389:M389="B",'6. Class A Consumption Data'!L387:M387)) -> 0 | H153: =SUM(IF('6. Class A Consumption Data'!N389:O389="B",'6. Class A Consumption Data'!N387:O387)) -> 0 | I153: 0 | J153: 0 | K153: 0
A154: Customer 121 | C154: 0 | D154: =SUM(IF('6. Class A Consumption Data'!F392:G392="B",'6. Class A Consumption Data'!F390:G390)) -> 0 | E154: =SUM(IF('6. Class A Consumption Data'!H392:I392="B",'6. Class A Consumption Data'!H390:I390)) -> 0 | F154: =SUM(IF('6. Class A Consumption Data'!J392:K392="B",'6. Class A Consumption Data'!J390:K390)) -> 0 | G154: =SUM(IF('6. Class A Consumption Data'!L392:M392="B",'6. Class A Consumption Data'!L390:M390)) -> 0 | H154: =SUM(IF('6. Class A Consumption Data'!N392:O392="B",'6. Class A Consumption Data'!N390:O390)) -> 0 | I154: 0 | J154: 0 | K154: 0
A155: Customer 122 | C155: 0 | D155: =SUM(IF('6. Class A Consumption Data'!F395:G395="B",'6. Class A Consumption Data'!F393:G393)) -> 0 | E155: =SUM(IF('6. Class A Consumption Data'!H395:I395="B",'6. Class A Consumption Data'!H393:I393)) -> 0 | F155: =SUM(IF('6. Class A Consumption Data'!J395:K395="B",'6. Class A Consumption Data'!J393:K393)) -> 0 | G155: =SUM(IF('6. Class A Consumption Data'!L395:M395="B",'6. Class A Consumption Data'!L393:M393)) -> 0 | H155: =SUM(IF('6. Class A Consumption Data'!N395:O395="B",'6. Class A Consumption Data'!N393:O393)) -> 0 | I155: 0 | J155: 0 | K155: 0
A156: Customer 123 | C156: 0 | D156: =SUM(IF('6. Class A Consumption Data'!F398:G398="B",'6. Class A Consumption Data'!F396:G396)) -> 0 | E156: =SUM(IF('6. Class A Consumption Data'!H398:I398="B",'6. Class A Consumption Data'!H396:I396)) -> 0 | F156: =SUM(IF('6. Class A Consumption Data'!J398:K398="B",'6. Class A Consumption Data'!J396:K396)) -> 0 | G156: =SUM(IF('6. Class A Consumption Data'!L398:M398="B",'6. Class A Consumption Data'!L396:M396)) -> 0 | H156: =SUM(IF('6. Class A Consumption Data'!N398:O398="B",'6. Class A Consumption Data'!N396:O396)) -> 0 | I156: 0 | J156: 0 | K156: 0
A157: Customer 124 | C157: 0 | D157: =SUM(IF('6. Class A Consumption Data'!F401:G401="B",'6. Class A Consumption Data'!F399:G399)) -> 0 | E157: =SUM(IF('6. Class A Consumption Data'!H401:I401="B",'6. Class A Consumption Data'!H399:I399)) -> 0 | F157: =SUM(IF('6. Class A Consumption Data'!J401:K401="B",'6. Class A Consumption Data'!J399:K399)) -> 0 | G157: =SUM(IF('6. Class A Consumption Data'!L401:M401="B",'6. Class A Consumption Data'!L399:M399)) -> 0 | H157: =SUM(IF('6. Class A Consumption Data'!N401:O401="B",'6. Class A Consumption Data'!N399:O399)) -> 0 | I157: 0 | J157: 0 | K157: 0
A158: Customer 125 | C158: 0 | D158: =SUM(IF('6. Class A Consumption Data'!F404:G404="B",'6. Class A Consumption Data'!F402:G402)) -> 0 | E158: =SUM(IF('6. Class A Consumption Data'!H404:I404="B",'6. Class A Consumption Data'!H402:I402)) -> 0 | F158: =SUM(IF('6. Class A Consumption Data'!J404:K404="B",'6. Class A Consumption Data'!J402:K402)) -> 0 | G158: =SUM(IF('6. Class A Consumption Data'!L404:M404="B",'6. Class A Consumption Data'!L402:M402)) -> 0 | H158: =SUM(IF('6. Class A Consumption Data'!N404:O404="B",'6. Class A Consumption Data'!N402:O402)) -> 0 | I158: 0 | J158: 0 | K158: 0
A159: Customer 126 | C159: 0 | D159: =SUM(IF('6. Class A Consumption Data'!F407:G407="B",'6. Class A Consumption Data'!F405:G405)) -> 0 | E159: =SUM(IF('6. Class A Consumption Data'!H407:I407="B",'6. Class A Consumption Data'!H405:I405)) -> 0 | F159: =SUM(IF('6. Class A Consumption Data'!J407:K407="B",'6. Class A Consumption Data'!J405:K405)) -> 0 | G159: =SUM(IF('6. Class A Consumption Data'!L407:M407="B",'6. Class A Consumption Data'!L405:M405)) -> 0 | H159: =SUM(IF('6. Class A Consumption Data'!N407:O407="B",'6. Class A Consumption Data'!N405:O405)) -> 0 | I159: 0 | J159: 0 | K159: 0
A160: Customer 127 | C160: 0 | D160: =SUM(IF('6. Class A Consumption Data'!F410:G410="B",'6. Class A Consumption Data'!F408:G408)) -> 0 | E160: =SUM(IF('6. Class A Consumption Data'!H410:I410="B",'6. Class A Consumption Data'!H408:I408)) -> 0 | F160: =SUM(IF('6. Class A Consumption Data'!J410:K410="B",'6. Class A Consumption Data'!J408:K408)) -> 0 | G160: =SUM(IF('6. Class A Consumption Data'!L410:M410="B",'6. Class A Consumption Data'!L408:M408)) -> 0 | H160: =SUM(IF('6. Class A Consumption Data'!N410:O410="B",'6. Class A Consumption Data'!N408:O408)) -> 0 | I160: 0 | J160: 0 | K160: 0
A161: Customer 128 | C161: 0 | D161: =SUM(IF('6. Class A Consumption Data'!F413:G413="B",'6. Class A Consumption Data'!F411:G411)) -> 0 | E161: =SUM(IF('6. Class A Consumption Data'!H413:I413="B",'6. Class A Consumption Data'!H411:I411)) -> 0 | F161: =SUM(IF('6. Class A Consumption Data'!J413:K413="B",'6. Class A Consumption Data'!J411:K411)) -> 0 | G161: =SUM(IF('6. Class A Consumption Data'!L413:M413="B",'6. Class A Consumption Data'!L411:M411)) -> 0 | H161: =SUM(IF('6. Class A Consumption Data'!N413:O413="B",'6. Class A Consumption Data'!N411:O411)) -> 0 | I161: 0 | J161: 0 | K161: 0
A162: Customer 129 | C162: 0 | D162: =SUM(IF('6. Class A Consumption Data'!F416:G416="B",'6. Class A Consumption Data'!F414:G414)) -> 0 | E162: =SUM(IF('6. Class A Consumption Data'!H416:I416="B",'6. Class A Consumption Data'!H414:I414)) -> 0 | F162: =SUM(IF('6. Class A Consumption Data'!J416:K416="B",'6. Class A Consumption Data'!J414:K414)) -> 0 | G162: =SUM(IF('6. Class A Consumption Data'!L416:M416="B",'6. Class A Consumption Data'!L414:M414)) -> 0 | H162: =SUM(IF('6. Class A Consumption Data'!N416:O416="B",'6. Class A Consumption Data'!N414:O414)) -> 0 | I162: 0 | J162: 0 | K162: 0
A163: Customer 130 | C163: 0 | D163: =SUM(IF('6. Class A Consumption Data'!F419:G419="B",'6. Class A Consumption Data'!F417:G417)) -> 0 | E163: =SUM(IF('6. Class A Consumption Data'!H419:I419="B",'6. Class A Consumption Data'!H417:I417)) -> 0 | F163: =SUM(IF('6. Class A Consumption Data'!J419:K419="B",'6. Class A Consumption Data'!J417:K417)) -> 0 | G163: =SUM(IF('6. Class A Consumption Data'!L419:M419="B",'6. Class A Consumption Data'!L417:M417)) -> 0 | H163: =SUM(IF('6. Class A Consumption Data'!N419:O419="B",'6. Class A Consumption Data'!N417:O417)) -> 0 | I163: =IFERROR(+C163/$C$184,0) -> 0 | J163: 0 | K163: 0
A164: Customer 131 | C164: 0 | D164: =SUM(IF('6. Class A Consumption Data'!F422:G422="B",'6. Class A Consumption Data'!F420:G420)) -> 0 | E164: =SUM(IF('6. Class A Consumption Data'!H422:I422="B",'6. Class A Consumption Data'!H420:I420)) -> 0 | F164: =SUM(IF('6. Class A Consumption Data'!J422:K422="B",'6. Class A Consumption Data'!J420:K420)) -> 0 | G164: =SUM(IF('6. Class A Consumption Data'!L422:M422="B",'6. Class A Consumption Data'!L420:M420)) -> 0 | H164: =SUM(IF('6. Class A Consumption Data'!N422:O422="B",'6. Class A Consumption Data'!N420:O420)) -> 0 | I164: 0 | J164: 0 | K164: 0
A165: Customer 132 | C165: 0 | D165: =SUM(IF('6. Class A Consumption Data'!F425:G425="B",'6. Class A Consumption Data'!F423:G423)) -> 0 | E165: =SUM(IF('6. Class A Consumption Data'!H425:I425="B",'6. Class A Consumption Data'!H423:I423)) -> 0 | F165: =SUM(IF('6. Class A Consumption Data'!J425:K425="B",'6. Class A Consumption Data'!J423:K423)) -> 0 | G165: =SUM(IF('6. Class A Consumption Data'!L425:M425="B",'6. Class A Consumption Data'!L423:M423)) -> 0 | H165: =SUM(IF('6. Class A Consumption Data'!N425:O425="B",'6. Class A Consumption Data'!N423:O423)) -> 0 | I165: 0 | J165: 0 | K165: 0
A166: Customer 133 | C166: =SUM(D166:G166) -> 0 | D166: =SUM(IF('6. Class A Consumption Data'!F428:G428="B",'6. Class A Consumption Data'!F426:G426)) -> 0 | E166: =SUM(IF('6. Class A Consumption Data'!H428:I428="B",'6. Class A Consumption Data'!H426:I426)) -> 0 | F166: =SUM(IF('6. Class A Consumption Data'!J428:K428="B",'6. Class A Consumption Data'!J426:K426)) -> 0 | G166: =SUM(IF('6. Class A Consumption Data'!L428:M428="B",'6. Class A Consumption Data'!L426:M426)) -> 0 | H166: =SUM(IF('6. Class A Consumption Data'!N428:O428="B",'6. Class A Consumption Data'!N426:O426)) -> 0 | I166: 0 | J166: =+I166*$C$28 -> 0 | K166: =+J166/12 -> 0
A167: Customer 134 | C167: 0 | D167: =SUM(IF('6. Class A Consumption Data'!F431:G431="B",'6. Class A Consumption Data'!F429:G429)) -> 0 | E167: =SUM(IF('6. Class A Consumption Data'!H431:I431="B",'6. Class A Consumption Data'!H429:I429)) -> 0 | F167: =SUM(IF('6. Class A Consumption Data'!J431:K431="B",'6. Class A Consumption Data'!J429:K429)) -> 0 | G167: =SUM(IF('6. Class A Consumption Data'!L431:M431="B",'6. Class A Consumption Data'!L429:M429)) -> 0 | H167: =SUM(IF('6. Class A Consumption Data'!N431:O431="B",'6. Class A Consumption Data'!N429:O429)) -> 0 | I167: 0 | J167: 0 | K167: 0
A168: Customer 135 | C168: 0 | D168: =SUM(IF('6. Class A Consumption Data'!F434:G434="B",'6. Class A Consumption Data'!F432:G432)) -> 0 | E168: =SUM(IF('6. Class A Consumption Data'!H434:I434="B",'6. Class A Consumption Data'!H432:I432)) -> 0 | F168: =SUM(IF('6. Class A Consumption Data'!J434:K434="B",'6. Class A Consumption Data'!J432:K432)) -> 0 | G168: =SUM(IF('6. Class A Consumption Data'!L434:M434="B",'6. Class A Consumption Data'!L432:M432)) -> 0 | H168: =SUM(IF('6. Class A Consumption Data'!N434:O434="B",'6. Class A Consumption Data'!N432:O432)) -> 0 | I168: 0 | J168: 0 | K168: 0
A169: Customer 136 | C169: 0 | D169: =SUM(IF('6. Class A Consumption Data'!F437:G437="B",'6. Class A Consumption Data'!F435:G435)) -> 0 | E169: =SUM(IF('6. Class A Consumption Data'!H437:I437="B",'6. Class A Consumption Data'!H435:I435)) -> 0 | F169: =SUM(IF('6. Class A Consumption Data'!J437:K437="B",'6. Class A Consumption Data'!J435:K435)) -> 0 | G169: =SUM(IF('6. Class A Consumption Data'!L437:M437="B",'6. Class A Consumption Data'!L435:M435)) -> 0 | H169: =SUM(IF('6. Class A Consumption Data'!N437:O437="B",'6. Class A Consumption Data'!N435:O435)) -> 0 | I169: 0 | J169: 0 | K169: 0
A170: Customer 137 | C170: 0 | D170: =SUM(IF('6. Class A Consumption Data'!F440:G440="B",'6. Class A Consumption Data'!F438:G438)) -> 0 | E170: =SUM(IF('6. Class A Consumption Data'!H440:I440="B",'6. Class A Consumption Data'!H438:I438)) -> 0 | F170: =SUM(IF('6. Class A Consumption Data'!J440:K440="B",'6. Class A Consumption Data'!J438:K438)) -> 0 | G170: =SUM(IF('6. Class A Consumption Data'!L440:M440="B",'6. Class A Consumption Data'!L438:M438)) -> 0 | H170: =SUM(IF('6. Class A Consumption Data'!N440:O440="B",'6. Class A Consumption Data'!N438:O438)) -> 0 | I170: 0 | J170: 0 | K170: 0
A171: Customer 138 | C171: 0 | D171: =SUM(IF('6. Class A Consumption Data'!F443:G443="B",'6. Class A Consumption Data'!F441:G441)) -> 0 | E171: =SUM(IF('6. Class A Consumption Data'!H443:I443="B",'6. Class A Consumption Data'!H441:I441)) -> 0 | F171: =SUM(IF('6. Class A Consumption Data'!J443:K443="B",'6. Class A Consumption Data'!J441:K441)) -> 0 | G171: =SUM(IF('6. Class A Consumption Data'!L443:M443="B",'6. Class A Consumption Data'!L441:M441)) -> 0 | H171: =SUM(IF('6. Class A Consumption Data'!N443:O443="B",'6. Class A Consumption Data'!N441:O441)) -> 0 | I171: 0 | J171: 0 | K171: 0
A172: Customer 139 | C172: 0 | D172: =SUM(IF('6. Class A Consumption Data'!F446:G446="B",'6. Class A Consumption Data'!F444:G444)) -> 0 | E172: =SUM(IF('6. Class A Consumption Data'!H446:I446="B",'6. Class A Consumption Data'!H444:I444)) -> 0 | F172: =SUM(IF('6. Class A Consumption Data'!J446:K446="B",'6. Class A Consumption Data'!J444:K444)) -> 0 | G172: =SUM(IF('6. Class A Consumption Data'!L446:M446="B",'6. Class A Consumption Data'!L444:M444)) -> 0 | H172: =SUM(IF('6. Class A Consumption Data'!N446:O446="B",'6. Class A Consumption Data'!N444:O444)) -> 0 | I172: 0 | J172: 0 | K172: 0
A173: Customer 140 | C173: 0 | D173: =SUM(IF('6. Class A Consumption Data'!F449:G449="B",'6. Class A Consumption Data'!F447:G447)) -> 0 | E173: =SUM(IF('6. Class A Consumption Data'!H449:I449="B",'6. Class A Consumption Data'!H447:I447)) -> 0 | F173: =SUM(IF('6. Class A Consumption Data'!J449:K449="B",'6. Class A Consumption Data'!J447:K447)) -> 0 | G173: =SUM(IF('6. Class A Consumption Data'!L449:M449="B",'6. Class A Consumption Data'!L447:M447)) -> 0 | H173: =SUM(IF('6. Class A Consumption Data'!N449:O449="B",'6. Class A Consumption Data'!N447:O447)) -> 0 | I173: 0 | J173: 0 | K173: 0
A174: Customer 141 | C174: 0 | D174: =SUM(IF('6. Class A Consumption Data'!F452:G452="B",'6. Class A Consumption Data'!F450:G450)) -> 0 | E174: =SUM(IF('6. Class A Consumption Data'!H452:I452="B",'6. Class A Consumption Data'!H450:I450)) -> 0 | F174: =SUM(IF('6. Class A Consumption Data'!J452:K452="B",'6. Class A Consumption Data'!J450:K450)) -> 0 | G174: =SUM(IF('6. Class A Consumption Data'!L452:M452="B",'6. Class A Consumption Data'!L450:M450)) -> 0 | H174: =SUM(IF('6. Class A Consumption Data'!N452:O452="B",'6. Class A Consumption Data'!N450:O450)) -> 0 | I174: 0 | J174: 0 | K174: 0
A175: Customer 142 | C175: 0 | D175: =SUM(IF('6. Class A Consumption Data'!F455:G455="B",'6. Class A Consumption Data'!F453:G453)) -> 0 | E175: =SUM(IF('6. Class A Consumption Data'!H455:I455="B",'6. Class A Consumption Data'!H453:I453)) -> 0 | F175: =SUM(IF('6. Class A Consumption Data'!J455:K455="B",'6. Class A Consumption Data'!J453:K453)) -> 0 | G175: =SUM(IF('6. Class A Consumption Data'!L455:M455="B",'6. Class A Consumption Data'!L453:M453)) -> 0 | H175: =SUM(IF('6. Class A Consumption Data'!N455:O455="B",'6. Class A Consumption Data'!N453:O453)) -> 0 | I175: 0 | J175: 0 | K175: 0
A176: Customer 143 | C176: 0 | D176: =SUM(IF('6. Class A Consumption Data'!F458:G458="B",'6. Class A Consumption Data'!F456:G456)) -> 0 | E176: =SUM(IF('6. Class A Consumption Data'!H458:I458="B",'6. Class A Consumption Data'!H456:I456)) -> 0 | F176: =SUM(IF('6. Class A Consumption Data'!J458:K458="B",'6. Class A Consumption Data'!J456:K456)) -> 0 | G176: =SUM(IF('6. Class A Consumption Data'!L458:M458="B",'6. Class A Consumption Data'!L456:M456)) -> 0 | H176: =SUM(IF('6. Class A Consumption Data'!N458:O458="B",'6. Class A Consumption Data'!N456:O456)) -> 0 | I176: 0 | J176: 0 | K176: 0
A177: Customer 144 | C177: 0 | D177: =SUM(IF('6. Class A Consumption Data'!F461:G461="B",'6. Class A Consumption Data'!F459:G459)) -> 0 | E177: =SUM(IF('6. Class A Consumption Data'!H461:I461="B",'6. Class A Consumption Data'!H459:I459)) -> 0 | F177: =SUM(IF('6. Class A Consumption Data'!J461:K461="B",'6. Class A Consumption Data'!J459:K459)) -> 0 | G177: =SUM(IF('6. Class A Consumption Data'!L461:M461="B",'6. Class A Consumption Data'!L459:M459)) -> 0 | H177: =SUM(IF('6. Class A Consumption Data'!N461:O461="B",'6. Class A Consumption Data'!N459:O459)) -> 0 | I177: 0 | J177: 0 | K177: 0
A178: Customer 145 | C178: 0 | D178: =SUM(IF('6. Class A Consumption Data'!F464:G464="B",'6. Class A Consumption Data'!F462:G462)) -> 0 | E178: =SUM(IF('6. Class A Consumption Data'!H464:I464="B",'6. Class A Consumption Data'!H462:I462)) -> 0 | F178: =SUM(IF('6. Class A Consumption Data'!J464:K464="B",'6. Class A Consumption Data'!J462:K462)) -> 0 | G178: =SUM(IF('6. Class A Consumption Data'!L464:M464="B",'6. Class A Consumption Data'!L462:M462)) -> 0 | H178: =SUM(IF('6. Class A Consumption Data'!N464:O464="B",'6. Class A Consumption Data'!N462:O462)) -> 0 | I178: 0 | J178: 0 | K178: 0
A179: Customer 146 | C179: 0 | D179: =SUM(IF('6. Class A Consumption Data'!F467:G467="B",'6. Class A Consumption Data'!F465:G465)) -> 0 | E179: =SUM(IF('6. Class A Consumption Data'!H467:I467="B",'6. Class A Consumption Data'!H465:I465)) -> 0 | F179: =SUM(IF('6. Class A Consumption Data'!J467:K467="B",'6. Class A Consumption Data'!J465:K465)) -> 0 | G179: =SUM(IF('6. Class A Consumption Data'!L467:M467="B",'6. Class A Consumption Data'!L465:M465)) -> 0 | H179: =SUM(IF('6. Class A Consumption Data'!N467:O467="B",'6. Class A Consumption Data'!N465:O465)) -> 0 | I179: 0 | J179: 0 | K179: 0
A180: Customer 147 | C180: 0 | D180: =SUM(IF('6. Class A Consumption Data'!F470:G470="B",'6. Class A Consumption Data'!F468:G468)) -> 0 | E180: =SUM(IF('6. Class A Consumption Data'!H470:I470="B",'6. Class A Consumption Data'!H468:I468)) -> 0 | F180: =SUM(IF('6. Class A Consumption Data'!J470:K470="B",'6. Class A Consumption Data'!J468:K468)) -> 0 | G180: =SUM(IF('6. Class A Consumption Data'!L470:M470="B",'6. Class A Consumption Data'!L468:M468)) -> 0 | H180: =SUM(IF('6. Class A Consumption Data'!N470:O470="B",'6. Class A Consumption Data'!N468:O468)) -> 0 | I180: 0 | J180: 0 | K180: 0
A181: Customer 148 | C181: 0 | D181: =SUM(IF('6. Class A Consumption Data'!F473:G473="B",'6. Class A Consumption Data'!F471:G471)) -> 0 | E181: =SUM(IF('6. Class A Consumption Data'!H473:I473="B",'6. Class A Consumption Data'!H471:I471)) -> 0 | F181: =SUM(IF('6. Class A Consumption Data'!J473:K473="B",'6. Class A Consumption Data'!J471:K471)) -> 0 | G181: =SUM(IF('6. Class A Consumption Data'!L473:M473="B",'6. Class A Consumption Data'!L471:M471)) -> 0 | H181: =SUM(IF('6. Class A Consumption Data'!N473:O473="B",'6. Class A Consumption Data'!N471:O471)) -> 0 | I181: 0 | J181: 0 | K181: 0
A182: Customer 149 | C182: 0 | D182: =SUM(IF('6. Class A Consumption Data'!F476:G476="B",'6. Class A Consumption Data'!F474:G474)) -> 0 | E182: =SUM(IF('6. Class A Consumption Data'!H476:I476="B",'6. Class A Consumption Data'!H474:I474)) -> 0 | F182: =SUM(IF('6. Class A Consumption Data'!J476:K476="B",'6. Class A Consumption Data'!J474:K474)) -> 0 | G182: =SUM(IF('6. Class A Consumption Data'!L476:M476="B",'6. Class A Consumption Data'!L474:M474)) -> 0 | H182: =SUM(IF('6. Class A Consumption Data'!N476:O476="B",'6. Class A Consumption Data'!N474:O474)) -> 0 | I182: 0 | J182: 0 | K182: 0
A183: Customer 150 | C183: 0 | D183: =SUM(IF('6. Class A Consumption Data'!F479:G479="B",'6. Class A Consumption Data'!F477:G477)) -> 0 | E183: =SUM(IF('6. Class A Consumption Data'!H479:I479="B",'6. Class A Consumption Data'!H477:I477)) -> 0 | F183: =SUM(IF('6. Class A Consumption Data'!J479:K479="B",'6. Class A Consumption Data'!J477:K477)) -> 0 | G183: =SUM(IF('6. Class A Consumption Data'!L479:M479="B",'6. Class A Consumption Data'!L477:M477)) -> 0 | H183: =SUM(IF('6. Class A Consumption Data'!N479:O479="B",'6. Class A Consumption Data'!N477:O477)) -> 0 | I183: 0 | J183: 0 | K183: 0
A184: Total | C184: =SUM(C34:C183) -> 8160896 | D184: =SUM(D34:D183) -> 8160896 | E184: =SUM(E34:E183) -> 0 | F184: =SUM(F34:F183) -> 0 | G184: =SUM(G34:G45) -> 0 | H184: =SUM(H34:H45) -> 0 | I184: =SUM(I34:I183) -> 1 | J184: =SUM(J34:J183) -> 0

Sheet 6.1 GA
B2: TRUE
B6: Total
A12: The purpose of this tab is to calculate the GA rate riders for all current Class B customers who did not transition between Class A and B in the period since the Account 1589 GA was last disposed. Calculations in this tab will be modified upon completion of tab 6.1a, which allocates a portion of the GA balance to transition customers, if applicable. Effective January 2017, the billing determinant and all rate riders for the disposition of GA balances will be calculated on an energy basis (kWhs) regardless of the billing determinant used for distribution rates for the particular class (see Chapter 3, Filing Requirements, section 3.2.5.2) | I12: Default Rate Rider Recovery Period (in months) | K12: 12
I13: Proposed Rate Rider Recovery Period (in months) | K13: 12 | L13: =IF(K13>0, "Rate Rider Recovery to be used below", "If no rate rider recovery period is proposed then the default recovery period of 12 months will be used") -> Rate Rider Recovery to be used below
C14: Total Metered Non-RPP 2017 Consumption excluding WMP | E14: Total Metered 2017 Consumption for Class A Customers that were Class A for the entire period GA blance accumulated | G14: Total Metered 2017 Consumption for Customers that Transitioned Between Class A and B during the period GA balance accumulated | I14: Non-RPP Metered Consumption for Current Class B Customers (Non-RPP Consumption excluding WMP, Class A and Transition Customers' Consumption) | K14: % of total kWh | L14: Total GA $ allocated to Current Class B Customers | M14: GA Rate Rider
C15: kWh | D15: kW | E15: kWh | F15: kW | G15: kWh | H15: kW | I15: kWh | J15: kW
A17: RESIDENTIAL SERVICE CLASSIFICATION | B17: kWh | C17: 5191780 | D17: 1 | E17: =SUM(IF('6. Class A Consumption Data'!D492:D791=A17,'6. Class A Consumption Data'!F492:F791)) -> 0 | G17: =SUM(IF('6. Class A Consumption Data'!D30:D479=A17,'6. Class A Consumption Data'!F30:G479)) -> 0 | I17: =ROUND((C17-E17-G17),0) -> 5191780 | J17: =(D17-F17-H17) -> 1 | K17: =(I17/I24) -> 0.05457831091 | L17: =ROUND((0*K17),0) -> 0 | M17: =ROUND(IF(ISERROR(L17/I17),0,IF(OR(ISBLANK(K13), OR(K13=0, K13="")), L17/I17/(K12/12), L17/I17/(K13/12))),4) -> 0 | N17: kWh
A18: GENERAL SERVICE LESS THAN 50 KW SERVICE CLASSIFICATION | B18: kWh | C18: 2995087 | D18: 0 | E18: =SUM(IF('6. Class A Consumption Data'!D492:D791=A18,'6. Class A Consumption Data'!F492:F791)) -> 0 | G18: =SUM(IF('6. Class A Consumption Data'!D30:D479=A18,'6. Class A Consumption Data'!F30:G479)) -> 0 | I18: =ROUND((C18-E18-G18),0) -> 2995087 | J18: =(D18-F18-H18) -> 0 | K18: =(I18/I24) -> 0.03148569267 | L18: =ROUND((0*K18),0) -> 0 | M18: =ROUND(IF(ISERROR(L18/I18),0,IF(OR(ISBLANK(K13), OR(K13=0, K13="")), L18/I18/(K12/12), L18/I18/(K13/12))),4) -> 0 | N18: kWh
A19: GENERAL SERVICE 50 to 4,999 kW SERVICE CLASSIFICATION | B19: kWh | C19: 45551875 | D19: 180990 | E19: =SUM(IF('6. Class A Consumption Data'!D492:D791=A19,'6. Class A Consumption Data'!F492:F791)) -> 0 | G19: =SUM(IF('6. Class A Consumption Data'!D30:D479=A19,'6. Class A Consumption Data'!F30:G479)) -> 17226691 | I19: =ROUND((C19-E19-G19),0) -> 28325184 | J19: =(D19-F19-H19) -> 180990 | K19: =(I19/I24) -> 0.2977669892 | L19: =ROUND((0*K19),0) -> 0 | M19: =ROUND(IF(ISERROR(L19/I19),0,IF(OR(ISBLANK(K13), OR(K13=0, K13="")), L19/I19/(K12/12), L19/I19/(K13/12))),4) -> 0 | N19: kWh
A20: UNMETERED SCATTERED LOAD SERVICE CLASSIFICATION | B20: kWh | C20: 255469 | D20: 0 | E20: =SUM(IF('6. Class A Consumption Data'!D492:D791=A20,'6. Class A Consumption Data'!F492:F791)) -> 0 | G20: =SUM(IF('6. Class A Consumption Data'!D30:D479=A20,'6. Class A Consumption Data'!F30:G479)) -> 0 | I20: =ROUND((C20-E20-G20),0) -> 255469 | J20: =(D20-F20-H20) -> 0 | K20: =(I20/I24) -> 0.002685604265 | L20: =ROUND((0*K20),0) -> 0 | M20: =ROUND(IF(ISERROR(L20/I20),0,IF(OR(ISBLANK(K13), OR(K13=0, K13="")), L20/I20/(K12/12), L20/I20/(K13/12))),4) -> 0 | N20: kWh
A21: SENTINEL LIGHTING SERVICE CLASSIFICATION | B21: kWh | C21: 152795 | D21: 406 | E21: =SUM(IF('6. Class A Consumption Data'!D492:D791=A21,'6. Class A Consumption Data'!F492:F791)) -> 0 | G21: =SUM(IF('6. Class A Consumption Data'!D30:D479=A21,'6. Class A Consumption Data'!F30:G479)) -> 0 | I21: =ROUND((C21-E21-G21),0) -> 152795 | J21: =(D21-F21-H21) -> 406 | K21: =(I21/I24) -> 0.001606249305 | L21: =ROUND((0*K21),0) -> 0 | M21: =ROUND(IF(ISERROR(L21/I21),0,IF(OR(ISBLANK(K13), OR(K13=0, K13="")), L21/I21/(K12/12), L21/I21/(K13/12))),4) -> 0 | N21: kWh
A22: STREET LIGHTING SERVICE CLASSIFICATION | B22: kWh | C22: 1361607 | D22: 6470 | E22: =SUM(IF('6. Class A Consumption Data'!D492:D791=A22,'6. Class A Consumption Data'!F492:F791)) -> 0 | G22: =SUM(IF('6. Class A Consumption Data'!D30:D479=A22,'6. Class A Consumption Data'!F30:G479)) -> 0 | I22: =ROUND((C22-E22-G22),0) -> 1361607 | J22: =(D22-F22-H22) -> 6470 | K22: =(I22/I24) -> 0.01431382111 | L22: =ROUND((0*K22),0) -> 0 | M22: =ROUND(IF(ISERROR(L22/I22),0,IF(OR(ISBLANK(K13), OR(K13=0, K13="")), L22/I22/(K12/12), L22/I22/(K13/12))),4) -> 0 | N22: kWh
A23: EMBEDDED DISTRIBUTOR SERVICE CLASSIFICATION | B23: kWh | C23: 56843411 | D23: 96786 | E23: =SUM(IF('6. Class A Consumption Data'!D492:D791=A23,'6. Class A Consumption Data'!F492:F791)) -> 0 | G23: =SUM(IF('6. Class A Consumption Data'!D30:D479=A23,'6. Class A Consumption Data'!F30:G479)) -> 0 | I23: =ROUND((C23-E23-G23),0) -> 56843411 | J23: =(D23-F23-H23) -> 96786 | K23: =(I23/I24) -> 0.5975633326 | L23: =ROUND((0*K23),0) -> 0 | M23: =ROUND(IF(ISERROR(L23/I23),0,IF(OR(ISBLANK(K13), OR(K13=0, K13="")), L23/I23/(K12/12), L23/I23/(K13/12))),4) -> 0 | N23: kWh
B24: Total | C24: 112352024 | D24: 284653 | E24: =SUM(E17:E23) -> 0 | F24: =SUM(F17:F23) -> 0 | G24: =SUM(G17:G23) -> 17226691 | H24: =SUM(H17:H23) -> 0 | I24: =SUM(I17:I23) -> 95125333 | J24: =SUM(J17:J23) -> 284653 | K24: =SUM(K17:K23) -> 1 | L24: =SUM(L17:L23) -> 0

Sheet 6.2a CBR B_Allocation
A14: This tab allocates the CBR Class B balance to transition customers (i.e Class A customers who were former Class B customers and Class B customers who were former Class A customers) who contributed to the current CBR Class B balance. The tables below calculate specific amounts for each customer who made the change. The general CBR Class B rate rider is not to be charged to the transition customers that are allocated amounts in the table below. Consistent with prior decisions, distributors are generally expected to settle the amount through 12 equal adjustments to bills.
A16: Please enter the Year the Account 1580 CBR Class B was Last Disposed. | B16: Never Disposed | C16: (Note: Account 1580, Sub-account CBR Class B was established starting in 2015)
A18: Allocation of total Consumption (kWh) between Class B and Class A/B Transition Customers
C19: Total | D19: 2017 | E19: 2016 | F19: 2015
A20: Total Class B Consumption for Years During Balance Accumulation (Total Consumption LESS WMP Consumption and Consumption for Class A customers who were Class A for partial or full year) | B20: A | C20: =SUM(D20:E20) -> 228399812 | D20: =103286229 -> 103286229 | E20: =125113583-0 -> 125113583 | F20: 0
A21: Transition Customers' Class B Consumption (i.e. full year or partial year) | B21: B | C21: =SUM(D21:E21) -> 8160896 | D21: =D184 -> 8160896 | E21: =E184 -> 0 | F21: =G184 -> 1
A22: Transition Customers' Portion of Total Consumption | B22: C=B/A | C22: =IFERROR(C21/C20,0) -> 0.03573074745 | D22: =D20-D21 -> 95125333 | E22: =E20-E21 -> 125113583 | F22: =F20-F21 -> -1
A26: Allocation of Total CBR Class B Balance $
A27: Total CBR Class B Balance | B27: D | C27: ='3. Continuity Schedule'!BT25 -> 0
A28: Transition Customers Portion of CBR Class B Balance | B28: E=D*C | C28: =+C22*C27 -> 0
A29: CBR Class B Balance to be disposed to Current Class B Customers through Rate Rider | B29: F=D-E | C29: =+C27-C28 -> 0
A31: Allocation of CBR Class B Balances to Transition Customers
A32: # of Class A/B Transition Customers | C32: =COUNTIF(C34:C183,"<>0") -> 1
A33: Customer | C33: Total Metered Class B Consumption (kWh) for Transition Customers During the Period When They were Class B Customers | D33: Metered Class B Consumption (kWh) for Transition Customers During the Period When They were Class B Customers in 2017 | E33: Metered Class B Consumption (kWh) for Transition Customers During the Period When They were Class B Customers in 2016 | F33: Metered Class B Consumption (kWh) for Transition Customers During the Period When They were Class B Customers in 2015 | G33: % of kWh | H33: Customer Specific CBR Class B Allocation for the Period When They Were a Class B Customer | I33: Monthly Equal Payments
A34: Customer 1 | C34: =SUM(D34:E34) -> 8160896 | D34: =SUM(IF(('6. Class A Consumption Data'!F32:G32="B")*('6. Class A Consumption Data'!B30<>"N/A"),'6. Class A Consumption Data'!F30:G30)) -> 8160896 | E34: =SUM(IF(('6. Class A Consumption Data'!H32:I32="B")*('6. Class A Consumption Data'!B30<>"N/A"),'6. Class A Consumption Data'!H30:I30)) -> 0 | F34: =SUM(IF(('6. Class A Consumption Data'!J32:K32="B")*('6. Class A Consumption Data'!B30<>"N/A"),'6. Class A Consumption Data'!J30:K30)) -> 0 | G34: =IFERROR(+C34/($C$184),0) -> 1 | H34: =+G34*$C$28 -> 0 | I34: =+H34/12 -> 0
A35: Customer 2 | C35: 0 | D35: =SUM(IF(('6. Class A Consumption Data'!F35:G35="B")*('6. Class A Consumption Data'!B33<>"N/A"),'6. Class A Consumption Data'!F33:G33)) -> 0 | E35: =SUM(IF(('6. Class A Consumption Data'!H35:I35="B")*('6. Class A Consumption Data'!B33<>"N/A"),'6. Class A Consumption Data'!H33:I33)) -> 0 | F35: =SUM(IF(('6. Class A Consumption Data'!J35:K35="B")*('6. Class A Consumption Data'!B33<>"N/A"),'6. Class A Consumption Data'!J33:K33)) -> 0 | G35: 0 | H35: 0 | I35: 0
A36: Customer 3 | C36: 0 | D36: =SUM(IF(('6. Class A Consumption Data'!F38:G38="B")*('6. Class A Consumption Data'!B36<>"N/A"),'6. Class A Consumption Data'!F36:G36)) -> 0 | E36: =SUM(IF(('6. Class A Consumption Data'!H38:I38="B")*('6. Class A Consumption Data'!B36<>"N/A"),'6. Class A Consumption Data'!H36:I36)) -> 0 | F36: =SUM(IF(('6. Class A Consumption Data'!J38:K38="B")*('6. Class A Consumption Data'!B36<>"N/A"),'6. Class A Consumption Data'!J36:K36)) -> 0 | G36: 0 | H36: 0 | I36: 0
A37: Customer 4 | C37: 0 | D37: =SUM(IF(('6. Class A Consumption Data'!F41:G41="B")*('6. Class A Consumption Data'!B39<>"N/A"),'6. Class A Consumption Data'!F39:G39)) -> 0 | E37: =SUM(IF(('6. Class A Consumption Data'!H41:I41="B")*('6. Class A Consumption Data'!B39<>"N/A"),'6. Class A Consumption Data'!H39:I39)) -> 0 | F37: =SUM(IF(('6. Class A Consumption Data'!J41:K41="B")*('6. Class A Consumption Data'!B39<>"N/A"),'6. Class A Consumption Data'!J39:K39)) -> 0 | G37: 0 | H37: 0 | I37: 0
A38: Customer 5 | C38: 0 | D38: =SUM(IF(('6. Class A Consumption Data'!F44:G44="B")*('6. Class A Consumption Data'!B42<>"N/A"),'6. Class A Consumption Data'!F42:G42)) -> 0 | E38: =SUM(IF(('6. Class A Consumption Data'!H44:I44="B")*('6. Class A Consumption Data'!B42<>"N/A"),'6. Class A Consumption Data'!H42:I42)) -> 0 | F38: =SUM(IF(('6. Class A Consumption Data'!J44:K44="B")*('6. Class A Consumption Data'!B42<>"N/A"),'6. Class A Consumption Data'!J42:K42)) -> 0 | G38: 0 | H38: 0 | I38: 0
A39: Customer 6 | C39: 0 | D39: =SUM(IF(('6. Class A Consumption Data'!F47:G47="B")*('6. Class A Consumption Data'!B45<>"N/A"),'6. Class A Consumption Data'!F45:G45)) -> 0 | E39: =SUM(IF(('6. Class A Consumption Data'!H47:I47="B")*('6. Class A Consumption Data'!B45<>"N/A"),'6. Class A Consumption Data'!H45:I45)) -> 0 | F39: =SUM(IF(('6. Class A Consumption Data'!J47:K47="B")*('6. Class A Consumption Data'!B45<>"N/A"),'6. Class A Consumption Data'!J45:K45)) -> 0 | G39: 0 | H39: 0 | I39: 0
A40: Customer 7 | C40: 0 | D40: =SUM(IF(('6. Class A Consumption Data'!F50:G50="B")*('6. Class A Consumption Data'!B48<>"N/A"),'6. Class A Consumption Data'!F48:G48)) -> 0 | E40: =SUM(IF(('6. Class A Consumption Data'!H50:I50="B")*('6. Class A Consumption Data'!B48<>"N/A"),'6. Class A Consumption Data'!H48:I48)) -> 0 | F40: =SUM(IF(('6. Class A Consumption Data'!J50:K50="B")*('6. Class A Consumption Data'!B48<>"N/A"),'6. Class A Consumption Data'!J48:K48)) -> 0 | G40: 0 | H40: 0 | I40: 0
A41: Customer 8 | C41: 0 | D41: =SUM(IF(('6. Class A Consumption Data'!F53:G53="B")*('6. Class A Consumption Data'!B51<>"N/A"),'6. Class A Consumption Data'!F51:G51)) -> 0 | E41: =SUM(IF(('6. Class A Consumption Data'!H53:I53="B")*('6. Class A Consumption Data'!B51<>"N/A"),'6. Class A Consumption Data'!H51:I51)) -> 0 | F41: =SUM(IF(('6. Class A Consumption Data'!J53:K53="B")*('6. Class A Consumption Data'!B51<>"N/A"),'6. Class A Consumption Data'!J51:K51)) -> 0 | G41: 0 | H41: 0 | I41: 0
A42: Customer 9 | C42: 0 | D42: =SUM(IF(('6. Class A Consumption Data'!F56:G56="B")*('6. Class A Consumption Data'!B54<>"N/A"),'6. Class A Consumption Data'!F54:G54)) -> 0 | E42: =SUM(IF(('6. Class A Consumption Data'!H56:I56="B")*('6. Class A Consumption Data'!B54<>"N/A"),'6. Class A Consumption Data'!H54:I54)) -> 0 | F42: =SUM(IF(('6. Class A Consumption Data'!J56:K56="B")*('6. Class A Consumption Data'!B54<>"N/A"),'6. Class A Consumption Data'!J54:K54)) -> 0 | G42: 0 | H42: 0 | I42: 0
A43: Customer 10 | C43: 0 | D43: =SUM(IF(('6. Class A Consumption Data'!F59:G59="B")*('6. Class A Consumption Data'!B57<>"N/A"),'6. Class A Consumption Data'!F57:G57)) -> 0 | E43: =SUM(IF(('6. Class A Consumption Data'!H59:I59="B")*('6. Class A Consumption Data'!B57<>"N/A"),'6. Class A Consumption Data'!H57:I57)) -> 0 | F43: =SUM(IF(('6. Class A Consumption Data'!J59:K59="B")*('6. Class A Consumption Data'!B57<>"N/A"),'6. Class A Consumption Data'!J57:K57)) -> 0 | G43: 0 | H43: 0 | I43: 0
A44: Customer 11 | C44: 0 | D44: =SUM(IF(('6. Class A Consumption Data'!F62:G62="B")*('6. Class A Consumption Data'!B60<>"N/A"),'6. Class A Consumption Data'!F60:G60)) -> 0 | E44: =SUM(IF(('6. Class A Consumption Data'!H62:I62="B")*('6. Class A Consumption Data'!B60<>"N/A"),'6. Class A Consumption Data'!H60:I60)) -> 0 | F44: =SUM(IF(('6. Class A Consumption Data'!J62:K62="B")*('6. Class A Consumption Data'!B60<>"N/A"),'6. Class A Consumption Data'!J60:K60)) -> 0 | G44: 0 | H44: 0 | I44: 0
A45: Customer 12 | C45: 0 | D45: =SUM(IF(('6. Class A Consumption Data'!F65:G65="B")*('6. Class A Consumption Data'!B63<>"N/A"),'6. Class A Consumption Data'!F63:G63)) -> 0 | E45: =SUM(IF(('6. Class A Consumption Data'!H65:I65="B")*('6. Class A Consumption Data'!B63<>"N/A"),'6. Class A Consumption Data'!H63:I63)) -> 0 | F45: =SUM(IF(('6. Class A Consumption Data'!J65:K65="B")*('6. Class A Consumption Data'!B63<>"N/A"),'6. Class A Consumption Data'!J63:K63)) -> 0 | G45: 0 | H45: 0 | I45: 0
A46: Customer 13 | C46: 0 | D46: =SUM(IF(('6. Class A Consumption Data'!F68:G68="B")*('6. Class A Consumption Data'!B66<>"N/A"),'6. Class A Consumption Data'!F66:G66)) -> 0 | E46: =SUM(IF(('6. Class A Consumption Data'!H68:I68="B")*('6. Class A Consumption Data'!B66<>"N/A"),'6. Class A Consumption Data'!H66:I66)) -> 0 | F46: =SUM(IF(('6. Class A Consumption Data'!J68:K68="B")*('6. Class A Consumption Data'!B66<>"N/A"),'6. Class A Consumption Data'!J66:K66)) -> 0 | G46: 0 | H46: 0 | I46: 0
A47: Customer 14 | C47: 0 | D47: =SUM(IF(('6. Class A Consumption Data'!F71:G71="B")*('6. Class A Consumption Data'!B69<>"N/A"),'6. Class A Consumption Data'!F69:G69)) -> 0 | E47: =SUM(IF(('6. Class A Consumption Data'!H71:I71="B")*('6. Class A Consumption Data'!B69<>"N/A"),'6. Class A Consumption Data'!H69:I69)) -> 0 | F47: =SUM(IF(('6. Class A Consumption Data'!J71:K71="B")*('6. Class A Consumption Data'!B69<>"N/A"),'6. Class A Consumption Data'!J69:K69)) -> 0 | G47: 0 | H47: 0 | I47: 0
A48: Customer 15 | C48: 0 | D48: =SUM(IF(('6. Class A Consumption Data'!F74:G74="B")*('6. Class A Consumption Data'!B72<>"N/A"),'6. Class A Consumption Data'!F72:G72)) -> 0 | E48: =SUM(IF(('6. Class A Consumption Data'!H74:I74="B")*('6. Class A Consumption Data'!B72<>"N/A"),'6. Class A Consumption Data'!H72:I72)) -> 0 | F48: =SUM(IF(('6. Class A Consumption Data'!J74:K74="B")*('6. Class A Consumption Data'!B72<>"N/A"),'6. Class A Consumption Data'!J72:K72)) -> 0 | G48: 0 | H48: 0 | I48: 0
A49: Customer 16 | C49: 0 | D49: =SUM(IF(('6. Class A Consumption Data'!F77:G77="B")*('6. Class A Consumption Data'!B75<>"N/A"),'6. Class A Consumption Data'!F75:G75)) -> 0 | E49: =SUM(IF(('6. Class A Consumption Data'!H77:I77="B")*('6. Class A Consumption Data'!B75<>"N/A"),'6. Class A Consumption Data'!H75:I75)) -> 0 | F49: =SUM(IF(('6. Class A Consumption Data'!J77:K77="B")*('6. Class A Consumption Data'!B75<>"N/A"),'6. Class A Consumption Data'!J75:K75)) -> 0 | G49: 0 | H49: 0 | I49: 0
A50: Customer 17 | C50: 0 | D50: =SUM(IF(('6. Class A Consumption Data'!F80:G80="B")*('6. Class A Consumption Data'!B78<>"N/A"),'6. Class A Consumption Data'!F78:G78)) -> 0 | E50: =SUM(IF(('6. Class A Consumption Data'!H80:I80="B")*('6. Class A Consumption Data'!B78<>"N/A"),'6. Class A Consumption Data'!H78:I78)) -> 0 | F50: =SUM(IF(('6. Class A Consumption Data'!J80:K80="B")*('6. Class A Consumption Data'!B78<>"N/A"),'6. Class A Consumption Data'!J78:K78)) -> 0 | G50: 0 | H50: 0 | I50: 0
A51: Customer 18 | C51: 0 | D51: =SUM(IF(('6. Class A Consumption Data'!F83:G83="B")*('6. Class A Consumption Data'!B81<>"N/A"),'6. Class A Consumption Data'!F81:G81)) -> 0 | E51: =SUM(IF(('6. Class A Consumption Data'!H83:I83="B")*('6. Class A Consumption Data'!B81<>"N/A"),'6. Class A Consumption Data'!H81:I81)) -> 0 | F51: =SUM(IF(('6. Class A Consumption Data'!J83:K83="B")*('6. Class A Consumption Data'!B81<>"N/A"),'6. Class A Consumption Data'!J81:K81)) -> 0 | G51: 0 | H51: 0 | I51: 0
A52: Customer 19 | C52: 0 | D52: =SUM(IF(('6. Class A Consumption Data'!F86:G86="B")*('6. Class A Consumption Data'!B84<>"N/A"),'6. Class A Consumption Data'!F84:G84)) -> 0 | E52: =SUM(IF(('6. Class A Consumption Data'!H86:I86="B")*('6. Class A Consumption Data'!B84<>"N/A"),'6. Class A Consumption Data'!H84:I84)) -> 0 | F52: =SUM(IF(('6. Class A Consumption Data'!J86:K86="B")*('6. Class A Consumption Data'!B84<>"N/A"),'6. Class A Consumption Data'!J84:K84)) -> 0 | G52: 0 | H52: 0 | I52: 0
A53: Customer 20 | C53: 0 | D53: =SUM(IF(('6. Class A Consumption Data'!F89:G89="B")*('6. Class A Consumption Data'!B87<>"N/A"),'6. Class A Consumption Data'!F87:G87)) -> 0 | E53: =SUM(IF(('6. Class A Consumption Data'!H89:I89="B")*('6. Class A Consumption Data'!B87<>"N/A"),'6. Class A Consumption Data'!H87:I87)) -> 0 | F53: =SUM(IF(('6. Class A Consumption Data'!J89:K89="B")*('6. Class A Consumption Data'!B87<>"N/A"),'6. Class A Consumption Data'!J87:K87)) -> 0 | G53: 0 | H53: 0 | I53: 0
A54: Customer 21 | C54: 0 | D54: =SUM(IF(('6. Class A Consumption Data'!F92:G92="B")*('6. Class A Consumption Data'!B90<>"N/A"),'6. Class A Consumption Data'!F90:G90)) -> 0 | E54: =SUM(IF(('6. Class A Consumption Data'!H92:I92="B")*('6. Class A Consumption Data'!B90<>"N/A"),'6. Class A Consumption Data'!H90:I90)) -> 0 | F54: =SUM(IF(('6. Class A Consumption Data'!J92:K92="B")*('6. Class A Consumption Data'!B90<>"N/A"),'6. Class A Consumption Data'!J90:K90)) -> 0 | G54: 0 | H54: 0 | I54: 0
A55: Customer 22 | C55: 0 | D55: =SUM(IF(('6. Class A Consumption Data'!F95:G95="B")*('6. Class A Consumption Data'!B93<>"N/A"),'6. Class A Consumption Data'!F93:G93)) -> 0 | E55: =SUM(IF(('6. Class A Consumption Data'!H95:I95="B")*('6. Class A Consumption Data'!B93<>"N/A"),'6. Class A Consumption Data'!H93:I93)) -> 0 | F55: =SUM(IF(('6. Class A Consumption Data'!J95:K95="B")*('6. Class A Consumption Data'!B93<>"N/A"),'6. Class A Consumption Data'!J93:K93)) -> 0 | G55: 0 | H55: 0 | I55: 0
A56: Customer 23 | C56: 0 | D56: =SUM(IF(('6. Class A Consumption Data'!F98:G98="B")*('6. Class A Consumption Data'!B96<>"N/A"),'6. Class A Consumption Data'!F96:G96)) -> 0 | E56: =SUM(IF(('6. Class A Consumption Data'!H98:I98="B")*('6. Class A Consumption Data'!B96<>"N/A"),'6. Class A Consumption Data'!H96:I96)) -> 0 | F56: =SUM(IF(('6. Class A Consumption Data'!J98:K98="B")*('6. Class A Consumption Data'!B96<>"N/A"),'6. Class A Consumption Data'!J96:K96)) -> 0 | G56: 0 | H56: 0 | I56: 0
A57: Customer 24 | C57: 0 | D57: =SUM(IF(('6. Class A Consumption Data'!F101:G101="B")*('6. Class A Consumption Data'!B99<>"N/A"),'6. Class A Consumption Data'!F99:G99)) -> 0 | E57: =SUM(IF(('6. Class A Consumption Data'!H101:I101="B")*('6. Class A Consumption Data'!B99<>"N/A"),'6. Class A Consumption Data'!H99:I99)) -> 0 | F57: =SUM(IF(('6. Class A Consumption Data'!J101:K101="B")*('6. Class A Consumption Data'!B99<>"N/A"),'6. Class A Consumption Data'!J99:K99)) -> 0 | G57: 0 | H57: 0 | I57: 0
A58: Customer 25 | C58: 0 | D58: =SUM(IF(('6. Class A Consumption Data'!F104:G104="B")*('6. Class A Consumption Data'!B102<>"N/A"),'6. Class A Consumption Data'!F102:G102)) -> 0 | E58: =SUM(IF(('6. Class A Consumption Data'!H104:I104="B")*('6. Class A Consumption Data'!B102<>"N/A"),'6. Class A Consumption Data'!H102:I102)) -> 0 | F58: =SUM(IF(('6. Class A Consumption Data'!J104:K104="B")*('6. Class A Consumption Data'!B102<>"N/A"),'6. Class A Consumption Data'!J102:K102)) -> 0 | G58: 0 | H58: 0 | I58: 0
A59: Customer 26 | C59: 0 | D59: =SUM(IF(('6. Class A Consumption Data'!F107:G107="B")*('6. Class A Consumption Data'!B105<>"N/A"),'6. Class A Consumption Data'!F105:G105)) -> 0 | E59: =SUM(IF(('6. Class A Consumption Data'!H107:I107="B")*('6. Class A Consumption Data'!B105<>"N/A"),'6. Class A Consumption Data'!H105:I105)) -> 0 | F59: =SUM(IF(('6. Class A Consumption Data'!J107:K107="B")*('6. Class A Consumption Data'!B105<>"N/A"),'6. Class A Consumption Data'!J105:K105)) -> 0 | G59: 0 | H59: 0 | I59: 0
A60: Customer 27 | C60: 0 | D60: =SUM(IF(('6. Class A Consumption Data'!F110:G110="B")*('6. Class A Consumption Data'!B108<>"N/A"),'6. Class A Consumption Data'!F108:G108)) -> 0 | E60: =SUM(IF(('6. Class A Consumption Data'!H110:I110="B")*('6. Class A Consumption Data'!B108<>"N/A"),'6. Class A Consumption Data'!H108:I108)) -> 0 | F60: =SUM(IF(('6. Class A Consumption Data'!J110:K110="B")*('6. Class A Consumption Data'!B108<>"N/A"),'6. Class A Consumption Data'!J108:K108)) -> 0 | G60: 0 | H60: 0 | I60: 0
A61: Customer 28 | C61: 0 | D61: =SUM(IF(('6. Class A Consumption Data'!F113:G113="B")*('6. Class A Consumption Data'!B111<>"N/A"),'6. Class A Consumption Data'!F111:G111)) -> 0 | E61: =SUM(IF(('6. Class A Consumption Data'!H113:I113="B")*('6. Class A Consumption Data'!B111<>"N/A"),'6. Class A Consumption Data'!H111:I111)) -> 0 | F61: =SUM(IF(('6. Class A Consumption Data'!J113:K113="B")*('6. Class A Consumption Data'!B111<>"N/A"),'6. Class A Consumption Data'!J111:K111)) -> 0 | G61: 0 | H61: 0 | I61: 0
A62: Customer 29 | C62: 0 | D62: =SUM(IF(('6. Class A Consumption Data'!F116:G116="B")*('6. Class A Consumption Data'!B114<>"N/A"),'6. Class A Consumption Data'!F114:G114)) -> 0 | E62: =SUM(IF(('6. Class A Consumption Data'!H116:I116="B")*('6. Class A Consumption Data'!B114<>"N/A"),'6. Class A Consumption Data'!H114:I114)) -> 0 | F62: =SUM(IF(('6. Class A Consumption Data'!J116:K116="B")*('6. Class A Consumption Data'!B114<>"N/A"),'6. Class A Consumption Data'!J114:K114)) -> 0 | G62: 0 | H62: 0 | I62: 0
A63: Customer 30 | C63: 0 | D63: =SUM(IF(('6. Class A Consumption Data'!F119:G119="B")*('6. Class A Consumption Data'!B117<>"N/A"),'6. Class A Consumption Data'!F117:G117)) -> 0 | E63: =SUM(IF(('6. Class A Consumption Data'!H119:I119="B")*('6. Class A Consumption Data'!B117<>"N/A"),'6. Class A Consumption Data'!H117:I117)) -> 0 | F63: =SUM(IF(('6. Class A Consumption Data'!J119:K119="B")*('6. Class A Consumption Data'!B117<>"N/A"),'6. Class A Consumption Data'!J117:K117)) -> 0 | G63: 0 | H63: 0 | I63: 0
A64: Customer 31 | C64: 0 | D64: =SUM(IF(('6. Class A Consumption Data'!F122:G122="B")*('6. Class A Consumption Data'!B120<>"N/A"),'6. Class A Consumption Data'!F120:G120)) -> 0 | E64: =SUM(IF(('6. Class A Consumption Data'!H122:I122="B")*('6. Class A Consumption Data'!B120<>"N/A"),'6. Class A Consumption Data'!H120:I120)) -> 0 | F64: =SUM(IF(('6. Class A Consumption Data'!J122:K122="B")*('6. Class A Consumption Data'!B120<>"N/A"),'6. Class A Consumption Data'!J120:K120)) -> 0 | G64: 0 | H64: 0 | I64: 0
A65: Customer 32 | C65: 0 | D65: =SUM(IF(('6. Class A Consumption Data'!F125:G125="B")*('6. Class A Consumption Data'!B123<>"N/A"),'6. Class A Consumption Data'!F123:G123)) -> 0 | E65: =SUM(IF(('6. Class A Consumption Data'!H125:I125="B")*('6. Class A Consumption Data'!B123<>"N/A"),'6. Class A Consumption Data'!H123:I123)) -> 0 | F65: =SUM(IF(('6. Class A Consumption Data'!J125:K125="B")*('6. Class A Consumption Data'!B123<>"N/A"),'6. Class A Consumption Data'!J123:K123)) -> 0 | G65: 0 | H65: 0 | I65: 0
A66: Customer 33 | C66: =SUM(D66:E66) -> 0 | D66: =SUM(IF(('6. Class A Consumption Data'!F128:G128="B")*('6. Class A Consumption Data'!B126<>"N/A"),'6. Class A Consumption Data'!F126:G126)) -> 0 | E66: =SUM(IF(('6. Class A Consumption Data'!H128:I128="B")*('6. Class A Consumption Data'!B126<>"N/A"),'6. Class A Consumption Data'!H126:I126)) -> 0 | F66: =SUM(IF(('6. Class A Consumption Data'!J128:K128="B")*('6. Class A Consumption Data'!B126<>"N/A"),'6. Class A Consumption Data'!J126:K126)) -> 0 | G66: =IFERROR(+C66/($C$184),0) -> 0 | H66: =+G66*$C$28 -> 0 | I66: =+H66/12 -> 0
A67: Customer 34 | C67: 0 | D67: =SUM(IF(('6. Class A Consumption Data'!F131:G131="B")*('6. Class A Consumption Data'!B129<>"N/A"),'6. Class A Consumption Data'!F129:G129)) -> 0 | E67: =SUM(IF(('6. Class A Consumption Data'!H131:I131="B")*('6. Class A Consumption Data'!B129<>"N/A"),'6. Class A Consumption Data'!H129:I129)) -> 0 | F67: =SUM(IF(('6. Class A Consumption Data'!J131:K131="B")*('6. Class A Consumption Data'!B129<>"N/A"),'6. Class A Consumption Data'!J129:K129)) -> 0 | G67: 0 | H67: 0 | I67: 0
A68: Customer 35 | C68: 0 | D68: =SUM(IF(('6. Class A Consumption Data'!F134:G134="B")*('6. Class A Consumption Data'!B132<>"N/A"),'6. Class A Consumption Data'!F132:G132)) -> 0 | E68: =SUM(IF(('6. Class A Consumption Data'!H134:I134="B")*('6. Class A Consumption Data'!B132<>"N/A"),'6. Class A Consumption Data'!H132:I132)) -> 0 | F68: =SUM(IF(('6. Class A Consumption Data'!J134:K134="B")*('6. Class A Consumption Data'!B132<>"N/A"),'6. Class A Consumption Data'!J132:K132)) -> 0 | G68: 0 | H68: 0 | I68: 0
A69: Customer 36 | C69: 0 | D69: =SUM(IF(('6. Class A Consumption Data'!F137:G137="B")*('6. Class A Consumption Data'!B135<>"N/A"),'6. Class A Consumption Data'!F135:G135)) -> 0 | E69: =SUM(IF(('6. Class A Consumption Data'!H137:I137="B")*('6. Class A Consumption Data'!B135<>"N/A"),'6. Class A Consumption Data'!H135:I135)) -> 0 | F69: =SUM(IF(('6. Class A Consumption Data'!J137:K137="B")*('6. Class A Consumption Data'!B135<>"N/A"),'6. Class A Consumption Data'!J135:K135)) -> 0 | G69: 0 | H69: 0 | I69: 0
A70: Customer 37 | C70: 0 | D70: =SUM(IF(('6. Class A Consumption Data'!F140:G140="B")*('6. Class A Consumption Data'!B138<>"N/A"),'6. Class A Consumption Data'!F138:G138)) -> 0 | E70: =SUM(IF(('6. Class A Consumption Data'!H140:I140="B")*('6. Class A Consumption Data'!B138<>"N/A"),'6. Class A Consumption Data'!H138:I138)) -> 0 | F70: =SUM(IF(('6. Class A Consumption Data'!J140:K140="B")*('6. Class A Consumption Data'!B138<>"N/A"),'6. Class A Consumption Data'!J138:K138)) -> 0 | G70: 0 | H70: 0 | I70: 0
A71: Customer 38 | C71: 0 | D71: =SUM(IF(('6. Class A Consumption Data'!F143:G143="B")*('6. Class A Consumption Data'!B141<>"N/A"),'6. Class A Consumption Data'!F141:G141)) -> 0 | E71: =SUM(IF(('6. Class A Consumption Data'!H143:I143="B")*('6. Class A Consumption Data'!B141<>"N/A"),'6. Class A Consumption Data'!H141:I141)) -> 0 | F71: =SUM(IF(('6. Class A Consumption Data'!J143:K143="B")*('6. Class A Consumption Data'!B141<>"N/A"),'6. Class A Consumption Data'!J141:K141)) -> 0 | G71: 0 | H71: 0 | I71: 0
A72: Customer 39 | C72: 0 | D72: =SUM(IF(('6. Class A Consumption Data'!F146:G146="B")*('6. Class A Consumption Data'!B144<>"N/A"),'6. Class A Consumption Data'!F144:G144)) -> 0 | E72: =SUM(IF(('6. Class A Consumption Data'!H146:I146="B")*('6. Class A Consumption Data'!B144<>"N/A"),'6. Class A Consumption Data'!H144:I144)) -> 0 | F72: =SUM(IF(('6. Class A Consumption Data'!J146:K146="B")*('6. Class A Consumption Data'!B144<>"N/A"),'6. Class A Consumption Data'!J144:K144)) -> 0 | G72: 0 | H72: 0 | I72: 0
A73: Customer 40 | C73: 0 | D73: =SUM(IF(('6. Class A Consumption Data'!F149:G149="B")*('6. Class A Consumption Data'!B147<>"N/A"),'6. Class A Consumption Data'!F147:G147)) -> 0 | E73: =SUM(IF(('6. Class A Consumption Data'!H149:I149="B")*('6. Class A Consumption Data'!B147<>"N/A"),'6. Class A Consumption Data'!H147:I147)) -> 0 | F73: =SUM(IF(('6. Class A Consumption Data'!J149:K149="B")*('6. Class A Consumption Data'!B147<>"N/A"),'6. Class A Consumption Data'!J147:K147)) -> 0 | G73: 0 | H73: 0 | I73: 0
A74: Customer 41 | C74: 0 | D74: =SUM(IF(('6. Class A Consumption Data'!F152:G152="B")*('6. Class A Consumption Data'!B150<>"N/A"),'6. Class A Consumption Data'!F150:G150)) -> 0 | E74: =SUM(IF(('6. Class A Consumption Data'!H152:I152="B")*('6. Class A Consumption Data'!B150<>"N/A"),'6. Class A Consumption Data'!H150:I150)) -> 0 | F74: =SUM(IF(('6. Class A Consumption Data'!J152:K152="B")*('6. Class A Consumption Data'!B150<>"N/A"),'6. Class A Consumption Data'!J150:K150)) -> 0 | G74: 0 | H74: 0 | I74: 0
A75: Customer 42 | C75: 0 | D75: =SUM(IF(('6. Class A Consumption Data'!F155:G155="B")*('6. Class A Consumption Data'!B153<>"N/A"),'6. Class A Consumption Data'!F153:G153)) -> 0 | E75: =SUM(IF(('6. Class A Consumption Data'!H155:I155="B")*('6. Class A Consumption Data'!B153<>"N/A"),'6. Class A Consumption Data'!H153:I153)) -> 0 | F75: =SUM(IF(('6. Class A Consumption Data'!J155:K155="B")*('6. Class A Consumption Data'!B153<>"N/A"),'6. Class A Consumption Data'!J153:K153)) -> 0 | G75: 0 | H75: 0 | I75: 0
A76: Customer 43 | C76: 0 | D76: =SUM(IF(('6. Class A Consumption Data'!F158:G158="B")*('6. Class A Consumption Data'!B156<>"N/A"),'6. Class A Consumption Data'!F156:G156)) -> 0 | E76: =SUM(IF(('6. Class A Consumption Data'!H158:I158="B")*('6. Class A Consumption Data'!B156<>"N/A"),'6. Class A Consumption Data'!H156:I156)) -> 0 | F76: =SUM(IF(('6. Class A Consumption Data'!J158:K158="B")*('6. Class A Consumption Data'!B156<>"N/A"),'6. Class A Consumption Data'!J156:K156)) -> 0 | G76: 0 | H76: 0 | I76: 0
A77: Customer 44 | C77: 0 | D77: =SUM(IF(('6. Class A Consumption Data'!F161:G161="B")*('6. Class A Consumption Data'!B159<>"N/A"),'6. Class A Consumption Data'!F159:G159)) -> 0 | E77: =SUM(IF(('6. Class A Consumption Data'!H161:I161="B")*('6. Class A Consumption Data'!B159<>"N/A"),'6. Class A Consumption Data'!H159:I159)) -> 0 | F77: =SUM(IF(('6. Class A Consumption Data'!J161:K161="B")*('6. Class A Consumption Data'!B159<>"N/A"),'6. Class A Consumption Data'!J159:K159)) -> 0 | G77: 0 | H77: 0 | I77: 0
A78: Customer 45 | C78: 0 | D78: =SUM(IF(('6. Class A Consumption Data'!F164:G164="B")*('6. Class A Consumption Data'!B162<>"N/A"),'6. Class A Consumption Data'!F162:G162)) -> 0 | E78: =SUM(IF(('6. Class A Consumption Data'!H164:I164="B")*('6. Class A Consumption Data'!B162<>"N/A"),'6. Class A Consumption Data'!H162:I162)) -> 0 | F78: =SUM(IF(('6. Class A Consumption Data'!J164:K164="B")*('6. Class A Consumption Data'!B162<>"N/A"),'6. Class A Consumption Data'!J162:K162)) -> 0 | G78: 0 | H78: 0 | I78: 0
